Workbook

Sheet Menu
F2: This file contains the excel tables of the rates contained in the published Schedule fo Standard Prices for Eskom tariffs.
F4: 2016/17 SCHEDULE OF STANDARD PRICES FOR ESKOM TARIFFS 1 April 2016 to 31 March 2017 for Non-Local Authority supplies, and 1 July 2016 to 30 June 2017 for Local Authority supplies.
H6: Click on the arrow to select the tariff
H7: Non-local authority | J7: Local Authority
F8: ê | G8: WEPS | H8: u | J8: u
F9: ê | G9: Megaflex | H9: u | J9: u
F10: ê | G10: Nightsave large Urban | H10: u | J10: u
F11: ê | G11: Miniflex | H11: u | J11: u
F12: ê | G12: Nightsave small | H12: u | J12: u
F13: ê | G13: Businessrate | H13: u | J13: u
F14: ê | G14: Transflex 1 | H14: u | J14: n/a
F15: ê | G15: Transflex 2 | H15: u | J15: n/a
F16: ê | G16: Public lighting | H16: u | J16: u
F17: ê | G17: Ruraflex | H17: u | J17: u
F18: ê | G18: Nightsave rural | H18: u | J18: u
F19: ê | G19: Landrate tariffs | H19: u | J19: u
F20: ê | G20: Homepower tariffs | H20: u | J20: u
F21: ê | G21: Homelight tariffs | H21: u | J21: n/a
F22: ê | G22: Excess NAC charges | H22: u | J22: u
F23: ê | G23: Loss factors | H23: u | J23: u
F24: ê | G24: Transmission use of system charges | H24: u | J24: n/a
F25: ê | G25: Distribution use of system charges | H25: u | J25: n/a
F26: ê | G26: Genflex Urban | H26: u | J26: n/a
F27: ê | G27: Genflex Rural | H27: u | J27: n/a
F28: ê | G28: Muniflex Urban | H28: n/a | J28: u
F29: ê | G29: Muniflex Rural | H29: n/a | J29: u

Sheet WEPS inc
G1: Back to menu
A2: Non-municipal | G2: WEPS | R2: Non-local authority
J4: Active energy charge [c/kWh] | V4: Transmission network charges [R/kVA/m]
H5: Transmission zone | J5: High demand season [Jun - Aug] | P5: Low demand season [Sep - May]
I6: Voltage | J6: Peak | L6: Standard | N6: Off Peak | P6: Peak | R6: Standard | T6: Off Peak
A7: Tariff | B7: Tariff nameBillcode | C7: Tx zone | D7: Voltage | E7: Billcode | K7: VAT incl | M7: VAT incl | O7: VAT incl | Q7: VAT incl | S7: VAT incl | U7: VAT incl | W7: VAT incl
A8: WEPS | B8: We | C8: 0 | D8: 1 | E8: =B8&C8&D8&IF($A$2="Non-municipal","N",IF($A$2="Municiple","Y","error")) -> We01N | H8: ≤ 300km | I8: < 500V | J8: 272.34 | K8: =ROUND(J8 * (1 + VAT), 2) -> 310.47 | L8: 82.86 | M8: =ROUND(L8 * (1 + VAT), 2) -> 94.46 | N8: 45.24 | O8: =ROUND(N8 * (1 + VAT), 2) -> 51.57 | P8: 89.18 | Q8: =ROUND(P8 * (1 + VAT), 2) -> 101.67 | R8: 61.54 | S8: =ROUND(R8 * (1 + VAT), 2) -> 70.16 | T8: 39.23 | U8: =ROUND(T8 * (1 + VAT), 2) -> 44.72 | V8: 7.79 | W8: =ROUND(V8 * (1 + VAT), 2) -> 8.88
A9: WEPS | B9: We | C9: 0 | D9: 2 | E9: We02N | I9: ≥ 500V & < 66kV | J9: 268.06 | K9: =ROUND(J9 * (1 + VAT), 2) -> 305.59 | L9: 81.21 | M9: 92.58 | N9: 44.1 | O9: 50.27 | P9: 87.44 | Q9: 99.68 | R9: 60.19 | S9: 68.62 | T9: 38.18 | U9: 43.53 | V9: 7.12 | W9: 8.12
A10: WEPS | B10: We | C10: 0 | D10: 3 | E10: We03N | I10: ≥ 66kV & ≤ 132kV | J10: 259.58 | K10: 295.92 | L10: 78.63 | M10: 89.64 | N10: 42.71 | O10: 48.69 | P10: 84.69 | Q10: 96.55 | R10: 58.28 | S10: 66.44 | T10: 36.98 | U10: 42.16 | V10: 6.94 | W10: 7.91
A11: WEPS | B11: We | C11: 0 | D11: 4 | E11: We04N | I11: > 132kV* | J11: 244.65 | K11: 278.9 | L11: 74.11 | M11: 84.49 | N11: 40.25 | O11: 45.89 | P11: 79.82 | Q11: 90.99 | R11: 54.92 | S11: 62.61 | T11: 34.85 | U11: 39.73 | V11: 8.76 | W11: 9.99
A12: WEPS | B12: We | C12: 1 | D12: 1 | E12: We11N | H12: > 300km and ≤ 600km | I12: < 500V | J12: 274.56 | K12: 313 | L12: 83.19 | M12: 94.84 | N12: 45.17 | O12: 51.49 | P12: 89.57 | Q12: 102.11 | R12: 61.66 | S12: 70.29 | T12: 39.12 | U12: 44.6 | V12: 7.85 | W12: 8.95
A13: WEPS | B13: We | C13: 1 | D13: 2 | E13: We12N | I13: ≥ 500V & < 66kV | J13: 270.74 | K13: 308.64 | L13: 82.02 | M13: 93.5 | N13: 44.54 | O13: 50.78 | P13: 88.33 | Q13: 100.7 | R13: 60.78 | S13: 69.29 | T13: 38.56 | U13: 43.96 | V13: 7.19 | W13: 8.2
A14: WEPS | B14: We | C14: 1 | D14: 3 | E14: We13N | I14: ≥ 66kV & ≤ 132kV | J14: 262.13 | K14: 298.83 | L14: 79.4 | M14: 90.52 | N14: 43.11 | O14: 49.15 | P14: 85.51 | Q14: 97.48 | R14: 58.85 | S14: 67.09 | T14: 37.33 | U14: 42.56 | V14: 6.99 | W14: 7.97
A15: WEPS | B15: We | C15: 1 | D15: 4 | E15: We14N | I15: > 132kV* | J15: 247.09 | K15: 281.68 | L15: 74.86 | M15: 85.34 | N15: 40.63 | O15: 46.32 | P15: 80.59 | Q15: 91.87 | R15: 55.47 | S15: 63.24 | T15: 35.18 | U15: 40.11 | V15: 8.85 | W15: 10.09
A16: WEPS | B16: We | C16: 2 | D16: 1 | E16: We21N | H16: > 600km and ≤ 900km | I16: < 500V | J16: 277.3 | K16: 316.12 | L16: 84 | M16: 95.76 | N16: 45.6 | O16: 51.98 | P16: 90.46 | Q16: 103.12 | R16: 62.26 | S16: 70.98 | T16: 39.48 | U16: 45.01 | V16: 7.95 | W16: 9.06
A17: WEPS | B17: We | C17: 2 | D17: 2 | E17: We22N | I17: ≥ 500V & < 66kV | J17: 273.46 | K17: 311.74 | L17: 82.85 | M17: 94.45 | N17: 44.99 | O17: 51.29 | P17: 89.2 | Q17: 101.69 | R17: 61.4 | S17: 70 | T17: 38.95 | U17: 44.4 | V17: 7.25 | W17: 8.27
A18: WEPS | B18: We | C18: 2 | D18: 3 | E18: We23N | I18: ≥ 66kV & ≤ 132kV | J18: 264.8 | K18: 301.87 | L18: 80.22 | M18: 91.45 | N18: 43.55 | O18: 49.65 | P18: 86.37 | Q18: 98.46 | R18: 59.45 | S18: 67.77 | T18: 37.71 | U18: 42.99 | V18: 7.03 | W18: 8.01
A19: WEPS | B19: We | C19: 2 | D19: 4 | E19: We24N | I19: > 132kV* | J19: 249.59 | K19: 284.53 | L19: 75.6 | M19: 86.18 | N19: 41.07 | O19: 46.82 | P19: 81.42 | Q19: 92.82 | R19: 56.03 | S19: 63.87 | T19: 35.56 | U19: 40.54 | V19: 8.97 | W19: 10.23
A20: WEPS | B20: We | C20: 3 | D20: 1 | E20: We31N | H20: > 900km | I20: < 500V | J20: 280.09 | K20: 319.3 | L20: 84.87 | M20: 96.75 | N20: 46.08 | O20: 52.53 | P20: 91.38 | Q20: 104.17 | R20: 62.88 | S20: 71.68 | T20: 39.91 | U20: 45.5 | V20: 7.98 | W20: 9.1
A21: WEPS | B21: We | C21: 3 | D21: 2 | E21: We32N | I21: ≥ 500V & < 66kV | J21: 276.18 | K21: 314.85 | L21: 83.66 | M21: 95.37 | N21: 45.41 | O21: 51.77 | P21: 90.08 | Q21: 102.69 | R21: 61.99 | S21: 70.67 | T21: 39.33 | U21: 44.84 | V21: 7.34 | W21: 8.37
A22: WEPS | B22: We | C22: 3 | D22: 3 | E22: We33N | I22: ≥ 66kV & ≤ 132kV | J22: 267.46 | K22: 304.9 | L22: 81.02 | M22: 92.36 | N22: 43.99 | O22: 50.15 | P22: 87.24 | Q22: 99.45 | R22: 60.05 | S22: 68.46 | T22: 38.09 | U22: 43.42 | V22: 7.09 | W22: 8.08
A23: WEPS | B23: We | C23: 3 | D23: 4 | E23: We34N | I23: > 132kV* | J23: 252.02 | K23: 287.3 | L23: 76.38 | M23: 87.07 | N23: 41.5 | O23: 47.31 | P23: 82.26 | Q23: 93.78 | R23: 56.63 | S23: 64.56 | T23: 35.95 | U23: 40.98 | V23: 9.04 | W23: 10.31
I24: * 132 kV or Transmission connected
H25: Distribution network charges
H26: Voltage | J26: Network capacity charge [R/kVA/m] | L26: Network demand charge [R/kVA/m] | N26: Urban low voltage subsidy charge [R/kVA/m]
Q27: Voltage | S27: Ancillary service charge [c/kWh]
A28: Tariff | B28: Tariff nameBillcode | C28: Tx zone | D28: Voltage | E28: Billcode | K28: VAT incl | M28: VAT incl | O28: VAT incl | T28: VAT incl
A29: WEPS | B29: We | C29: 0 | D29: 1 | E29: We01N | H29: < 500V | J29: 15.48 | K29: =ROUND(J29 * (1 + VAT), 2) -> 17.65 | L29: 29.35 | M29: =ROUND(L29 * (1 + VAT), 2) -> 33.46 | N29: 0 | O29: =ROUND(N29 * (1 + VAT), 2) -> 0 | Q29: < 500V | S29: 0.36 | T29: =ROUND(S29 * (1 + VAT), 2) -> 0.41
A30: WEPS | B30: We | C30: 0 | D30: 2 | E30: We02N | H30: ≥ 500V & < 66kV | J30: 14.2 | K30: =ROUND(J30 * (1 + VAT), 2) -> 16.19 | L30: 26.93 | M30: =ROUND(L30 * (1 + VAT), 2) -> 30.7 | N30: 0 | O30: =ROUND(N30 * (1 + VAT), 2) -> 0 | Q30: ≥ 500V & < 66kV | S30: 0.35 | T30: =ROUND(S30 * (1 + VAT), 2) -> 0.4
A31: WEPS | B31: We | C31: 0 | D31: 3 | E31: We03N | H31: ≥ 66kV & ≤ 132kV | J31: 5.07 | K31: =ROUND(J31 * (1 + VAT), 2) -> 5.78 | L31: 9.39 | M31: =ROUND(L31 * (1 + VAT), 2) -> 10.7 | N31: 12.5 | O31: =ROUND(N31 * (1 + VAT), 2) -> 14.25 | Q31: ≥ 66kV & ≤ 132kV | S31: 0.33 | T31: =ROUND(S31 * (1 + VAT), 2) -> 0.38
A32: WEPS | B32: We | C32: 0 | D32: 4 | E32: We04N | H32: > 132kV / Transmission connected | J32: 0 | K32: =ROUND(J32 * (1 + VAT), 2) -> 0 | L32: 0 | M32: =ROUND(L32 * (1 + VAT), 2) -> 0 | N32: 12.5 | O32: =ROUND(N32 * (1 + VAT), 2) -> 14.25 | Q32: > 132kV / Transmission connected | S32: 0.31 | T32: =ROUND(S32 * (1 + VAT), 2) -> 0.35
H34: Customer categories | J34: Service charge [R/account/day] | L34: Administration charge [R/POD/day] | Q34: Reactive energy charge [c/kVArh]
A36: Tariff | B36: Tariff nameBillcode | C36: Tx zone | D36: Voltage | E36: Billcode | K36: VAT incl | M36: VAT incl | Q36: High season | S36: Low season
A37: WEPS | B37: We | C37: 0 | D37: 1 | E37: We01N | H37: ≤ 100 kVA | J37: 12.64 | K37: =ROUND(J37 * (1 + VAT), 2) -> 14.41 | L37: 2.78 | M37: =ROUND(L37 * (1 + VAT), 2) -> 3.17 | R37: VAT incl | T37: VAT incl
A38: WEPS | B38: We | C38: 0 | D38: 1 | E38: We01N | H38: > 100 kVA & ≤ 500 kVA | J38: 57.76 | K38: =ROUND(J38 * (1 + VAT), 2) -> 65.85 | L38: 16.19 | M38: =ROUND(L38 * (1 + VAT), 2) -> 18.46 | Q38: 12.52 | R38: =ROUND(Q38 * (1 + VAT), 2) -> 14.27 | S38: 0 | T38: =ROUND(S38 * (1 + VAT), 2) -> 0
A39: WEPS | B39: We | C39: 0 | D39: 1 | E39: We01N | H39: > 500 kVA & ≤ 1 MVA | J39: 177.75 | K39: =ROUND(J39 * (1 + VAT), 2) -> 202.64 | L39: 32.17 | M39: =ROUND(L39 * (1 + VAT), 2) -> 36.67
A40: WEPS | B40: We | C40: 0 | D40: 1 | E40: We01N | H40: > 1 MVA | J40: 177.75 | K40: =ROUND(J40 * (1 + VAT), 2) -> 202.64 | L40: 80.11 | M40: =ROUND(L40 * (1 + VAT), 2) -> 91.33
A41: WEPS | B41: We | C41: 0 | D41: 1 | E41: We01N | H41: Key customers | J41: 3483.16 | K41: =ROUND(J41 * (1 + VAT), 2) -> 3970.8 | L41: 111.24 | M41: =ROUND(L41 * (1 + VAT), 2) -> 126.81
H44: Electrification and rural network subsidy charge [c/kWh] | J44: Affordability subsidy charge [c/kWh] Only payable by non-local authority tariffs
A47: Tariff | B47: Tariff nameBillcode | C47: Tx zone | D47: Voltage | E47: Billcode | I47: VAT incl | K47: VAT incl
A48: WEPS | B48: We | C48: 0 | D48: 1 | E48: We01N | H48: 6.93 | I48: =ROUND(H48 * (1 + VAT), 2) -> 7.9 | J48: 2.65 | K48: =ROUND(J48 * (1 + VAT), 2) -> 3.02
H51: Active energy charge excluding losses [c/kWh]
H52: High demand season [Jun - Aug] | N52: Low demand season [Sep - May]
H53: Peak | J53: Standard | L53: Off Peak | N53: Peak | P53: Standard | R53: Off Peak
A54: Tariff | B54: Tariff nameBillcode | C54: Tx zone | D54: Voltage | E54: Billcode | I54: VAT incl | K54: VAT incl | M54: VAT incl | O54: VAT incl | Q54: VAT incl | S54: VAT incl
A55: WEPS | B55: We | C55: 0 | D55: 1 | E55: We01N | H55: =ROUND(J11/'Loss Factors'!$T$6, 2) -> 242.06 | I55: =ROUND(H55 * (1 + VAT), 2) -> 275.95 | J55: =ROUND(L11/'Loss Factors'!$T$6, 2) -> 73.33 | K55: =ROUND(J55 * (1 + VAT), 2) -> 83.6 | L55: =ROUND(N11/'Loss Factors'!$T$6, 2) -> 39.82 | M55: =ROUND(L55 * (1 + VAT), 2) -> 45.39 | N55: =ROUND(P11/'Loss Factors'!$T$6, 2) -> 78.97 | O55: =ROUND(N55 * (1 + VAT), 2) -> 90.03 | P55: =ROUND(R11/'Loss Factors'!$T$6, 2) -> 54.34 | Q55: =ROUND(P55 * (1 + VAT), 2) -> 61.95 | R55: =ROUND(T11/'Loss Factors'!$T$6, 2) -> 34.48 | S55: =ROUND(R55 * (1 + VAT), 2) -> 39.31

Sheet WEPS Munic inc
G1: Back to menu
A2: Municiple | G2: WEPS | R2: Local authority
J4: Active energy charge [c/kWh] | V4: Transmission network charges [R/kVA/m]
H5: Transmission zone | J5: High demand season [Jun - Aug] | P5: Low demand season [Sep - May]
I6: Voltage | J6: Peak | L6: Standard | N6: Off Peak | P6: Peak | R6: Standard | T6: Off Peak
A7: Tariff | B7: Tariff nameBillcode | C7: Tx zone | D7: Voltage | E7: Billcode | K7: VAT incl | M7: VAT incl | O7: VAT incl | Q7: VAT incl | S7: VAT incl | U7: VAT incl | W7: VAT incl
A8: WEPS | B8: We | C8: 0 | D8: 1 | E8: =B8&C8&D8&IF($A$2="Non-municipal","N",IF($A$2="Municiple","Y","error")) -> We01Y | H8: ≤ 300km | I8: < 500V | J8: 278.85 | K8: =ROUND(J8 * (1 + VAT), 2) -> 317.89 | L8: 84.85 | M8: =ROUND(L8 * (1 + VAT), 2) -> 96.73 | N8: 46.3 | O8: =ROUND(N8 * (1 + VAT), 2) -> 52.78 | P8: 91.3 | Q8: =ROUND(P8 * (1 + VAT), 2) -> 104.08 | R8: 63 | S8: =ROUND(R8 * (1 + VAT), 2) -> 71.82 | T8: 40.16 | U8: =ROUND(T8 * (1 + VAT), 2) -> 45.78 | V8: 7.77 | W8: =ROUND(V8 * (1 + VAT), 2) -> 8.86
A9: WEPS | B9: We | C9: 0 | D9: 2 | E9: =B9&C9&D9&IF($A$2="Non-municipal","N",IF($A$2="Municiple","Y","error")) -> We02Y | I9: ≥ 500V & < 66kV | J9: 274.45 | K9: 312.87 | L9: 83.15 | M9: 94.79 | N9: 45.15 | O9: 51.47 | P9: 89.53 | Q9: 102.06 | R9: 61.62 | S9: 70.25 | T9: 39.1 | U9: 44.57 | V9: 7.09 | W9: 8.08
A10: WEPS | B10: We | C10: 0 | D10: 3 | E10: We03Y | I10: ≥ 66kV & ≤ 132kV | J10: 265.79 | K10: 303 | L10: 80.51 | M10: 91.78 | N10: 43.72 | O10: 49.84 | P10: 86.7 | Q10: 98.84 | R10: 59.68 | S10: 68.04 | T10: 37.85 | U10: 43.15 | V10: 6.9 | W10: 7.87
A11: WEPS | B11: We | C11: 0 | D11: 4 | E11: We04Y | I11: > 132kV* | J11: 250.49 | K11: 285.56 | L11: 75.88 | M11: 86.5 | N11: 41.2 | O11: 46.97 | P11: 81.71 | Q11: 93.15 | R11: 56.24 | S11: 64.11 | T11: 35.68 | U11: 40.68 | V11: 8.73 | W11: 9.95
A12: WEPS | B12: We | C12: 1 | D12: 1 | E12: We11Y | H12: > 300km and ≤ 600km | I12: < 500V | J12: 281.12 | K12: 320.48 | L12: 85.17 | M12: 97.09 | N12: 46.24 | O12: 52.71 | P12: 91.71 | Q12: 104.55 | R12: 63.13 | S12: 71.97 | T12: 40.05 | U12: 45.66 | V12: 7.81 | W12: 8.9
A13: WEPS | B13: We | C13: 1 | D13: 2 | E13: We12Y | I13: ≥ 500V & < 66kV | J13: 277.19 | K13: 316 | L13: 83.97 | M13: 95.73 | N13: 45.6 | O13: 51.98 | P13: 90.43 | Q13: 103.09 | R13: 62.24 | S13: 70.95 | T13: 39.48 | U13: 45.01 | V13: 7.16 | W13: 8.16
A14: WEPS | B14: We | C14: 1 | D14: 3 | E14: We13Y | I14: ≥ 66kV & ≤ 132kV | J14: 268.39 | K14: 305.96 | L14: 81.3 | M14: 92.68 | N14: 44.14 | O14: 50.32 | P14: 87.55 | Q14: 99.81 | R14: 60.25 | S14: 68.69 | T14: 38.21 | U14: 43.56 | V14: 6.95 | W14: 7.92
A15: WEPS | B15: We | C15: 1 | D15: 4 | E15: We14Y | I15: > 132kV* | J15: 252.99 | K15: 288.41 | L15: 76.65 | M15: 87.38 | N15: 41.61 | O15: 47.44 | P15: 82.51 | Q15: 94.06 | R15: 56.8 | S15: 64.75 | T15: 36.03 | U15: 41.07 | V15: 8.81 | W15: 10.04
A16: WEPS | B16: We | C16: 2 | D16: 1 | E16: We21Y | H16: > 600km and ≤ 900km | I16: < 500V | J16: 283.92 | K16: 323.67 | L16: 86.01 | M16: 98.05 | N16: 46.7 | O16: 53.24 | P16: 92.61 | Q16: 105.58 | R16: 63.75 | S16: 72.68 | T16: 40.44 | U16: 46.1 | V16: 7.91 | W16: 9.02
A17: WEPS | B17: We | C17: 2 | D17: 2 | E17: We22Y | I17: ≥ 500V & < 66kV | J17: 279.98 | K17: 319.18 | L17: 84.81 | M17: 96.68 | N17: 46.06 | O17: 52.51 | P17: 91.35 | Q17: 104.14 | R17: 62.84 | S17: 71.64 | T17: 39.88 | U17: 45.46 | V17: 7.22 | W17: 8.23
A18: WEPS | B18: We | C18: 2 | D18: 3 | E18: We23Y | I18: ≥ 66kV & ≤ 132kV | J18: 271.12 | K18: 309.08 | L18: 82.12 | M18: 93.62 | N18: 44.59 | O18: 50.83 | P18: 88.42 | Q18: 100.8 | R18: 60.85 | S18: 69.37 | T18: 38.6 | U18: 44 | V18: 7.01 | W18: 7.99
A19: WEPS | B19: We | C19: 2 | D19: 4 | E19: We24Y | I19: > 132kV* | J19: 255.53 | K19: 291.3 | L19: 77.42 | M19: 88.26 | N19: 42.03 | O19: 47.91 | P19: 83.36 | Q19: 95.03 | R19: 57.37 | S19: 65.4 | T19: 36.4 | U19: 41.5 | V19: 8.93 | W19: 10.18
A20: WEPS | B20: We | C20: 3 | D20: 1 | E20: We31Y | H20: > 900km | I20: < 500V | J20: 286.77 | K20: 326.92 | L20: 86.88 | M20: 99.04 | N20: 47.18 | O20: 53.79 | P20: 93.55 | Q20: 106.65 | R20: 64.38 | S20: 73.39 | T20: 40.85 | U20: 46.57 | V20: 7.95 | W20: 9.06
A21: WEPS | B21: We | C21: 3 | D21: 2 | E21: We32Y | I21: ≥ 500V & < 66kV | J21: 282.78 | K21: 322.37 | L21: 85.65 | M21: 97.64 | N21: 46.52 | O21: 53.03 | P21: 92.23 | Q21: 105.14 | R21: 63.48 | S21: 72.37 | T21: 40.26 | U21: 45.9 | V21: 7.29 | W21: 8.31
A22: WEPS | B22: We | C22: 3 | D22: 3 | E22: We33Y | I22: ≥ 66kV & ≤ 132kV | J22: 273.85 | K22: 312.19 | L22: 82.96 | M22: 94.57 | N22: 45.05 | O22: 51.36 | P22: 89.32 | Q22: 101.82 | R22: 61.47 | S22: 70.08 | T22: 39 | U22: 44.46 | V22: 7.06 | W22: 8.05
A23: WEPS | B23: We | C23: 3 | D23: 4 | E23: We34Y | I23: > 132kV* | J23: 258.04 | K23: 294.17 | L23: 78.21 | M23: 89.16 | N23: 42.5 | O23: 48.45 | P23: 84.22 | Q23: 96.01 | R23: 57.97 | S23: 66.09 | T23: 36.8 | U23: 41.95 | V23: 9 | W23: 10.26
I24: * 132 kV or Transmission connected
H25: Distribution network charges
H26: Voltage | J26: Network capacity charge [R/kVA/m] | L26: Network demand charge [R/kVA/m] | N26: Urban low voltage subsidy charge [R/kVA/m]
Q27: Voltage | S27: Ancillary service charge [c/kWh]
A28: Tariff | B28: Tariff nameBillcode | C28: Tx zone | D28: Voltage | E28: Billcode | K28: VAT incl | M28: VAT incl | O28: VAT incl | T28: VAT incl
A29: WEPS | B29: We | C29: 0 | D29: 1 | E29: =B29&C29&D29&IF($A$2="Non-municipal","N",IF($A$2="Municiple","Y","error")) -> We01Y | H29: < 500V | J29: 15.49 | K29: =ROUND(J29 * (1 + VAT), 2) -> 17.66 | L29: 29.36 | M29: =ROUND(L29 * (1 + VAT), 2) -> 33.47 | N29: 0 | O29: =ROUND(N29 * (1 + VAT), 2) -> 0 | Q29: < 500V | S29: 0.36 | T29: =ROUND(S29 * (1 + VAT), 2) -> 0.41
A30: WEPS | B30: We | C30: 0 | D30: 2 | E30: =B30&C30&D30&IF($A$2="Non-municipal","N",IF($A$2="Municiple","Y","error")) -> We02Y | H30: ≥ 500V & < 66kV | J30: 14.21 | K30: =ROUND(J30 * (1 + VAT), 2) -> 16.2 | L30: 26.93 | M30: =ROUND(L30 * (1 + VAT), 2) -> 30.7 | N30: 0 | O30: =ROUND(N30 * (1 + VAT), 2) -> 0 | Q30: ≥ 500V & < 66kV | S30: 0.35 | T30: =ROUND(S30 * (1 + VAT), 2) -> 0.4
A31: WEPS | B31: We | C31: 0 | D31: 3 | E31: We03Y | H31: ≥ 66kV & ≤ 132kV | J31: 5.08 | K31: =ROUND(J31 * (1 + VAT), 2) -> 5.79 | L31: 9.39 | M31: =ROUND(L31 * (1 + VAT), 2) -> 10.7 | N31: 12.44 | O31: =ROUND(N31 * (1 + VAT), 2) -> 14.18 | Q31: ≥ 66kV & ≤ 132kV | S31: 0.33 | T31: =ROUND(S31 * (1 + VAT), 2) -> 0.38
A32: WEPS | B32: We | C32: 0 | D32: 4 | E32: We04Y | H32: > 132kV / Transmission connected | J32: 0 | K32: =ROUND(J32 * (1 + VAT), 2) -> 0 | L32: 0 | M32: =ROUND(L32 * (1 + VAT), 2) -> 0 | N32: 12.44 | O32: =ROUND(N32 * (1 + VAT), 2) -> 14.18 | Q32: > 132kV / Transmission | S32: 0.31 | T32: =ROUND(S32 * (1 + VAT), 2) -> 0.35
H34: Customer categories | J34: Service charge [R/account/day] | L34: Administration charge [R/POD/day] | Q34: Reactive energy charge [c/kVArh]
A36: Tariff | B36: Tariff nameBillcode | C36: Tx zone | D36: Voltage | E36: Billcode | K36: VAT incl | M36: VAT incl | Q36: High season | S36: Low season
A37: WEPS | B37: We | C37: 0 | D37: 1 | E37: =B37&C37&D37&IF($A$2="Non-municipal","N",IF($A$2="Municiple","Y","error")) -> We01Y | H37: ≤ 100 kVA | J37: 12.58 | K37: =ROUND(J37 * (1 + VAT), 2) -> 14.34 | L37: 2.76 | M37: =ROUND(L37 * (1 + VAT), 2) -> 3.15 | R37: VAT incl | T37: VAT incl
A38: WEPS | B38: We | C38: 0 | D38: 1 | E38: =B38&C38&D38&IF($A$2="Non-municipal","N",IF($A$2="Municiple","Y","error")) -> We01Y | H38: > 100 kVA & ≤ 500 kVA | J38: 57.49 | K38: =ROUND(J38 * (1 + VAT), 2) -> 65.54 | L38: 16.11 | M38: =ROUND(L38 * (1 + VAT), 2) -> 18.37 | Q38: 12.45 | R38: =ROUND(Q38 * (1 + VAT), 2) -> 14.19 | S38: 0 | T38: =ROUND(S38 * (1 + VAT), 2) -> 0
A39: WEPS | B39: We | C39: 0 | D39: 1 | E39: =B39&C39&D39&IF($A$2="Non-municipal","N",IF($A$2="Municiple","Y","error")) -> We01Y | H39: > 500 kVA & ≤ 1 MVA | J39: 176.93 | K39: =ROUND(J39 * (1 + VAT), 2) -> 201.7 | L39: 32.03 | M39: =ROUND(L39 * (1 + VAT), 2) -> 36.51
A40: WEPS | B40: We | C40: 0 | D40: 1 | E40: =B40&C40&D40&IF($A$2="Non-municipal","N",IF($A$2="Municiple","Y","error")) -> We01Y | H40: > 1 MVA | J40: 176.93 | K40: =ROUND(J40 * (1 + VAT), 2) -> 201.7 | L40: 79.75 | M40: =ROUND(L40 * (1 + VAT), 2) -> 90.92
A41: WEPS | B41: We | C41: 0 | D41: 1 | E41: =B41&C41&D41&IF($A$2="Non-municipal","N",IF($A$2="Municiple","Y","error")) -> We01Y | H41: Key customers | J41: 3467.18 | K41: =ROUND(J41 * (1 + VAT), 2) -> 3952.59 | L41: 110.73 | M41: =ROUND(L41 * (1 + VAT), 2) -> 126.23
H44: Electrification and rural network subsidy charge [c/kWh]
A47: Tariff | B47: Tariff nameBillcode | C47: Tx zone | D47: Voltage | E47: Billcode | I47: VAT incl
A48: WEPS | B48: We | C48: 0 | D48: 1 | E48: =B48&C48&D48&IF($A$2="Non-municipal","N",IF($A$2="Municiple","Y","error")) -> We01Y | H48: 6.89 | I48: =ROUND(H48 * (1 + VAT), 2) -> 7.85
H51: Active energy charge excluding losses [c/kWh]
H52: High demand season [Jun - Aug] | N52: Low demand season [Sep - May]
H53: Peak | J53: Standard | L53: Off Peak | N53: Peak | P53: Standard | R53: Off Peak
A54: Tariff | B54: Tariff nameBillcode | C54: Tx zone | D54: Voltage | E54: Billcode | I54: VAT incl | K54: VAT incl | M54: VAT incl | O54: VAT incl | Q54: VAT incl | S54: VAT incl
A55: WEPS | B55: We | C55: 0 | D55: 1 | E55: =B55&C55&D55&IF($A$2="Non-municipal","N",IF($A$2="Municiple","Y","error")) -> We01Y | H55: =ROUND(J11/'Loss Factors'!$T$6, 2) -> 247.84 | I55: =ROUND(H55 * (1 + VAT), 2) -> 282.54 | J55: =ROUND(L11/'Loss Factors'!$T$6, 2) -> 75.08 | K55: =ROUND(J55 * (1 + VAT), 2) -> 85.59 | L55: =ROUND(N11/'Loss Factors'!$T$6, 2) -> 40.76 | M55: =ROUND(L55 * (1 + VAT), 2) -> 46.47 | N55: =ROUND(P11/'Loss Factors'!$T$6, 2) -> 80.84 | O55: =ROUND(N55 * (1 + VAT), 2) -> 92.16 | P55: =ROUND(R11/'Loss Factors'!$T$6, 2) -> 55.64 | Q55: =ROUND(P55 * (1 + VAT), 2) -> 63.43 | R55: =ROUND(T11/'Loss Factors'!$T$6, 2) -> 35.3 | S55: =ROUND(R55 * (1 + VAT), 2) -> 40.24

Sheet Nightsave Large inc
H1: Back to menu
A2: Non-municipal | H2: Nightsave Urban Large tariff | Q2: Non-local authority | AG2: check value
J4: Active energy charge [c/kWh] | N4: Energy demand charge [R/kVA/m] | R4: Transmission network charges [R/kVA/m]
H5: Transmission zone | J5: High demand season [Jun - Aug] | L5: Low demand season [Sep - May] | N5: High demand season [Jun - Aug] | P5: Low demand season [Sep - May]
I6: Voltage
A7: Tariff | B7: Tariff nameBillcode | C7: Tx zone | D7: Voltage | E7: Billcode | K7: VAT incl | M7: VAT incl | O7: VAT incl | Q7: VAT incl | S7: VAT incl
A8: Nightsave Large | B8: NL | C8: 0 | D8: 1 | E8: =B8&C8&D8&IF($A$2="Non-municipal","N",IF($A$2="Municiple","Y","error")) -> NL01N | H8: ≤ 300km | I8: < 500V | J8: 67.26 | K8: =ROUND(J8 * (1 + VAT), 2) -> 76.68 | L8: 52.29 | M8: =ROUND(L8 * (1 + VAT), 2) -> 59.61 | N8: 204.67 | O8: =ROUND(N8 * (1 + VAT), 2) -> 233.32 | P8: 28.6 | Q8: =ROUND(P8 * (1 + VAT), 2) -> 32.6 | R8: 7.79 | S8: =ROUND(R8 * (1 + VAT), 2) -> 8.88
A9: Nightsave Large | B9: NL | C9: 0 | D9: 2 | E9: =B9&C9&D9&IF($A$2="Non-municipal","N",IF($A$2="Municiple","Y","error")) -> NL02N | I9: ≥ 500V & < 66kV | J9: 63.7 | K9: 72.62 | L9: 49.72 | M9: 56.68 | N9: 198.09 | O9: 225.82 | P9: 27.69 | Q9: 31.57 | R9: 7.12 | S9: 8.12
A10: Nightsave Large | B10: NL | C10: 0 | D10: 3 | E10: NL03N | I10: ≥ 66kV & ≤ 132kV | J10: 63.23 | K10: 72.08 | L10: 49.12 | M10: 56 | N10: 190.88 | O10: 217.6 | P10: 26.68 | Q10: 30.42 | R10: 6.94 | S10: 7.91
A11: Nightsave Large | B11: NL | C11: 0 | D11: 4 | E11: NL04N | I11: > 132kV* | J11: 59.15 | K11: 67.43 | L11: 45.99 | M11: 52.43 | N11: 184.13 | O11: 209.91 | P11: 25.73 | Q11: 29.33 | R11: 8.76 | S11: 9.99
A12: Nightsave Large | B12: NL | C12: 1 | D12: 1 | E12: NL11N | H12: > 300km and ≤ 600km | I12: < 500V | J12: 68.17 | K12: 77.71 | L12: 52.86 | M12: 60.26 | N12: 206.78 | O12: 235.73 | P12: 28.88 | Q12: 32.92 | R12: 7.85 | S12: 8.95
A13: Nightsave Large | B13: NL | C13: 1 | D13: 2 | E13: NL12N | I13: ≥ 500V & < 66kV | J13: 65.03 | K13: 74.13 | L13: 50.73 | M13: 57.83 | N13: 200.1 | O13: 228.11 | P13: 27.94 | Q13: 31.85 | R13: 7.19 | S13: 8.2
A14: Nightsave Large | B14: NL | C14: 1 | D14: 3 | E14: NL13N | I14: ≥ 66kV & ≤ 132kV | J14: 64.55 | K14: 73.59 | L14: 50.12 | M14: 57.14 | N14: 192.77 | O14: 219.76 | P14: 26.93 | Q14: 30.7 | R14: 6.99 | S14: 7.97
A15: Nightsave Large | B15: NL | C15: 1 | D15: 4 | E15: NL14N | I15: > 132kV* | J15: 60.39 | K15: 68.84 | L15: 46.93 | M15: 53.5 | N15: 186.01 | O15: 212.05 | P15: 25.97 | Q15: 29.61 | R15: 8.85 | S15: 10.09
A16: Nightsave Large | B16: NL | C16: 2 | D16: 1 | E16: NL21N | H16: > 600km and ≤ 900km | I16: < 500V | J16: 68.8 | K16: 78.43 | L16: 53.38 | M16: 60.85 | N16: 208.89 | O16: 238.13 | P16: 29.18 | Q16: 33.27 | R16: 7.95 | S16: 9.06
A17: Nightsave Large | B17: NL | C17: 2 | D17: 2 | E17: NL22N | I17: ≥ 500V & < 66kV | J17: 65.68 | K17: 74.88 | L17: 51.25 | M17: 58.43 | N17: 202.11 | O17: 230.41 | P17: 28.25 | Q17: 32.21 | R17: 7.25 | S17: 8.27
A18: Nightsave Large | B18: NL | C18: 2 | D18: 3 | E18: NL23N | I18: ≥ 66kV & ≤ 132kV | J18: 65.19 | K18: 74.32 | L18: 50.62 | M18: 57.71 | N18: 194.71 | O18: 221.97 | P18: 27.2 | Q18: 31.01 | R18: 7.03 | S18: 8.01
A19: Nightsave Large | B19: NL | C19: 2 | D19: 4 | E19: NL24N | I19: > 132kV* | J19: 60.98 | K19: 69.52 | L19: 47.41 | M19: 54.05 | N19: 187.87 | O19: 214.17 | P19: 26.23 | Q19: 29.9 | R19: 8.97 | S19: 10.23
A20: Nightsave Large | B20: NL | C20: 3 | D20: 1 | E20: NL31N | H20: > 900km | I20: < 500V | J20: 69.53 | K20: 79.26 | L20: 53.92 | M20: 61.47 | N20: 210.92 | O20: 240.45 | P20: 29.46 | Q20: 33.58 | R20: 7.98 | S20: 9.1
A21: Nightsave Large | B21: NL | C21: 3 | D21: 2 | E21: NL32N | I21: ≥ 500V & < 66kV | J21: 66.32 | K21: 75.6 | L21: 51.75 | M21: 59 | N21: 204.14 | O21: 232.72 | P21: 28.49 | Q21: 32.48 | R21: 7.34 | S21: 8.37
A22: Nightsave Large | B22: NL | C22: 3 | D22: 3 | E22: NL33N | I22: ≥ 66kV & ≤ 132kV | J22: 65.86 | K22: 75.08 | L22: 51.12 | M22: 58.28 | N22: 196.7 | O22: 224.24 | P22: 27.48 | Q22: 31.33 | R22: 7.09 | S22: 8.08
A23: Nightsave Large | B23: NL | C23: 3 | D23: 4 | E23: NL34N | I23: > 132kV* | J23: 61.63 | K23: 70.26 | L23: 47.93 | M23: 54.64 | N23: 189.77 | O23: 216.34 | P23: 26.5 | Q23: 30.21 | R23: 9.04 | S23: 10.31
I24: * 132 kV or Transmission connected
H26: Distribution network charges
H27: Voltage | J27: Network capacity charge [R/kVA/m] | L27: Network demand charge [R/kVA/m] | N27: Urban low voltage subsidy charge [R/kVA/m]
Q28: Voltage | R28: Ancillary service charge [c/kWh]
A29: Tariff | B29: Tariff nameBillcode | C29: Tx zone | D29: Voltage | E29: Billcode | K29: VAT incl | M29: VAT incl | O29: VAT incl | S29: VAT incl
A30: Nightsave Large | B30: NL | C30: 0 | D30: 1 | E30: =B30&C30&D30&IF($A$2="Non-municipal","N",IF($A$2="Municiple","Y","error")) -> NL01N | H30: < 500V | J30: 15.48 | K30: =ROUND(J30 * (1 + VAT), 2) -> 17.65 | L30: 29.35 | M30: =ROUND(L30 * (1 + VAT), 2) -> 33.46 | N30: 0 | O30: =ROUND(N30 * (1 + VAT), 2) -> 0 | Q30: < 500V | R30: 0.36 | S30: =ROUND(R30 * (1 + VAT), 2) -> 0.41
A31: Nightsave Large | B31: NL | C31: 0 | D31: 2 | E31: =B31&C31&D31&IF($A$2="Non-municipal","N",IF($A$2="Municiple","Y","error")) -> NL02N | H31: ≥ 500V & < 66kV | J31: 14.2 | K31: =ROUND(J31 * (1 + VAT), 2) -> 16.19 | L31: 26.93 | M31: =ROUND(L31 * (1 + VAT), 2) -> 30.7 | N31: 0 | O31: =ROUND(N31 * (1 + VAT), 2) -> 0 | Q31: ≥ 500V & < 66kV | R31: 0.35 | S31: =ROUND(R31 * (1 + VAT), 2) -> 0.4
A32: Nightsave Large | B32: NL | C32: 0 | D32: 3 | E32: NL03N | H32: ≥ 66kV & ≤ 132kV | J32: 5.07 | K32: =ROUND(J32 * (1 + VAT), 2) -> 5.78 | L32: 9.39 | M32: =ROUND(L32 * (1 + VAT), 2) -> 10.7 | N32: 12.5 | O32: =ROUND(N32 * (1 + VAT), 2) -> 14.25 | Q32: ≥ 66kV & ≤ 132kV | R32: 0.33 | S32: =ROUND(R32 * (1 + VAT), 2) -> 0.38
A33: Nightsave Large | B33: NL | C33: 0 | D33: 4 | E33: NL04N | H33: > 132kV / Transmission connected | J33: 0 | K33: =ROUND(J33 * (1 + VAT), 2) -> 0 | L33: 0 | M33: =ROUND(L33 * (1 + VAT), 2) -> 0 | N33: 12.5 | O33: =ROUND(N33 * (1 + VAT), 2) -> 14.25 | Q33: > 132kV* | R33: 0.31 | S33: =ROUND(R33 * (1 + VAT), 2) -> 0.35
Q34: * 132 kV or Transmission connected
H36: Customer categories | I36: Service charge [R/account/day] | K36: Administration charge [R/POD/day]
A38: Tariff | B38: Tariff nameBillcode | C38: Tx zone | D38: Voltage | E38: Billcode | J38: VAT incl | L38: VAT incl
A39: Nightsave Large | B39: NL | C39: 0 | D39: 1 | E39: =B39&C39&D39&IF($A$2="Non-municipal","N",IF($A$2="Municiple","Y","error")) -> NL01N | H39: >1 MVA | I39: 177.75 | J39: =ROUND(I39 * (1 + VAT), 2) -> 202.64 | K39: 80.11 | L39: =ROUND(K39 * (1 + VAT), 2) -> 91.33
A40: Nightsave Large | B40: NL | C40: 0 | D40: 1 | E40: =B40&C40&D40&IF($A$2="Non-municipal","N",IF($A$2="Municiple","Y","error")) -> NL01N | H40: Key customers | I40: 3483.16 | J40: =ROUND(I40 * (1 + VAT), 2) -> 3970.8 | K40: 111.24 | L40: =ROUND(K40 * (1 + VAT), 2) -> 126.81
H43: Electrification and rural network subsidy charge [c/kWh] | J43: Affordability subsidy charge [c/kWh] Only payable by non-local authority tariffs
A46: Tariff | B46: Tariff nameBillcode | C46: Tx zone | D46: Voltage | E46: Billcode | I46: VAT incl | K46: VAT incl
A47: Nightsave Large | B47: NL | C47: 0 | D47: 1 | E47: =B47&C47&D47&IF($A$2="Non-municipal","N",IF($A$2="Municiple","Y","error")) -> NL01N | H47: 6.93 | I47: =ROUND(H47 * (1 + VAT), 2) -> 7.9 | J47: 2.65 | K47: =ROUND(J47 * (1 + VAT), 2) -> 3.02

Sheet Nightsave Large Munic inc
H1: Back to menu
A2: Municiple | H2: Nightsave Urban Large tariff | Q2: Local authority | AG2: check value
J4: Active energy charge [c/kWh] | N4: Energy demand charge [R/kVA/m] | R4: Transmission network charges [R/kVA/m]
H5: Transmission zone | J5: High demand season [Jun - Aug] | L5: Low demand season [Sep - May] | N5: High demand season [Jun - Aug] | P5: Low demand season [Sep - May]
I6: Voltage
A7: Tariff | B7: Tariff nameBillcode | C7: Tx zone | D7: Voltage | E7: Billcode | K7: VAT incl | M7: VAT incl | O7: VAT incl | Q7: VAT incl | S7: VAT incl
A8: Nightsave Large | B8: NL | C8: 0 | D8: 1 | E8: =B8&C8&D8&IF($A$2="Non-municipal","N",IF($A$2="Municiple","Y","error")) -> NL01Y | H8: ≤ 300km | I8: < 500V | J8: 68.87 | K8: =ROUND(J8 * (1 + VAT), 2) -> 78.51 | L8: 53.55 | M8: =ROUND(L8 * (1 + VAT), 2) -> 61.05 | N8: 205.62 | O8: =ROUND(N8 * (1 + VAT), 2) -> 234.41 | P8: 28.73 | Q8: =ROUND(P8 * (1 + VAT), 2) -> 32.75 | R8: 7.77 | S8: =ROUND(R8 * (1 + VAT), 2) -> 8.86
A9: Nightsave Large | B9: NL | C9: 0 | D9: 2 | E9: =B9&C9&D9&IF($A$2="Non-municipal","N",IF($A$2="Municiple","Y","error")) -> NL02Y | I9: ≥ 500V & < 66kV | J9: 65.22 | K9: 74.35 | L9: 50.9 | M9: 58.03 | N9: 199.02 | O9: 226.88 | P9: 27.83 | Q9: 31.73 | R9: 7.09 | S9: 8.08
A10: Nightsave Large | B10: NL | C10: 0 | D10: 3 | E10: NL03Y | I10: ≥ 66kV & ≤ 132kV | J10: 64.74 | K10: 73.8 | L10: 50.27 | M10: 57.31 | N10: 191.78 | O10: 218.63 | P10: 26.8 | Q10: 30.55 | R10: 6.9 | S10: 7.87
A11: Nightsave Large | B11: NL | C11: 0 | D11: 4 | E11: NL04Y | I11: > 132kV* | J11: 60.56 | K11: 69.04 | L11: 47.09 | M11: 53.68 | N11: 185 | O11: 210.9 | P11: 25.84 | Q11: 29.46 | R11: 8.73 | S11: 9.95
A12: Nightsave Large | B12: NL | C12: 1 | D12: 1 | E12: NL11Y | H12: > 300km and ≤ 600km | I12: < 500V | J12: 69.77 | K12: 79.54 | L12: 54.13 | M12: 61.71 | N12: 207.76 | O12: 236.85 | P12: 29.01 | Q12: 33.07 | R12: 7.81 | S12: 8.9
A13: Nightsave Large | B13: NL | C13: 1 | D13: 2 | E13: NL12Y | I13: ≥ 500V & < 66kV | J13: 66.57 | K13: 75.89 | L13: 51.93 | M13: 59.2 | N13: 201.03 | O13: 229.17 | P13: 28.07 | Q13: 32 | R13: 7.16 | S13: 8.16
A14: Nightsave Large | B14: NL | C14: 1 | D14: 3 | E14: NL13Y | I14: ≥ 66kV & ≤ 132kV | J14: 66.09 | K14: 75.34 | L14: 51.32 | M14: 58.5 | N14: 193.68 | O14: 220.8 | P14: 27.07 | Q14: 30.86 | R14: 6.95 | S14: 7.92
A15: Nightsave Large | B15: NL | C15: 1 | D15: 4 | E15: NL14Y | I15: > 132kV* | J15: 61.81 | K15: 70.46 | L15: 48.05 | M15: 54.78 | N15: 186.88 | O15: 213.04 | P15: 26.1 | Q15: 29.75 | R15: 8.81 | S15: 10.04
A16: Nightsave Large | B16: NL | C16: 2 | D16: 1 | E16: NL21Y | H16: > 600km and ≤ 900km | I16: < 500V | J16: 70.44 | K16: 80.3 | L16: 54.65 | M16: 62.3 | N16: 209.86 | O16: 239.24 | P16: 29.32 | Q16: 33.42 | R16: 7.91 | S16: 9.02
A17: Nightsave Large | B17: NL | C17: 2 | D17: 2 | E17: NL22Y | I17: ≥ 500V & < 66kV | J17: 67.24 | K17: 76.65 | L17: 52.47 | M17: 59.82 | N17: 203.07 | O17: 231.5 | P17: 28.38 | Q17: 32.35 | R17: 7.22 | S17: 8.23
A18: Nightsave Large | B18: NL | C18: 2 | D18: 3 | E18: NL23Y | I18: ≥ 66kV & ≤ 132kV | J18: 66.74 | K18: 76.08 | L18: 51.84 | M18: 59.1 | N18: 195.63 | O18: 223.02 | P18: 27.32 | Q18: 31.14 | R18: 7.01 | S18: 7.99
A19: Nightsave Large | B19: NL | C19: 2 | D19: 4 | E19: NL24Y | I19: > 132kV* | J19: 62.44 | K19: 71.18 | L19: 48.54 | M19: 55.34 | N19: 188.76 | O19: 215.19 | P19: 26.37 | Q19: 30.06 | R19: 8.93 | S19: 10.18
A20: Nightsave Large | B20: NL | C20: 3 | D20: 1 | E20: NL31Y | H20: > 900km | I20: < 500V | J20: 71.19 | K20: 81.16 | L20: 55.2 | M20: 62.93 | N20: 211.92 | O20: 241.59 | P20: 29.61 | Q20: 33.76 | R20: 7.95 | S20: 9.06
A21: Nightsave Large | B21: NL | C21: 3 | D21: 2 | E21: NL32Y | I21: ≥ 500V & < 66kV | J21: 67.91 | K21: 77.42 | L21: 52.98 | M21: 60.4 | N21: 205.09 | O21: 233.8 | P21: 28.63 | Q21: 32.64 | R21: 7.29 | S21: 8.31
A22: Nightsave Large | B22: NL | C22: 3 | D22: 3 | E22: NL33Y | I22: ≥ 66kV & ≤ 132kV | J22: 67.41 | K22: 76.85 | L22: 52.34 | M22: 59.67 | N22: 197.61 | O22: 225.28 | P22: 27.61 | Q22: 31.48 | R22: 7.06 | S22: 8.05
A23: Nightsave Large | B23: NL | C23: 3 | D23: 4 | E23: NL34Y | I23: > 132kV* | J23: 63.11 | K23: 71.95 | L23: 49.08 | M23: 55.95 | N23: 190.66 | O23: 217.35 | P23: 26.62 | Q23: 30.35 | R23: 9 | S23: 10.26
I24: * 132 kV or Transmission connected
H26: Distribution network charges
H27: Voltage | J27: Network capacity charge [R/kVA/m] | L27: Network demand charge [R/kVA/m] | N27: Urban low voltage subsidy charge [R/kVA/m]
Q28: Voltage | R28: Ancillary service charge [c/kWh]
A29: Tariff | B29: Tariff nameBillcode | C29: Tx zone | D29: Voltage | E29: Billcode | K29: VAT incl | M29: VAT incl | O29: VAT incl | S29: VAT incl
A30: Nightsave Large | B30: NL | C30: 0 | D30: 1 | E30: =B30&C30&D30&IF($A$2="Non-municipal","N",IF($A$2="Municiple","Y","error")) -> NL01Y | H30: < 500V | J30: 15.49 | K30: =ROUND(J30 * (1 + VAT), 2) -> 17.66 | L30: 29.36 | M30: =ROUND(L30 * (1 + VAT), 2) -> 33.47 | N30: 0 | O30: =ROUND(N30 * (1 + VAT), 2) -> 0 | Q30: < 500V | R30: 0.36 | S30: =ROUND(R30 * (1 + VAT), 2) -> 0.41
A31: Nightsave Large | B31: NL | C31: 0 | D31: 2 | E31: =B31&C31&D31&IF($A$2="Non-municipal","N",IF($A$2="Municiple","Y","error")) -> NL02Y | H31: ≥ 500V & < 66kV | J31: 14.21 | K31: =ROUND(J31 * (1 + VAT), 2) -> 16.2 | L31: 26.93 | M31: =ROUND(L31 * (1 + VAT), 2) -> 30.7 | N31: 0 | O31: =ROUND(N31 * (1 + VAT), 2) -> 0 | Q31: ≥ 500V & < 66kV | R31: 0.35 | S31: =ROUND(R31 * (1 + VAT), 2) -> 0.4
A32: Nightsave Large | B32: NL | C32: 0 | D32: 3 | E32: NL03Y | H32: ≥ 66kV & ≤ 132kV | J32: 5.08 | K32: =ROUND(J32 * (1 + VAT), 2) -> 5.79 | L32: 9.39 | M32: =ROUND(L32 * (1 + VAT), 2) -> 10.7 | N32: 12.44 | O32: =ROUND(N32 * (1 + VAT), 2) -> 14.18 | Q32: ≥ 66kV & ≤ 132kV | R32: 0.33 | S32: =ROUND(R32 * (1 + VAT), 2) -> 0.38
A33: Nightsave Large | B33: NL | C33: 0 | D33: 4 | E33: NL04Y | H33: > 132kV / Transmission connected | J33: 0 | K33: =ROUND(J33 * (1 + VAT), 2) -> 0 | L33: 0 | M33: =ROUND(L33 * (1 + VAT), 2) -> 0 | N33: 12.44 | O33: =ROUND(N33 * (1 + VAT), 2) -> 14.18 | Q33: > 132kV* | R33: 0.31 | S33: =ROUND(R33 * (1 + VAT), 2) -> 0.35
Q34: * 132 kV or Transmission connected
H36: Customer categories | I36: Service charge [R/account/day] | K36: Administration charge [R/POD/day]
A38: Tariff | B38: Tariff nameBillcode | C38: Tx zone | D38: Voltage | E38: Billcode | J38: VAT incl | L38: VAT incl
A39: Nightsave Large | B39: NL | C39: 0 | D39: 1 | E39: =B39&C39&D39&IF($A$2="Non-municipal","N",IF($A$2="Municiple","Y","error")) -> NL01Y | H39: >1 MVA | I39: 176.93 | J39: =ROUND(I39 * (1 + VAT), 2) -> 201.7 | K39: 79.75 | L39: =ROUND(K39 * (1 + VAT), 2) -> 90.92
A40: Nightsave Large | B40: NL | C40: 0 | D40: 1 | E40: =B40&C40&D40&IF($A$2="Non-municipal","N",IF($A$2="Municiple","Y","error")) -> NL01Y | H40: Key customers | I40: 3467.18 | J40: =ROUND(I40 * (1 + VAT), 2) -> 3952.59 | K40: 110.73 | L40: =ROUND(K40 * (1 + VAT), 2) -> 126.23
H43: Electrification and rural network subsidy charge [c/kWh]
A46: Tariff | B46: Tariff nameBillcode | C46: Tx zone | D46: Voltage | E46: Billcode | I46: VAT incl
A47: Nightsave Large | B47: NL | C47: 0 | D47: 1 | E47: =B47&C47&D47&IF($A$2="Non-municipal","N",IF($A$2="Municiple","Y","error")) -> NL01Y | H47: 6.89 | I47: =ROUND(H47 * (1 + VAT), 2) -> 7.85

Sheet Nightsave Small inc
G1: Back to menu
A2: Non-municipal | G2: Nightsave Urban Small tariff | R2: Non-local authority | AF2: =SUM(#REF!,#REF!,#REF!,#REF!,#REF!,#REF!,#REF!,#REF!,#REF!) ->  | AG2: check value
J4: Active energy charge [c/kWh] | N4: Energy demand charge [R/kVA/m] | R4: Transmission network charges [R/kVA/m]
H5: Transmission zone | J5: High demand season [Jun - Aug] | L5: Low demand season [Sep - May] | N5: High demand season [Jun - Aug] | P5: Low demand season [Sep - May]
I6: Voltage
A7: Tariff | B7: Tariff nameBillcode | C7: Tx zone | D7: Voltage | E7: Billcode | K7: VAT incl | M7: VAT incl | O7: VAT incl | Q7: VAT incl | S7: VAT incl
A8: Nightsave Small | B8: NS | C8: 0 | D8: 1 | E8: =B8&C8&D8&IF($A$2="Non-municipal","N",IF($A$2="Municiple","Y","error")) -> NS01N | H8: ≤ 300km | I8: < 500V | J8: 67.26 | K8: =ROUND(J8 * (1 + VAT), 2) -> 76.68 | L8: 52.29 | M8: =ROUND(L8 * (1 + VAT), 2) -> 59.61 | N8: 143.74 | O8: =ROUND(N8 * (1 + VAT), 2) -> 163.86 | P8: 18.52 | Q8: =ROUND(P8 * (1 + VAT), 2) -> 21.11 | R8: 7.79 | S8: =ROUND(R8 * (1 + VAT), 2) -> 8.88
A9: Nightsave Small | B9: NS | C9: 0 | D9: 2 | E9: =B9&C9&D9&IF($A$2="Non-municipal","N",IF($A$2="Municiple","Y","error")) -> NS02N | I9: ≥ 500V & < 66kV | J9: 63.7 | K9: 72.62 | L9: 49.72 | M9: 56.68 | N9: 139.11 | O9: 158.59 | P9: 17.9 | Q9: 20.41 | R9: 7.12 | S9: 8.12
A10: Nightsave Small | B10: NS | C10: 0 | D10: 3 | E10: NS03N | I10: ≥ 66kV & ≤ 132kV | J10: 63.23 | K10: 72.08 | L10: 49.12 | M10: 56 | N10: 133.99 | O10: 152.75 | P10: 17.23 | Q10: 19.64 | R10: 6.94 | S10: 7.91
A11: Nightsave Small | B11: NS | C11: 0 | D11: 4 | E11: NS04N | I11: > 132kV* | J11: 59.15 | K11: 67.43 | L11: 45.99 | M11: 52.43 | N11: 129.31 | O11: 147.41 | P11: 16.63 | Q11: 18.96 | R11: 8.76 | S11: 9.99
A12: Nightsave Small | B12: NS | C12: 1 | D12: 1 | E12: NS11N | H12: > 300km and ≤ 600km | I12: < 500V | J12: 68.17 | K12: 77.71 | L12: 52.86 | M12: 60.26 | N12: 145.21 | O12: 165.54 | P12: 18.67 | Q12: 21.28 | R12: 7.85 | S12: 8.95
A13: Nightsave Small | B13: NS | C13: 1 | D13: 2 | E13: NS12N | I13: ≥ 500V & < 66kV | J13: 65.03 | K13: 74.13 | L13: 50.73 | M13: 57.83 | N13: 140.51 | O13: 160.18 | P13: 18.07 | Q13: 20.6 | R13: 7.19 | S13: 8.2
A14: Nightsave Small | B14: NS | C14: 1 | D14: 3 | E14: NS13N | I14: ≥ 66kV & ≤ 132kV | J14: 64.55 | K14: 73.59 | L14: 50.12 | M14: 57.14 | N14: 135.37 | O14: 154.32 | P14: 17.42 | Q14: 19.86 | R14: 6.99 | S14: 7.97
A15: Nightsave Small | B15: NS | C15: 1 | D15: 4 | E15: NS14N | I15: > 132kV* | J15: 60.39 | K15: 68.84 | L15: 46.93 | M15: 53.5 | N15: 130.6 | O15: 148.88 | P15: 16.8 | Q15: 19.15 | R15: 8.85 | S15: 10.09
A16: Nightsave Small | B16: NS | C16: 2 | D16: 1 | E16: NS21N | H16: > 600km and ≤ 900km | I16: < 500V | J16: 68.8 | K16: 78.43 | L16: 53.38 | M16: 60.85 | N16: 146.63 | O16: 167.16 | P16: 18.85 | Q16: 21.49 | R16: 7.95 | S16: 9.06
A17: Nightsave Small | B17: NS | C17: 2 | D17: 2 | E17: NS22N | I17: ≥ 500V & < 66kV | J17: 65.68 | K17: 74.88 | L17: 51.25 | M17: 58.43 | N17: 141.95 | O17: 161.82 | P17: 18.26 | Q17: 20.82 | R17: 7.25 | S17: 8.27
A18: Nightsave Small | B18: NS | C18: 2 | D18: 3 | E18: NS23N | I18: ≥ 66kV & ≤ 132kV | J18: 65.19 | K18: 74.32 | L18: 50.62 | M18: 57.71 | N18: 136.73 | O18: 155.87 | P18: 17.59 | Q18: 20.05 | R18: 7.03 | S18: 8.01
A19: Nightsave Small | B19: NS | C19: 2 | D19: 4 | E19: NS24N | I19: > 132kV* | J19: 60.98 | K19: 69.52 | L19: 47.41 | M19: 54.05 | N19: 131.89 | O19: 150.35 | P19: 16.97 | Q19: 19.35 | R19: 8.97 | S19: 10.23
A20: Nightsave Small | B20: NS | C20: 3 | D20: 1 | E20: NS31N | H20: > 900km | I20: < 500V | J20: 69.53 | K20: 79.26 | L20: 53.92 | M20: 61.47 | N20: 148.13 | O20: 168.87 | P20: 19.05 | Q20: 21.72 | R20: 7.98 | S20: 9.1
A21: Nightsave Small | B21: NS | C21: 3 | D21: 2 | E21: NS32N | I21: ≥ 500V & < 66kV | J21: 66.32 | K21: 75.6 | L21: 51.75 | M21: 59 | N21: 143.34 | O21: 163.41 | P21: 18.44 | Q21: 21.02 | R21: 7.34 | S21: 8.37
A22: Nightsave Small | B22: NS | C22: 3 | D22: 3 | E22: NS33N | I22: ≥ 66kV & ≤ 132kV | J22: 65.86 | K22: 75.08 | L22: 51.12 | M22: 58.28 | N22: 138.13 | O22: 157.47 | P22: 17.78 | Q22: 20.27 | R22: 7.09 | S22: 8.08
A23: Nightsave Small | B23: NS | C23: 3 | D23: 4 | E23: NS34N | I23: > 132kV* | J23: 61.63 | K23: 70.26 | L23: 47.93 | M23: 54.64 | N23: 133.27 | O23: 151.93 | P23: 17.16 | Q23: 19.56 | R23: 9.04 | S23: 10.31
I24: * 132 kV or Transmission connected
H26: Distribution network charges
J27: Network capacity charge [R/kVA/m] | L27: Network demand charge [R/kVA/m] | N27: Urban low voltage subsidy charge [R/kVA/m]
H28: Voltage | Q28: Voltage | R28: Ancillary service charge [c/kWh]
A29: Tariff | B29: Tariff nameBillcode | C29: Tx zone | D29: Voltage | E29: Billcode | K29: VAT incl | M29: VAT incl | O29: VAT incl | S29: VAT incl
A30: Nightsave Small | B30: NS | C30: 0 | D30: 1 | E30: =B30&C30&D30&IF($A$2="Non-municipal","N",IF($A$2="Municiple","Y","error")) -> NS01N | H30: < 500V | J30: 15.48 | K30: =ROUND(J30 * (1 + VAT), 2) -> 17.65 | L30: 29.35 | M30: =ROUND(L30 * (1 + VAT), 2) -> 33.46 | N30: 0 | O30: =ROUND(N30 * (1 + VAT), 2) -> 0 | Q30: < 500V | R30: 0.36 | S30: =ROUND(R30 * (1 + VAT), 2) -> 0.41
A31: Nightsave Small | B31: NS | C31: 0 | D31: 2 | E31: =B31&C31&D31&IF($A$2="Non-municipal","N",IF($A$2="Municiple","Y","error")) -> NS02N | H31: ≥ 500V & < 66kV | J31: 14.2 | K31: =ROUND(J31 * (1 + VAT), 2) -> 16.19 | L31: 26.93 | M31: =ROUND(L31 * (1 + VAT), 2) -> 30.7 | N31: 0 | O31: =ROUND(N31 * (1 + VAT), 2) -> 0 | Q31: ≥ 500V & < 66kV | R31: 0.35 | S31: =ROUND(R31 * (1 + VAT), 2) -> 0.4
A32: Nightsave Small | B32: NS | C32: 0 | D32: 3 | E32: NS03N | H32: ≥ 66kV & ≤ 132kV | J32: 5.07 | K32: =ROUND(J32 * (1 + VAT), 2) -> 5.78 | L32: 9.39 | M32: =ROUND(L32 * (1 + VAT), 2) -> 10.7 | N32: 12.5 | O32: =ROUND(N32 * (1 + VAT), 2) -> 14.25 | Q32: ≥ 66kV & ≤ 132kV | R32: 0.33 | S32: =ROUND(R32 * (1 + VAT), 2) -> 0.38
A33: Nightsave Small | B33: NS | C33: 0 | D33: 4 | E33: NS04N | H33: > 132kV / Transmission connected | J33: 0 | K33: =ROUND(J33 * (1 + VAT), 2) -> 0 | L33: 0 | M33: =ROUND(L33 * (1 + VAT), 2) -> 0 | N33: 12.5 | O33: =ROUND(N33 * (1 + VAT), 2) -> 14.25 | Q33: > 132kV* | R33: 0.31 | S33: =ROUND(R33 * (1 + VAT), 2) -> 0.35
Q34: * 132 kV or Transmission connected
H36: Customer categories | I36: Service charge [R/account/day] | K36: Administration charge [R/POD/day]
A38: Tariff | B38: Tariff nameBillcode | C38: Tx zone | D38: Voltage | E38: Billcode | J38: VAT incl | L38: VAT incl
A39: Nightsave Small | B39: NS | C39: 0 | D39: 1 | E39: =B39&C39&D39&IF($A$2="Non-municipal","N",IF($A$2="Municiple","Y","error")) -> NS01N | H39: ≤ 100 kVA | I39: 12.64 | J39: =ROUND(I39 * (1 + VAT), 2) -> 14.41 | K39: 2.78 | L39: =ROUND(K39 * (1 + VAT), 2) -> 3.17
A40: Nightsave Small | B40: NS | C40: 0 | D40: 1 | E40: =B40&C40&D40&IF($A$2="Non-municipal","N",IF($A$2="Municiple","Y","error")) -> NS01N | H40: > 100 kVA & ≤ 500 kVA | I40: 57.76 | J40: =ROUND(I40 * (1 + VAT), 2) -> 65.85 | K40: 16.19 | L40: =ROUND(K40 * (1 + VAT), 2) -> 18.46
A41: Nightsave Small | B41: NS | C41: 0 | D41: 1 | E41: =B41&C41&D41&IF($A$2="Non-municipal","N",IF($A$2="Municiple","Y","error")) -> NS01N | H41: > 500 kVA & ≤ 1 MVA | I41: 177.75 | J41: =ROUND(I41 * (1 + VAT), 2) -> 202.64 | K41: 32.17 | L41: =ROUND(K41 * (1 + VAT), 2) -> 36.67
A42: Nightsave Small | B42: NS | C42: 0 | D42: 1 | E42: =B42&C42&D42&IF($A$2="Non-municipal","N",IF($A$2="Municiple","Y","error")) -> NS01N | H42: Key customers | I42: 3483.16 | J42: =ROUND(I42 * (1 + VAT), 2) -> 3970.8 | K42: 111.24 | L42: =ROUND(K42 * (1 + VAT), 2) -> 126.81
H44: Electrification and rural network subsidy charge [c/kWh] | J44: Affordability subsidy charge [c/kWh] Only payable by non-local authority tariffs
A47: Tariff | B47: Tariff nameBillcode | C47: Tx zone | D47: Voltage | E47: Billcode | I47: VAT incl | K47: VAT incl
A48: Nightsave Small | B48: NS | C48: 0 | D48: 1 | E48: =B48&C48&D48&IF($A$2="Non-municipal","N",IF($A$2="Municiple","Y","error")) -> NS01N | H48: 6.93 | I48: =ROUND(H48 * (1 + VAT), 2) -> 7.9 | J48: 2.65 | K48: =ROUND(J48 * (1 + VAT), 2) -> 3.02

Sheet Nightsave Small Munic inc
G1: Back to menu
A2: Municiple | G2: Nightsave Urban Small tariff | R2: Local authority | AF2: =SUM(#REF!,#REF!,#REF!,#REF!,#REF!,#REF!,#REF!,#REF!,#REF!) ->  | AG2: check value
J4: Active energy charge [c/kWh] | N4: Energy demand charge [R/kVA/m] | R4: Transmission network charges [R/kVA/m]
H5: Transmission zone | J5: High demand season [Jun - Aug] | L5: Low demand season [Sep - May] | N5: High demand season [Jun - Aug] | P5: Low demand season [Sep - May]
I6: Voltage
A7: Tariff | B7: Tariff nameBillcode | C7: Tx zone | D7: Voltage | E7: Billcode | K7: VAT incl | M7: VAT incl | O7: VAT incl | Q7: VAT incl | S7: VAT incl
A8: Nightsave Small | B8: NS | C8: 0 | D8: 1 | E8: =B8&C8&D8&IF($A$2="Non-municipal","N",IF($A$2="Municiple","Y","error")) -> NS01Y | H8: ≤ 300km | I8: < 500V | J8: 68.87 | K8: =ROUND(J8 * (1 + VAT), 2) -> 78.51 | L8: 53.55 | M8: =ROUND(L8 * (1 + VAT), 2) -> 61.05 | N8: 144.4 | O8: =ROUND(N8 * (1 + VAT), 2) -> 164.62 | P8: 18.62 | Q8: =ROUND(P8 * (1 + VAT), 2) -> 21.23 | R8: 7.77 | S8: =ROUND(R8 * (1 + VAT), 2) -> 8.86
A9: Nightsave Small | B9: NS | C9: 0 | D9: 2 | E9: =B9&C9&D9&IF($A$2="Non-municipal","N",IF($A$2="Municiple","Y","error")) -> NS02Y | I9: ≥ 500V & < 66kV | J9: 65.22 | K9: 74.35 | L9: 50.9 | M9: 58.03 | N9: 139.76 | O9: 159.33 | P9: 17.98 | Q9: 20.5 | R9: 7.09 | S9: 8.08
A10: Nightsave Small | B10: NS | C10: 0 | D10: 3 | E10: NS03Y | I10: ≥ 66kV & ≤ 132kV | J10: 64.74 | K10: 73.8 | L10: 50.27 | M10: 57.31 | N10: 134.63 | O10: 153.48 | P10: 17.31 | Q10: 19.73 | R10: 6.9 | S10: 7.87
A11: Nightsave Small | B11: NS | C11: 0 | D11: 4 | E11: NS04Y | I11: > 132kV* | J11: 60.56 | K11: 69.04 | L11: 47.09 | M11: 53.68 | N11: 129.91 | O11: 148.1 | P11: 16.71 | Q11: 19.05 | R11: 8.73 | S11: 9.95
A12: Nightsave Small | B12: NS | C12: 1 | D12: 1 | E12: NS11Y | H12: > 300km and ≤ 600km | I12: < 500V | J12: 69.77 | K12: 79.54 | L12: 54.13 | M12: 61.71 | N12: 145.89 | O12: 166.31 | P12: 18.77 | Q12: 21.4 | R12: 7.81 | S12: 8.9
A13: Nightsave Small | B13: NS | C13: 1 | D13: 2 | E13: NS12Y | I13: ≥ 500V & < 66kV | J13: 66.57 | K13: 75.89 | L13: 51.93 | M13: 59.2 | N13: 141.19 | O13: 160.96 | P13: 18.15 | Q13: 20.69 | R13: 7.16 | S13: 8.16
A14: Nightsave Small | B14: NS | C14: 1 | D14: 3 | E14: NS13Y | I14: ≥ 66kV & ≤ 132kV | J14: 66.09 | K14: 75.34 | L14: 51.32 | M14: 58.5 | N14: 136.02 | O14: 155.06 | P14: 17.49 | Q14: 19.94 | R14: 6.95 | S14: 7.92
A15: Nightsave Small | B15: NS | C15: 1 | D15: 4 | E15: NS14Y | I15: > 132kV* | J15: 61.81 | K15: 70.46 | L15: 48.05 | M15: 54.78 | N15: 131.21 | O15: 149.58 | P15: 16.88 | Q15: 19.24 | R15: 8.81 | S15: 10.04
A16: Nightsave Small | B16: NS | C16: 2 | D16: 1 | E16: NS21Y | H16: > 600km and ≤ 900km | I16: < 500V | J16: 70.44 | K16: 80.3 | L16: 54.65 | M16: 62.3 | N16: 147.34 | O16: 167.97 | P16: 18.94 | Q16: 21.59 | R16: 7.91 | S16: 9.02
A17: Nightsave Small | B17: NS | C17: 2 | D17: 2 | E17: NS22Y | I17: ≥ 500V & < 66kV | J17: 67.24 | K17: 76.65 | L17: 52.47 | M17: 59.82 | N17: 142.6 | O17: 162.56 | P17: 18.34 | Q17: 20.91 | R17: 7.22 | S17: 8.23
A18: Nightsave Small | B18: NS | C18: 2 | D18: 3 | E18: NS23Y | I18: ≥ 66kV & ≤ 132kV | J18: 66.74 | K18: 76.08 | L18: 51.84 | M18: 59.1 | N18: 137.38 | O18: 156.61 | P18: 17.67 | Q18: 20.14 | R18: 7.01 | S18: 7.99
A19: Nightsave Small | B19: NS | C19: 2 | D19: 4 | E19: NS24Y | I19: > 132kV* | J19: 62.44 | K19: 71.18 | L19: 48.54 | M19: 55.34 | N19: 132.51 | O19: 151.06 | P19: 17.04 | Q19: 19.43 | R19: 8.93 | S19: 10.18
A20: Nightsave Small | B20: NS | C20: 3 | D20: 1 | E20: NS31Y | H20: > 900km | I20: < 500V | J20: 71.19 | K20: 81.16 | L20: 55.2 | M20: 62.93 | N20: 148.83 | O20: 169.67 | P20: 19.13 | Q20: 21.81 | R20: 7.95 | S20: 9.06
A21: Nightsave Small | B21: NS | C21: 3 | D21: 2 | E21: NS32Y | I21: ≥ 500V & < 66kV | J21: 67.91 | K21: 77.42 | L21: 52.98 | M21: 60.4 | N21: 144.01 | O21: 164.17 | P21: 18.52 | Q21: 21.11 | R21: 7.29 | S21: 8.31
A22: Nightsave Small | B22: NS | C22: 3 | D22: 3 | E22: NS33Y | I22: ≥ 66kV & ≤ 132kV | J22: 67.41 | K22: 76.85 | L22: 52.34 | M22: 59.67 | N22: 138.77 | O22: 158.2 | P22: 17.85 | Q22: 20.35 | R22: 7.06 | S22: 8.05
A23: Nightsave Small | B23: NS | C23: 3 | D23: 4 | E23: NS34Y | I23: > 132kV* | J23: 63.11 | K23: 71.95 | L23: 49.08 | M23: 55.95 | N23: 133.9 | O23: 152.65 | P23: 17.24 | Q23: 19.65 | R23: 9 | S23: 10.26
I24: * 132 kV or Transmission connected
H26: Distribution network charges
J27: Network capacity charge [R/kVA/m] | L27: Network demand charge [R/kVA/m] | N27: Urban low voltage subsidy charge [R/kVA/m]
H28: Voltage | Q28: Voltage | R28: Ancillary service charge [c/kWh]
A29: Tariff | B29: Tariff nameBillcode | C29: Tx zone | D29: Voltage | E29: Billcode | K29: VAT incl | M29: VAT incl | O29: VAT incl | S29: VAT incl
A30: Nightsave Small | B30: NS | C30: 0 | D30: 1 | E30: =B30&C30&D30&IF($A$2="Non-municipal","N",IF($A$2="Municiple","Y","error")) -> NS01Y | H30: < 500V | J30: 15.49 | K30: =ROUND(J30 * (1 + VAT), 2) -> 17.66 | L30: 29.36 | M30: =ROUND(L30 * (1 + VAT), 2) -> 33.47 | N30: 0 | O30: =ROUND(N30 * (1 + VAT), 2) -> 0 | Q30: < 500V | R30: 0.36 | S30: =ROUND(R30 * (1 + VAT), 2) -> 0.41
A31: Nightsave Small | B31: NS | C31: 0 | D31: 2 | E31: =B31&C31&D31&IF($A$2="Non-municipal","N",IF($A$2="Municiple","Y","error")) -> NS02Y | H31: ≥ 500V & < 66kV | J31: 14.21 | K31: =ROUND(J31 * (1 + VAT), 2) -> 16.2 | L31: 26.93 | M31: =ROUND(L31 * (1 + VAT), 2) -> 30.7 | N31: 0 | O31: =ROUND(N31 * (1 + VAT), 2) -> 0 | Q31: ≥ 500V & < 66kV | R31: 0.35 | S31: =ROUND(R31 * (1 + VAT), 2) -> 0.4
A32: Nightsave Small | B32: NS | C32: 0 | D32: 3 | E32: NS03Y | H32: ≥ 66kV & ≤ 132kV | J32: 5.08 | K32: =ROUND(J32 * (1 + VAT), 2) -> 5.79 | L32: 9.39 | M32: =ROUND(L32 * (1 + VAT), 2) -> 10.7 | N32: 12.44 | O32: =ROUND(N32 * (1 + VAT), 2) -> 14.18 | Q32: ≥ 66kV & ≤ 132kV | R32: 0.33 | S32: =ROUND(R32 * (1 + VAT), 2) -> 0.38
A33: Nightsave Small | B33: NS | C33: 0 | D33: 4 | E33: NS04Y | H33: > 132kV / Transmission connected | J33: 0 | K33: =ROUND(J33 * (1 + VAT), 2) -> 0 | L33: 0 | M33: =ROUND(L33 * (1 + VAT), 2) -> 0 | N33: 12.44 | O33: =ROUND(N33 * (1 + VAT), 2) -> 14.18 | Q33: > 132kV* | R33: 0.31 | S33: =ROUND(R33 * (1 + VAT), 2) -> 0.35
Q34: * 132 kV or Transmission connected
H36: Customer categories | I36: Service charge [R/account/day] | K36: Administration charge [R/POD/day]
A38: Tariff | B38: Tariff nameBillcode | C38: Tx zone | D38: Voltage | E38: Billcode | J38: VAT incl | L38: VAT incl
A39: Nightsave Small | B39: NS | C39: 0 | D39: 1 | E39: =B39&C39&D39&IF($A$2="Non-municipal","N",IF($A$2="Municiple","Y","error")) -> NS01Y | H39: ≤ 100 kVA | I39: 12.58 | J39: =ROUND(I39 * (1 + VAT), 2) -> 14.34 | K39: 2.76 | L39: =ROUND(K39 * (1 + VAT), 2) -> 3.15
A40: Nightsave Small | B40: NS | C40: 0 | D40: 1 | E40: =B40&C40&D40&IF($A$2="Non-municipal","N",IF($A$2="Municiple","Y","error")) -> NS01Y | H40: > 100 kVA & ≤ 500 kVA | I40: 57.49 | J40: =ROUND(I40 * (1 + VAT), 2) -> 65.54 | K40: 16.11 | L40: =ROUND(K40 * (1 + VAT), 2) -> 18.37
A41: Nightsave Small | B41: NS | C41: 0 | D41: 1 | E41: =B41&C41&D41&IF($A$2="Non-municipal","N",IF($A$2="Municiple","Y","error")) -> NS01Y | H41: > 500 kVA & ≤ 1 MVA | I41: 176.93 | J41: =ROUND(I41 * (1 + VAT), 2) -> 201.7 | K41: 32.03 | L41: =ROUND(K41 * (1 + VAT), 2) -> 36.51
A42: Nightsave Small | B42: NS | C42: 0 | D42: 1 | E42: =B42&C42&D42&IF($A$2="Non-municipal","N",IF($A$2="Municiple","Y","error")) -> NS01Y | H42: Key customers | I42: 3467.18 | J42: =ROUND(I42 * (1 + VAT), 2) -> 3952.59 | K42: 110.73 | L42: =ROUND(K42 * (1 + VAT), 2) -> 126.23
H44: Electrification and rural network subsidy charge [c/kWh]
A47: Tariff | B47: Tariff nameBillcode | C47: Tx zone | D47: Voltage | E47: Billcode | I47: VAT incl
A48: Nightsave Small | B48: NS | C48: 0 | D48: 1 | E48: =B48&C48&D48&IF($A$2="Non-municipal","N",IF($A$2="Municiple","Y","error")) -> NS01Y | H48: 6.89 | I48: =ROUND(H48 * (1 + VAT), 2) -> 7.85

Sheet Megaflex inc
G1: Back to menu
A2: Non-municipal | G2: Megaflex tariff | R2: Non-local authority | AF2: =SUM(J8:T23,V8:V23,#REF!,#REF!,#REF!,#REF!,H26:J26,L26) ->  | AG2: check value
J4: Active energy charge [c/kWh] | V4: Transmission network charges [R/kVA/m]
H5: Transmission zone | J5: High demand season [Jun - Aug] | P5: Low demand season [Sep - May]
I6: Voltage | J6: Peak | L6: Standard | N6: Off Peak | P6: Peak | R6: Standard | T6: Off Peak
A7: Tariff | B7: Tariff nameBillcode | C7: Tx zone | D7: Voltage | E7: Billcode | K7: VAT incl | M7: VAT incl | O7: VAT incl | Q7: VAT incl | S7: VAT incl | U7: VAT incl | W7: VAT incl
A8: Megaflex | B8: Me | C8: 0 | D8: 1 | E8: =B8&C8&D8&IF($A$2="Non-municipal","N",IF($A$2="Municiple","Y","error")) -> Me01N | H8: ≤ 300km | I8: < 500V | J8: 272.34 | K8: =ROUND(J8 * (1 + VAT), 2) -> 310.47 | L8: 82.86 | M8: =ROUND(L8 * (1 + VAT), 2) -> 94.46 | N8: 45.24 | O8: =ROUND(N8 * (1 + VAT), 2) -> 51.57 | P8: 89.18 | Q8: =ROUND(P8 * (1 + VAT), 2) -> 101.67 | R8: 61.54 | S8: =ROUND(R8 * (1 + VAT), 2) -> 70.16 | T8: 39.23 | U8: =ROUND(T8 * (1 + VAT), 2) -> 44.72 | V8: 7.79 | W8: =ROUND(V8 * (1 + VAT), 2) -> 8.88
A9: Megaflex | B9: Me | C9: 0 | D9: 2 | E9: =B9&C9&D9&IF($A$2="Non-municipal","N",IF($A$2="Municiple","Y","error")) -> Me02N | I9: ≥ 500V & < 66kV | J9: 268.06 | K9: 305.59 | L9: 81.21 | M9: 92.58 | N9: 44.1 | O9: 50.27 | P9: 87.44 | Q9: 99.68 | R9: 60.19 | S9: 68.62 | T9: 38.18 | U9: 43.53 | V9: 7.12 | W9: 8.12
A10: Megaflex | B10: Me | C10: 0 | D10: 3 | E10: Me03N | I10: ≥ 66kV & ≤ 132kV | J10: 259.58 | K10: 295.92 | L10: 78.63 | M10: 89.64 | N10: 42.71 | O10: 48.69 | P10: 84.69 | Q10: 96.55 | R10: 58.28 | S10: 66.44 | T10: 36.98 | U10: 42.16 | V10: 6.94 | W10: 7.91
A11: Megaflex | B11: Me | C11: 0 | D11: 4 | E11: Me04N | I11: > 132kV* | J11: 244.65 | K11: 278.9 | L11: 74.11 | M11: 84.49 | N11: 40.25 | O11: 45.89 | P11: 79.82 | Q11: 90.99 | R11: 54.92 | S11: 62.61 | T11: 34.85 | U11: 39.73 | V11: 8.76 | W11: 9.99
A12: Megaflex | B12: Me | C12: 1 | D12: 1 | E12: Me11N | H12: > 300km and ≤ 600km | I12: < 500V | J12: 274.56 | K12: 313 | L12: 83.19 | M12: 94.84 | N12: 45.17 | O12: 51.49 | P12: 89.57 | Q12: 102.11 | R12: 61.66 | S12: 70.29 | T12: 39.12 | U12: 44.6 | V12: 7.85 | W12: 8.95
A13: Megaflex | B13: Me | C13: 1 | D13: 2 | E13: Me12N | I13: ≥ 500V & < 66kV | J13: 270.74 | K13: 308.64 | L13: 82.02 | M13: 93.5 | N13: 44.54 | O13: 50.78 | P13: 88.33 | Q13: 100.7 | R13: 60.78 | S13: 69.29 | T13: 38.56 | U13: 43.96 | V13: 7.19 | W13: 8.2
A14: Megaflex | B14: Me | C14: 1 | D14: 3 | E14: Me13N | I14: ≥ 66kV & ≤ 132kV | J14: 262.13 | K14: 298.83 | L14: 79.4 | M14: 90.52 | N14: 43.11 | O14: 49.15 | P14: 85.51 | Q14: 97.48 | R14: 58.85 | S14: 67.09 | T14: 37.33 | U14: 42.56 | V14: 6.99 | W14: 7.97
A15: Megaflex | B15: Me | C15: 1 | D15: 4 | E15: Me14N | I15: > 132kV* | J15: 247.09 | K15: 281.68 | L15: 74.86 | M15: 85.34 | N15: 40.63 | O15: 46.32 | P15: 80.59 | Q15: 91.87 | R15: 55.47 | S15: 63.24 | T15: 35.18 | U15: 40.11 | V15: 8.85 | W15: 10.09
A16: Megaflex | B16: Me | C16: 2 | D16: 1 | E16: Me21N | H16: > 600km and ≤ 900km | I16: < 500V | J16: 277.3 | K16: 316.12 | L16: 84 | M16: 95.76 | N16: 45.6 | O16: 51.98 | P16: 90.46 | Q16: 103.12 | R16: 62.26 | S16: 70.98 | T16: 39.48 | U16: 45.01 | V16: 7.95 | W16: 9.06
A17: Megaflex | B17: Me | C17: 2 | D17: 2 | E17: Me22N | I17: ≥ 500V & < 66kV | J17: 273.46 | K17: 311.74 | L17: 82.85 | M17: 94.45 | N17: 44.99 | O17: 51.29 | P17: 89.2 | Q17: 101.69 | R17: 61.4 | S17: 70 | T17: 38.95 | U17: 44.4 | V17: 7.25 | W17: 8.27
A18: Megaflex | B18: Me | C18: 2 | D18: 3 | E18: Me23N | I18: ≥ 66kV & ≤ 132kV | J18: 264.8 | K18: 301.87 | L18: 80.22 | M18: 91.45 | N18: 43.55 | O18: 49.65 | P18: 86.37 | Q18: 98.46 | R18: 59.45 | S18: 67.77 | T18: 37.71 | U18: 42.99 | V18: 7.03 | W18: 8.01
A19: Megaflex | B19: Me | C19: 2 | D19: 4 | E19: Me24N | I19: > 132kV* | J19: 249.59 | K19: 284.53 | L19: 75.6 | M19: 86.18 | N19: 41.07 | O19: 46.82 | P19: 81.42 | Q19: 92.82 | R19: 56.03 | S19: 63.87 | T19: 35.56 | U19: 40.54 | V19: 8.97 | W19: 10.23
A20: Megaflex | B20: Me | C20: 3 | D20: 1 | E20: Me31N | H20: > 900km | I20: < 500V | J20: 280.09 | K20: 319.3 | L20: 84.87 | M20: 96.75 | N20: 46.08 | O20: 52.53 | P20: 91.38 | Q20: 104.17 | R20: 62.88 | S20: 71.68 | T20: 39.91 | U20: 45.5 | V20: 7.98 | W20: 9.1
A21: Megaflex | B21: Me | C21: 3 | D21: 2 | E21: Me32N | I21: ≥ 500V & < 66kV | J21: 276.18 | K21: 314.85 | L21: 83.66 | M21: 95.37 | N21: 45.41 | O21: 51.77 | P21: 90.08 | Q21: 102.69 | R21: 61.99 | S21: 70.67 | T21: 39.33 | U21: 44.84 | V21: 7.34 | W21: 8.37
A22: Megaflex | B22: Me | C22: 3 | D22: 3 | E22: Me33N | I22: ≥ 66kV & ≤ 132kV | J22: 267.46 | K22: 304.9 | L22: 81.02 | M22: 92.36 | N22: 43.99 | O22: 50.15 | P22: 87.24 | Q22: 99.45 | R22: 60.05 | S22: 68.46 | T22: 38.09 | U22: 43.42 | V22: 7.09 | W22: 8.08
A23: Megaflex | B23: Me | C23: 3 | D23: 4 | E23: Me34N | I23: > 132kV* | J23: 252.02 | K23: 287.3 | L23: 76.38 | M23: 87.07 | N23: 41.5 | O23: 47.31 | P23: 82.26 | Q23: 93.78 | R23: 56.63 | S23: 64.56 | T23: 35.95 | U23: 40.98 | V23: 9.04 | W23: 10.31
I24: * 132 kV or Transmission connected
H26: Distribution network charges
J27: Network capacity charge [R/kVA/m] | L27: Network demand charge [R/kVA/m] | N27: Urban low voltage subsidy charge [R/kVA/m]
H28: Voltage | Q28: Voltage | S28: Ancillary service charge [c/kWh]
A29: Tariff | B29: Tariff nameBillcode | C29: Tx zone | D29: Voltage | E29: Billcode | K29: VAT incl | M29: VAT incl | O29: VAT incl | T29: VAT incl
A30: Megaflex | B30: Me | C30: 0 | D30: 1 | E30: =B30&C30&D30&IF($A$2="Non-municipal","N",IF($A$2="Municiple","Y","error")) -> Me01N | H30: < 500V | J30: 15.48 | K30: =ROUND(J30 * (1 + VAT), 2) -> 17.65 | L30: 29.35 | M30: =ROUND(L30 * (1 + VAT), 2) -> 33.46 | N30: 0 | O30: =ROUND(N30 * (1 + VAT), 2) -> 0 | Q30: < 500V | S30: 0.36 | T30: =ROUND(S30 * (1 + VAT), 2) -> 0.41
A31: Megaflex | B31: Me | C31: 0 | D31: 2 | E31: =B31&C31&D31&IF($A$2="Non-municipal","N",IF($A$2="Municiple","Y","error")) -> Me02N | H31: ≥ 500V & < 66kV | J31: 14.2 | K31: =ROUND(J31 * (1 + VAT), 2) -> 16.19 | L31: 26.93 | M31: =ROUND(L31 * (1 + VAT), 2) -> 30.7 | N31: 0 | O31: =ROUND(N31 * (1 + VAT), 2) -> 0 | Q31: ≥ 500V & < 66kV | S31: 0.35 | T31: =ROUND(S31 * (1 + VAT), 2) -> 0.4
A32: Megaflex | B32: Me | C32: 0 | D32: 3 | E32: Me03N | H32: ≥ 66kV & ≤ 132kV | J32: 5.07 | K32: =ROUND(J32 * (1 + VAT), 2) -> 5.78 | L32: 9.39 | M32: =ROUND(L32 * (1 + VAT), 2) -> 10.7 | N32: 12.5 | O32: =ROUND(N32 * (1 + VAT), 2) -> 14.25 | Q32: ≥ 66kV & ≤ 132kV | S32: 0.33 | T32: =ROUND(S32 * (1 + VAT), 2) -> 0.38
A33: Megaflex | B33: Me | C33: 0 | D33: 4 | E33: Me04N | H33: > 132kV / Transmission connected | J33: 0 | K33: =ROUND(J33 * (1 + VAT), 2) -> 0 | L33: 0 | M33: =ROUND(L33 * (1 + VAT), 2) -> 0 | N33: 12.5 | O33: =ROUND(N33 * (1 + VAT), 2) -> 14.25 | Q33: > 132kV / Transmission connected | S33: 0.31 | T33: =ROUND(S33 * (1 + VAT), 2) -> 0.35
H36: Customer categories | J36: Service charge [R/account/day] | L36: Administration charge [R/POD/day] | Q36: Reactive energy charge [c/kVArh]
Q37: High season | S37: Low season
A38: Tariff | B38: Tariff nameBillcode | C38: Tx zone | D38: Voltage | E38: Billcode | K38: VAT incl | M38: VAT incl | R38: VAT incl | T38: VAT incl
A39: Megaflex | B39: Me | C39: 0 | D39: 1 | E39: =B39&C39&D39&IF($A$2="Non-municipal","N",IF($A$2="Municiple","Y","error")) -> Me01N | H39: > 1 MVA | J39: 177.75 | K39: =ROUND(J39 * (1 + VAT), 2) -> 202.64 | L39: 80.11 | M39: =ROUND(L39 * (1 + VAT), 2) -> 91.33 | Q39: 12.52 | R39: =ROUND(Q39 * (1 + VAT), 2) -> 14.27 | S39: 0 | T39: =ROUND(S39 * (1 + VAT), 2) -> 0
A40: Megaflex | B40: Me | C40: 0 | D40: 1 | E40: =B40&C40&D40&IF($A$2="Non-municipal","N",IF($A$2="Municiple","Y","error")) -> Me01N | H40: Key customers | J40: 3483.16 | K40: =ROUND(J40 * (1 + VAT), 2) -> 3970.8 | L40: 111.24 | M40: =ROUND(L40 * (1 + VAT), 2) -> 126.81
H42: Electrification and rural network subsidy charge [c/kWh] | J42: Affordability subsidy charge [c/kWh] Only payable by non-local authority tariffs
A45: Tariff | B45: Tariff nameBillcode | C45: Tx zone | D45: Voltage | E45: Billcode | I45: VAT incl | K45: VAT incl
A46: Megaflex | B46: Me | C46: 0 | D46: 1 | E46: =B46&C46&D46&IF($A$2="Non-municipal","N",IF($A$2="Municiple","Y","error")) -> Me01N | H46: 6.93 | I46: =ROUND(H46 * (1 + VAT), 2) -> 7.9 | J46: 2.65 | K46: =ROUND(J46 * (1 + VAT), 2) -> 3.02

Sheet Megaflex Munic inc
G1: Back to menu
A2: Municiple | G2: Megaflex tariff | R2: Local authority | AF2: =SUM(J8:T23,V8:V23,#REF!,#REF!,#REF!,#REF!,H26:J26,L26) ->  | AG2: check value
J4: Active energy charge [c/kWh] | V4: Transmission network charges [R/kVA/m]
H5: Transmission zone | J5: High demand season [Jun - Aug] | P5: Low demand season [Sep - May]
I6: Voltage | J6: Peak | L6: Standard | N6: Off Peak | P6: Peak | R6: Standard | T6: Off Peak
A7: Tariff | B7: Tariff nameBillcode | C7: Tx zone | D7: Voltage | E7: Billcode | K7: VAT incl | M7: VAT incl | O7: VAT incl | Q7: VAT incl | S7: VAT incl | U7: VAT incl | W7: VAT incl
A8: Megaflex | B8: Me | C8: 0 | D8: 1 | E8: =B8&C8&D8&IF($A$2="Non-municipal","N",IF($A$2="Municiple","Y","error")) -> Me01Y | H8: ≤ 300km | I8: < 500V | J8: 278.85 | K8: =ROUND(J8 * (1 + VAT), 2) -> 317.89 | L8: 84.85 | M8: =ROUND(L8 * (1 + VAT), 2) -> 96.73 | N8: 46.3 | O8: =ROUND(N8 * (1 + VAT), 2) -> 52.78 | P8: 91.3 | Q8: =ROUND(P8 * (1 + VAT), 2) -> 104.08 | R8: 63 | S8: =ROUND(R8 * (1 + VAT), 2) -> 71.82 | T8: 40.16 | U8: =ROUND(T8 * (1 + VAT), 2) -> 45.78 | V8: 7.77 | W8: =ROUND(V8 * (1 + VAT), 2) -> 8.86
A9: Megaflex | B9: Me | C9: 0 | D9: 2 | E9: =B9&C9&D9&IF($A$2="Non-municipal","N",IF($A$2="Municiple","Y","error")) -> Me02Y | I9: ≥ 500V & < 66kV | J9: 274.45 | K9: 312.87 | L9: 83.15 | M9: 94.79 | N9: 45.15 | O9: 51.47 | P9: 89.53 | Q9: 102.06 | R9: 61.62 | S9: 70.25 | T9: 39.1 | U9: 44.57 | V9: 7.09 | W9: 8.08
A10: Megaflex | B10: Me | C10: 0 | D10: 3 | E10: Me03Y | I10: ≥ 66kV & ≤ 132kV | J10: 265.79 | K10: 303 | L10: 80.51 | M10: 91.78 | N10: 43.72 | O10: 49.84 | P10: 86.7 | Q10: 98.84 | R10: 59.68 | S10: 68.04 | T10: 37.85 | U10: 43.15 | V10: 6.9 | W10: 7.87
A11: Megaflex | B11: Me | C11: 0 | D11: 4 | E11: Me04Y | I11: > 132kV* | J11: 250.49 | K11: 285.56 | L11: 75.88 | M11: 86.5 | N11: 41.2 | O11: 46.97 | P11: 81.71 | Q11: 93.15 | R11: 56.24 | S11: 64.11 | T11: 35.68 | U11: 40.68 | V11: 8.73 | W11: 9.95
A12: Megaflex | B12: Me | C12: 1 | D12: 1 | E12: Me11Y | H12: > 300km and ≤ 600km | I12: < 500V | J12: 281.12 | K12: 320.48 | L12: 85.17 | M12: 97.09 | N12: 46.24 | O12: 52.71 | P12: 91.71 | Q12: 104.55 | R12: 63.13 | S12: 71.97 | T12: 40.05 | U12: 45.66 | V12: 7.81 | W12: 8.9
A13: Megaflex | B13: Me | C13: 1 | D13: 2 | E13: Me12Y | I13: ≥ 500V & < 66kV | J13: 277.19 | K13: 316 | L13: 83.97 | M13: 95.73 | N13: 45.6 | O13: 51.98 | P13: 90.43 | Q13: 103.09 | R13: 62.24 | S13: 70.95 | T13: 39.48 | U13: 45.01 | V13: 7.16 | W13: 8.16
A14: Megaflex | B14: Me | C14: 1 | D14: 3 | E14: Me13Y | I14: ≥ 66kV & ≤ 132kV | J14: 268.39 | K14: 305.96 | L14: 81.3 | M14: 92.68 | N14: 44.14 | O14: 50.32 | P14: 87.55 | Q14: 99.81 | R14: 60.25 | S14: 68.69 | T14: 38.21 | U14: 43.56 | V14: 6.95 | W14: 7.92
A15: Megaflex | B15: Me | C15: 1 | D15: 4 | E15: Me14Y | I15: > 132kV* | J15: 252.99 | K15: 288.41 | L15: 76.65 | M15: 87.38 | N15: 41.61 | O15: 47.44 | P15: 82.51 | Q15: 94.06 | R15: 56.8 | S15: 64.75 | T15: 36.03 | U15: 41.07 | V15: 8.81 | W15: 10.04
A16: Megaflex | B16: Me | C16: 2 | D16: 1 | E16: Me21Y | H16: > 600km and ≤ 900km | I16: < 500V | J16: 283.92 | K16: 323.67 | L16: 86.01 | M16: 98.05 | N16: 46.7 | O16: 53.24 | P16: 92.61 | Q16: 105.58 | R16: 63.75 | S16: 72.68 | T16: 40.44 | U16: 46.1 | V16: 7.91 | W16: 9.02
A17: Megaflex | B17: Me | C17: 2 | D17: 2 | E17: Me22Y | I17: ≥ 500V & < 66kV | J17: 279.98 | K17: 319.18 | L17: 84.81 | M17: 96.68 | N17: 46.06 | O17: 52.51 | P17: 91.35 | Q17: 104.14 | R17: 62.84 | S17: 71.64 | T17: 39.88 | U17: 45.46 | V17: 7.22 | W17: 8.23
A18: Megaflex | B18: Me | C18: 2 | D18: 3 | E18: Me23Y | I18: ≥ 66kV & ≤ 132kV | J18: 271.12 | K18: 309.08 | L18: 82.12 | M18: 93.62 | N18: 44.59 | O18: 50.83 | P18: 88.42 | Q18: 100.8 | R18: 60.85 | S18: 69.37 | T18: 38.6 | U18: 44 | V18: 7.01 | W18: 7.99
A19: Megaflex | B19: Me | C19: 2 | D19: 4 | E19: Me24Y | I19: > 132kV* | J19: 255.53 | K19: 291.3 | L19: 77.42 | M19: 88.26 | N19: 42.03 | O19: 47.91 | P19: 83.36 | Q19: 95.03 | R19: 57.37 | S19: 65.4 | T19: 36.4 | U19: 41.5 | V19: 8.93 | W19: 10.18
A20: Megaflex | B20: Me | C20: 3 | D20: 1 | E20: Me31Y | H20: > 900km | I20: < 500V | J20: 286.77 | K20: 326.92 | L20: 86.88 | M20: 99.04 | N20: 47.18 | O20: 53.79 | P20: 93.55 | Q20: 106.65 | R20: 64.38 | S20: 73.39 | T20: 40.85 | U20: 46.57 | V20: 7.95 | W20: 9.06
A21: Megaflex | B21: Me | C21: 3 | D21: 2 | E21: Me32Y | I21: ≥ 500V & < 66kV | J21: 282.78 | K21: 322.37 | L21: 85.65 | M21: 97.64 | N21: 46.52 | O21: 53.03 | P21: 92.23 | Q21: 105.14 | R21: 63.48 | S21: 72.37 | T21: 40.26 | U21: 45.9 | V21: 7.29 | W21: 8.31
A22: Megaflex | B22: Me | C22: 3 | D22: 3 | E22: Me33Y | I22: ≥ 66kV & ≤ 132kV | J22: 273.85 | K22: 312.19 | L22: 82.96 | M22: 94.57 | N22: 45.05 | O22: 51.36 | P22: 89.32 | Q22: 101.82 | R22: 61.47 | S22: 70.08 | T22: 39 | U22: 44.46 | V22: 7.06 | W22: 8.05
A23: Megaflex | B23: Me | C23: 3 | D23: 4 | E23: Me34Y | I23: > 132kV* | J23: 258.04 | K23: 294.17 | L23: 78.21 | M23: 89.16 | N23: 42.5 | O23: 48.45 | P23: 84.22 | Q23: 96.01 | R23: 57.97 | S23: 66.09 | T23: 36.8 | U23: 41.95 | V23: 9 | W23: 10.26
I24: * 132 kV or Transmission connected
H26: Distribution network charges
J27: Network capacity charge [R/kVA/m] | L27: Network demand charge [R/kVA/m] | N27: Urban low voltage subsidy charge [R/kVA/m]
H28: Voltage | Q28: Voltage | S28: Ancillary service charge [c/kWh]
A29: Tariff | B29: Tariff nameBillcode | C29: Tx zone | D29: Voltage | E29: Billcode | K29: VAT incl | M29: VAT incl | O29: VAT incl | T29: VAT incl
A30: Megaflex | B30: Me | C30: 0 | D30: 1 | E30: =B30&C30&D30&IF($A$2="Non-municipal","N",IF($A$2="Municiple","Y","error")) -> Me01Y | H30: < 500V | J30: 15.49 | K30: =ROUND(J30 * (1 + VAT), 2) -> 17.66 | L30: 29.36 | M30: =ROUND(L30 * (1 + VAT), 2) -> 33.47 | N30: 0 | O30: =ROUND(N30 * (1 + VAT), 2) -> 0 | Q30: < 500V | S30: 0.36 | T30: =ROUND(S30 * (1 + VAT), 2) -> 0.41
A31: Megaflex | B31: Me | C31: 0 | D31: 2 | E31: =B31&C31&D31&IF($A$2="Non-municipal","N",IF($A$2="Municiple","Y","error")) -> Me02Y | H31: ≥ 500V & < 66kV | J31: 14.21 | K31: =ROUND(J31 * (1 + VAT), 2) -> 16.2 | L31: 26.93 | M31: =ROUND(L31 * (1 + VAT), 2) -> 30.7 | N31: 0 | O31: =ROUND(N31 * (1 + VAT), 2) -> 0 | Q31: ≥ 500V & < 66kV | S31: 0.35 | T31: =ROUND(S31 * (1 + VAT), 2) -> 0.4
A32: Megaflex | B32: Me | C32: 0 | D32: 3 | E32: Me03Y | H32: ≥ 66kV & ≤ 132kV | J32: 5.08 | K32: =ROUND(J32 * (1 + VAT), 2) -> 5.79 | L32: 9.39 | M32: =ROUND(L32 * (1 + VAT), 2) -> 10.7 | N32: 12.44 | O32: =ROUND(N32 * (1 + VAT), 2) -> 14.18 | Q32: ≥ 66kV & ≤ 132kV | S32: 0.33 | T32: =ROUND(S32 * (1 + VAT), 2) -> 0.38
A33: Megaflex | B33: Me | C33: 0 | D33: 4 | E33: Me04Y | H33: > 132kV / Transmission connected | J33: 0 | K33: =ROUND(J33 * (1 + VAT), 2) -> 0 | L33: 0 | M33: =ROUND(L33 * (1 + VAT), 2) -> 0 | N33: 12.44 | O33: =ROUND(N33 * (1 + VAT), 2) -> 14.18 | Q33: > 132kV / Transmission connected | S33: 0.31 | T33: =ROUND(S33 * (1 + VAT), 2) -> 0.35
H36: Customer categories | J36: Service charge [R/account/day] | L36: Administration charge [R/POD/day] | Q36: Reactive energy charge [c/kVArh]
Q37: High season | S37: Low season
A38: Tariff | B38: Tariff nameBillcode | C38: Tx zone | D38: Voltage | E38: Billcode | K38: VAT incl | M38: VAT incl | R38: VAT incl | T38: VAT incl
A39: Megaflex | B39: Me | C39: 0 | D39: 1 | E39: =B39&C39&D39&IF($A$2="Non-municipal","N",IF($A$2="Municiple","Y","error")) -> Me01Y | H39: > 1 MVA | J39: 176.93 | K39: =ROUND(J39 * (1 + VAT), 2) -> 201.7 | L39: 79.75 | M39: =ROUND(L39 * (1 + VAT), 2) -> 90.92 | Q39: 12.45 | R39: =ROUND(Q39 * (1 + VAT), 2) -> 14.19 | S39: 0 | T39: =ROUND(S39 * (1 + VAT), 2) -> 0
A40: Megaflex | B40: Me | C40: 0 | D40: 1 | E40: =B40&C40&D40&IF($A$2="Non-municipal","N",IF($A$2="Municiple","Y","error")) -> Me01Y | H40: Key customers | J40: 3467.18 | K40: =ROUND(J40 * (1 + VAT), 2) -> 3952.59 | L40: 110.73 | M40: =ROUND(L40 * (1 + VAT), 2) -> 126.23
H42: Electrification and rural network subsidy charge [c/kWh]
A45: Tariff | B45: Tariff nameBillcode | C45: Tx zone | D45: Voltage | E45: Billcode | I45: VAT incl
A46: Megaflex | B46: Me | C46: 0 | D46: 1 | E46: =B46&C46&D46&IF($A$2="Non-municipal","N",IF($A$2="Municiple","Y","error")) -> Me01Y | H46: 6.89 | I46: =ROUND(H46 * (1 + VAT), 2) -> 7.85

Sheet Megaflex Gen inc
G1: Back to menu
A2: Non-municipal | G2: Megaflex Gen tariff | R2: =Menu!$H$7 -> Non-local authority
J4: Active energy charge for loads [c/kWh] | V4: Transmission network charges [R/kVA/m]
H5: Transmission zone | J5: High demand season [Jun - Aug] | P5: Low demand season [Sep - May]
I6: Voltage | J6: Peak | L6: Standard | N6: Off Peak | P6: Peak | R6: Standard | T6: Off Peak
A7: Tariff | B7: Tariff nameBillcode | C7: Tx zone | D7: Voltage | E7: Billcode | K7: VAT incl | M7: VAT incl | O7: VAT incl | Q7: VAT incl | S7: VAT incl | U7: VAT incl | W7: VAT incl
A8: Genflex urban loads | B8: GU | C8: 0 | D8: 1 | E8: =B8&C8&D8&IF($A$2="Non-municipal","N",IF($A$2="Municiple","Y","error")) -> GU01N | H8: ≤ 300km | I8: < 500V | J8: 272.34 | K8: =ROUND(J8 * (1 + VAT), 2) -> 310.47 | L8: 82.86 | M8: =ROUND(L8 * (1 + VAT), 2) -> 94.46 | N8: 45.24 | O8: =ROUND(N8 * (1 + VAT), 2) -> 51.57 | P8: 89.18 | Q8: =ROUND(P8 * (1 + VAT), 2) -> 101.67 | R8: 61.54 | S8: =ROUND(R8 * (1 + VAT), 2) -> 70.16 | T8: 39.23 | U8: =ROUND(T8 * (1 + VAT), 2) -> 44.72 | V8: 7.79 | W8: =ROUND(V8 * (1 + VAT), 2) -> 8.88
A9: Genflex urban loads | B9: GU | C9: 0 | D9: 2 | E9: =B9&C9&D9&IF($A$2="Non-municipal","N",IF($A$2="Municiple","Y","error")) -> GU02N | I9: ≥ 500V & < 66kV | J9: 268.06 | K9: 305.59 | L9: 81.21 | M9: 92.58 | N9: 44.1 | O9: 50.27 | P9: 87.44 | Q9: 99.68 | R9: 60.19 | S9: 68.62 | T9: 38.18 | U9: 43.53 | V9: 7.12 | W9: 8.12
A10: Genflex urban loads | B10: GU | C10: 0 | D10: 3 | E10: GU03N | I10: ≥ 66kV & ≤ 132kV | J10: 259.58 | K10: 295.92 | L10: 78.63 | M10: 89.64 | N10: 42.71 | O10: 48.69 | P10: 84.69 | Q10: 96.55 | R10: 58.28 | S10: 66.44 | T10: 36.98 | U10: 42.16 | V10: 6.94 | W10: 7.91
A11: Genflex urban loads | B11: GU | C11: 0 | D11: 4 | E11: GU04N | I11: > 132kV* | J11: 244.65 | K11: 278.9 | L11: 74.11 | M11: 84.49 | N11: 40.25 | O11: 45.89 | P11: 79.82 | Q11: 90.99 | R11: 54.92 | S11: 62.61 | T11: 34.85 | U11: 39.73 | V11: 8.76 | W11: 9.99
A12: Genflex urban loads | B12: GU | C12: 1 | D12: 1 | E12: GU11N | H12: > 300km and ≤ 600km | I12: < 500V | J12: 274.56 | K12: 313 | L12: 83.19 | M12: 94.84 | N12: 45.17 | O12: 51.49 | P12: 89.57 | Q12: 102.11 | R12: 61.66 | S12: 70.29 | T12: 39.12 | U12: 44.6 | V12: 7.85 | W12: 8.95
A13: Genflex urban loads | B13: GU | C13: 1 | D13: 2 | E13: GU12N | I13: ≥ 500V & < 66kV | J13: 270.74 | K13: 308.64 | L13: 82.02 | M13: 93.5 | N13: 44.54 | O13: 50.78 | P13: 88.33 | Q13: 100.7 | R13: 60.78 | S13: 69.29 | T13: 38.56 | U13: 43.96 | V13: 7.19 | W13: 8.2
A14: Genflex urban loads | B14: GU | C14: 1 | D14: 3 | E14: GU13N | I14: ≥ 66kV & ≤ 132kV | J14: 262.13 | K14: 298.83 | L14: 79.4 | M14: 90.52 | N14: 43.11 | O14: 49.15 | P14: 85.51 | Q14: 97.48 | R14: 58.85 | S14: 67.09 | T14: 37.33 | U14: 42.56 | V14: 6.99 | W14: 7.97
A15: Genflex urban loads | B15: GU | C15: 1 | D15: 4 | E15: GU14N | I15: > 132kV* | J15: 247.09 | K15: 281.68 | L15: 74.86 | M15: 85.34 | N15: 40.63 | O15: 46.32 | P15: 80.59 | Q15: 91.87 | R15: 55.47 | S15: 63.24 | T15: 35.18 | U15: 40.11 | V15: 8.85 | W15: 10.09
A16: Genflex urban loads | B16: GU | C16: 2 | D16: 1 | E16: GU21N | H16: > 600km and ≤ 900km | I16: < 500V | J16: 277.3 | K16: 316.12 | L16: 84 | M16: 95.76 | N16: 45.6 | O16: 51.98 | P16: 90.46 | Q16: 103.12 | R16: 62.26 | S16: 70.98 | T16: 39.48 | U16: 45.01 | V16: 7.95 | W16: 9.06
A17: Genflex urban loads | B17: GU | C17: 2 | D17: 2 | E17: GU22N | I17: ≥ 500V & < 66kV | J17: 273.46 | K17: 311.74 | L17: 82.85 | M17: 94.45 | N17: 44.99 | O17: 51.29 | P17: 89.2 | Q17: 101.69 | R17: 61.4 | S17: 70 | T17: 38.95 | U17: 44.4 | V17: 7.25 | W17: 8.27
A18: Genflex urban loads | B18: GU | C18: 2 | D18: 3 | E18: GU23N | I18: ≥ 66kV & ≤ 132kV | J18: 264.8 | K18: 301.87 | L18: 80.22 | M18: 91.45 | N18: 43.55 | O18: 49.65 | P18: 86.37 | Q18: 98.46 | R18: 59.45 | S18: 67.77 | T18: 37.71 | U18: 42.99 | V18: 7.03 | W18: 8.01
A19: Genflex urban loads | B19: GU | C19: 2 | D19: 4 | E19: GU24N | I19: > 132kV* | J19: 249.59 | K19: 284.53 | L19: 75.6 | M19: 86.18 | N19: 41.07 | O19: 46.82 | P19: 81.42 | Q19: 92.82 | R19: 56.03 | S19: 63.87 | T19: 35.56 | U19: 40.54 | V19: 8.97 | W19: 10.23
A20: Genflex urban loads | B20: GU | C20: 3 | D20: 1 | E20: GU31N | H20: > 900km | I20: < 500V | J20: 280.09 | K20: 319.3 | L20: 84.87 | M20: 96.75 | N20: 46.08 | O20: 52.53 | P20: 91.38 | Q20: 104.17 | R20: 62.88 | S20: 71.68 | T20: 39.91 | U20: 45.5 | V20: 7.98 | W20: 9.1
A21: Genflex urban loads | B21: GU | C21: 3 | D21: 2 | E21: GU32N | I21: ≥ 500V & < 66kV | J21: 276.18 | K21: 314.85 | L21: 83.66 | M21: 95.37 | N21: 45.41 | O21: 51.77 | P21: 90.08 | Q21: 102.69 | R21: 61.99 | S21: 70.67 | T21: 39.33 | U21: 44.84 | V21: 7.34 | W21: 8.37
A22: Genflex urban loads | B22: GU | C22: 3 | D22: 3 | E22: GU33N | I22: ≥ 66kV & ≤ 132kV | J22: 267.46 | K22: 304.9 | L22: 81.02 | M22: 92.36 | N22: 43.99 | O22: 50.15 | P22: 87.24 | Q22: 99.45 | R22: 60.05 | S22: 68.46 | T22: 38.09 | U22: 43.42 | V22: 7.09 | W22: 8.08
A23: Genflex urban loads | B23: GU | C23: 3 | D23: 4 | E23: GU34N | I23: > 132kV* | J23: 252.02 | K23: 287.3 | L23: 76.38 | M23: 87.07 | N23: 41.5 | O23: 47.31 | P23: 82.26 | Q23: 93.78 | R23: 56.63 | S23: 64.56 | T23: 35.95 | U23: 40.98 | V23: 9.04 | W23: 10.31
A24: Gen-purchase | B24: NLPurchADJ | C24: 0 | D24: 4 | E24: NLPurchADJ04N | H24: WEPS energy rate excluding losses | J24: 242.0599584 | K24: 275.95 | L24: 73.32541803 | M24: =ROUND(L24 * (1 + VAT), 2) -> 83.59 | N24: 39.82388444 | O24: =ROUND(N24 * (1 + VAT), 2) -> 45.4 | P24: 78.97496784 | Q24: =ROUND(P24 * (1 + VAT), 2) -> 90.03 | R24: 54.33857722 | S24: =ROUND(R24 * (1 + VAT), 2) -> 61.95 | T24: 34.48105274 | U24: =ROUND(T24 * (1 + VAT), 2) -> 39.31
A25: TUoS network charges for Transmission connected generators | B25: GenTUOS | C25: Cape | D25: 4 | E25: GenTUOSCape4N | I25: * 132 kV or Transmission connected
A26: TUoS network charges for Transmission connected generators | B26: GenTUOS | C26: Karoo | D26: 4 | E26: GenTUOSKaroo4N
A27: TUoS network charges for Transmission connected generators | B27: GenTUOS | C27: Kwazulu-Natal | D27: 4 | E27: GenTUOSKwazulu-Natal4N | H27: Distribution network charges for loads | Q27: Transmission network charges for generators | U27: Distribution network charges for generators*
A28: TUoS network charges for Transmission connected generators | B28: GenTUOS | C28: Vaal | D28: 4 | E28: GenTUOSVaal4N | J28: Network capacity charge [R/kVA/m] | L28: Network demand charge [R/kVA/m] | N28: Urban low voltage subsidy charge [R/kVA/m]
A29: TUoS network charges for Transmission connected generators | B29: GenTUOS | C29: Waterburg | D29: 4 | E29: GenTUOSWaterburg4N | H29: Voltage | Q29: TUoS [ > 132kV] | S29: Network charge [R/kW] | U29: Voltage | W29: Network capacity charge [R/kW/m]
A30: TUoS network charges for Transmission connected generators | B30: GenTUOS | C30: Mpumalanga | D30: 4 | E30: GenTUOSMpumalanga4N | H30: Voltage | K30: VAT incl | M30: VAT incl | O30: VAT incl | T30: VAT incl
A31: Genflex urban loads | B31: GU | C31: 0 | D31: 1 | E31: =B31&C31&D31&IF($A$2="Non-municipal","N",IF($A$2="Municiple","Y","error")) -> GU01N | H31: < 500V | J31: 15.48 | K31: =ROUND(J31 * (1 + VAT), 2) -> 17.65 | L31: 29.35 | M31: =ROUND(L31 * (1 + VAT), 2) -> 33.46 | N31: 0 | O31: =ROUND(N31 * (1 + VAT), 2) -> 0 | Q31: Cape | S31: 0 | T31: =ROUND(S31 * (1 + VAT), 2) -> 0 | X31: VAT incl
A32: Genflex urban loads | B32: GU | C32: 0 | D32: 2 | E32: =B32&C32&D32&IF($A$2="Non-municipal","N",IF($A$2="Municiple","Y","error")) -> GU02N | H32: ≥ 500V & < 66kV | J32: 14.2 | K32: =ROUND(J32 * (1 + VAT), 2) -> 16.19 | L32: 26.93 | M32: =ROUND(L32 * (1 + VAT), 2) -> 30.7 | N32: 0 | O32: =ROUND(N32 * (1 + VAT), 2) -> 0 | Q32: Karoo | S32: 0 | T32: 0 | U32: < 500V
A33: Genflex urban loads | B33: GU | C33: 0 | D33: 3 | E33: GU03N | H33: ≥ 66kV & ≤ 132kV | J33: 5.07 | K33: =ROUND(J33 * (1 + VAT), 2) -> 5.78 | L33: 9.39 | M33: =ROUND(L33 * (1 + VAT), 2) -> 10.7 | N33: 12.5 | O33: =ROUND(N33 * (1 + VAT), 2) -> 14.25 | Q33: Kwazulu-Natal | S33: 1.84 | T33: 2.1 | U33: ≥ 500V & < 66kV
A34: Genflex urban loads | B34: GU | C34: 0 | D34: 4 | E34: GU04N | H34: > 132kV / Transmission connected | J34: 0 | K34: =ROUND(J34 * (1 + VAT), 2) -> 0 | L34: 0 | M34: =ROUND(L34 * (1 + VAT), 2) -> 0 | N34: 12.5 | O34: =ROUND(N34 * (1 + VAT), 2) -> 14.25 | Q34: Vaal | S34: 6.13 | T34: 6.99 | U34: ≥ 66kV & ≤ 132kV | W34: 12.52 | X34: =ROUND(W34 * (1 + VAT), 2) -> 14.27
A35: Gen-DUoS urban | B35: NEGenDUoSU | C35: 0 | D35: 3 | E35: NEGenDUoSU03N | Q35: Waterberg | S35: 7.85 | T35: 8.95 | U35: * The Distribution network charge will be rebated by the Distribution losses charge for generators, but not beyond extinction
Q36: Mpumalanga | S36: 7.28 | T36: 8.3
H37: Customer categories | J37: Service charge [R/account/day] | L37: Administration charge [R/POD/day]
H38: [kVA or MVA = loads] | Q38: Ancillary service charge for loads and generators
A39: Tariff | B39: Tariff nameBillcode | C39: Tx zone | D39: Voltage | E39: Billcode | H39: [kW or MW = generators] | K39: VAT incl | M39: VAT incl
A40: Genflex urban loads | B40: GU | C40: 0 | D40: 1 | E40: =B40&C40&D40&IF($A$2="Non-municipal","N",IF($A$2="Municiple","Y","error")) -> GU01N | H40: ≤ 100 KVA/ kW | J40: 12.64 | K40: =ROUND(J40 * (1 + VAT), 2) -> 14.41 | L40: 2.78 | M40: =ROUND(L40 * (1 + VAT), 2) -> 3.17 | Q40: Voltage | S40: Ancillary service charge [c/kWh]
A41: Genflex urban loads | B41: GU | C41: 0 | D41: 1 | E41: =B41&C41&D41&IF($A$2="Non-municipal","N",IF($A$2="Municiple","Y","error")) -> GU01N | H41: > 100 kVA/ kW & ≤ 500 kVA/ kW | J41: 57.76 | K41: =ROUND(J41 * (1 + VAT), 2) -> 65.85 | L41: 16.19 | M41: =ROUND(L41 * (1 + VAT), 2) -> 18.46 | T41: VAT incl
A42: Genflex urban loads | B42: GU | C42: 0 | D42: 1 | E42: GU01N | H42: > 500 kVA/ kW & ≤ 1 MVA/MW | J42: 177.75 | K42: =ROUND(J42 * (1 + VAT), 2) -> 202.64 | L42: 32.17 | M42: =ROUND(L42 * (1 + VAT), 2) -> 36.67 | Q42: < 500V | S42: 0.36 | T42: =ROUND(S42 * (1 + VAT), 2) -> 0.41
A43: Genflex urban loads | B43: GU | C43: 0 | D43: 1 | E43: GU01N | H43: > 1 MVA/MW | J43: 177.75 | K43: =ROUND(J43 * (1 + VAT), 2) -> 202.64 | L43: 80.11 | M43: =ROUND(L43 * (1 + VAT), 2) -> 91.33 | Q43: ≥ 500V & < 66kV | S43: 0.35 | T43: =ROUND(S43 * (1 + VAT), 2) -> 0.4
A44: Genflex urban loads | B44: GU | C44: 0 | D44: 1 | E44: =B44&C44&D44&IF($A$2="Non-municipal","N",IF($A$2="Municiple","Y","error")) -> GU01N | H44: Key customers or Transmission connected generators | J44: 3483.16 | K44: =ROUND(J44 * (1 + VAT), 2) -> 3970.8 | L44: 111.24 | M44: =ROUND(L44 * (1 + VAT), 2) -> 126.81 | Q44: ≥ 66kV & ≤ 132kV | S44: 0.33 | T44: =ROUND(S44 * (1 + VAT), 2) -> 0.38
Q45: > 132kV / Transmission connected | S45: 0.31 | T45: =ROUND(S45 * (1 + VAT), 2) -> 0.35 | Y45: ='Loss Factors'!R10 -> 0
H46: Applicable to loads
H47: Electrification and rural network subsidy charge [c/kWh] | J47: Affordability subsidy charge [c/kWh] Only payable by non-local authority tariffs | Q47: Reactive energy charge [c/kVArh] (loads)
Q48: High season | S48: Low season
R49: VAT incl | T49: VAT incl
A50: Tariff | B50: Tariff nameBillcode | C50: Tx zone | D50: Voltage | E50: Billcode | I50: VAT incl | K50: VAT incl | Q50: 12.52 | R50: =ROUND(Q50 * (1 + VAT), 2) -> 14.27 | S50: 0 | T50: =ROUND(S50 * (1 + VAT), 2) -> 0
A51: Genflex urban loads | B51: GU | C51: 0 | D51: 1 | E51: =B51&C51&D51&IF($A$2="Non-municipal","N",IF($A$2="Municiple","Y","error")) -> GU01N | H51: 6.93 | I51: =ROUND(H51 * (1 + VAT), 2) -> 7.9 | J51: 2.65 | K51: =ROUND(J51 * (1 + VAT), 2) -> 3.02
H54: Losses charge for generators
H55: Distribution connected generators | M55: Transmission connected generators
H56: Formula | M56: Formula
H57: Distribution = - ((Energy produced x WEPS rate excluding losses) x (Distribution loss factor x Transmission loss factor-1)) in each TOU period | M57: Transmission = (Energy produced x WEPS rate excluding losses) x (Transmission loss factor-1/Transmission loss factor) in each TOU period
H58: Transmission loss factors for Distribution connected | K58: Distribution loss factors | M58: Generator loss factor
H59: ='Loss Factors'!R5 -> Distance from Johannesburg | J59: ='Loss Factors'!S5 -> Zone | K59: ='Loss Factors'!N5 -> Voltage | M59: =TUoS!I38 -> Cape | O59: =TUoS!J38 -> 0.971
H60: ='Loss Factors'!R6 -> ≤ 300km | J60: =TUoS!J30 -> 1.0107 | K60: ='Loss Factors'!N6 -> < 500V | L60: ='Loss Factors'!O6 -> 1.1111 | M60: =TUoS!I39 -> Karoo | O60: =TUoS!J39 -> 0.995
H61: ='Loss Factors'!R7 -> > 300km & ≤ 600km | J61: =TUoS!J31 -> 1.0208 | K61: ='Loss Factors'!N7 -> ≥ 500V & < 66kV | L61: ='Loss Factors'!O7 -> 1.0957 | M61: =TUoS!I40 -> Kwazulu-Natal | O61: =TUoS!J40 -> 1.004
H62: ='Loss Factors'!R8 -> > 600km & ≤ 900km | J62: =TUoS!J32 -> 1.031 | K62: ='Loss Factors'!N8 -> ≥ 66kV & ≤ 132kV | L62: ='Loss Factors'!O8 -> 1.0611 | M62: =TUoS!I41 -> Vaal | O62: =TUoS!J41 -> 1.02
H63: ='Loss Factors'!R9 -> > 900km | J63: =TUoS!J33 -> 1.0413 | K63: ='Loss Factors'!N9 -> > 132kV/Transmission connected | L63: ='Loss Factors'!O9 -> 1 | M63: =TUoS!I42 -> Waterberg | O63: =TUoS!J42 -> 1.023
M64: =TUoS!I43 -> Mpumalanga | O64: =TUoS!J43 -> 1.021

Sheet Miniflex inc
G1: Back to menu
A2: Non-municipal | G2: Miniflex tariff | T2: Non-local authority
J4: Active energy charge [c/kWh] | V4: Network capacity charge [R/kVA/m]
H5: Transmission zone | J5: High demand season [Jun - Aug] | P5: Low demand season [Sep - May]
I6: Voltage | J6: Peak | L6: Standard | N6: Off Peak | P6: Peak | R6: Standard | T6: Off Peak
A7: Tariff | B7: Tariff nameBillcode | C7: Tx zone | D7: Voltage | E7: Billcode | K7: VAT incl | M7: VAT incl | O7: VAT incl | Q7: VAT incl | S7: VAT incl | U7: VAT incl | W7: VAT incl
A8: Miniflex | B8: Mi | C8: 0 | D8: 1 | E8: =B8&C8&D8&IF($A$2="Non-municipal","N",IF($A$2="Municiple","Y","error")) -> Mi01N | H8: ≤ 300km | I8: < 500V | J8: 272.34 | K8: =ROUND(J8 * (1 + VAT), 2) -> 310.47 | L8: 82.86 | M8: =ROUND(L8 * (1 + VAT), 2) -> 94.46 | N8: 45.24 | O8: =ROUND(N8 * (1 + VAT), 2) -> 51.57 | P8: 89.18 | Q8: =ROUND(P8 * (1 + VAT), 2) -> 101.67 | R8: 61.54 | S8: =ROUND(R8 * (1 + VAT), 2) -> 70.16 | T8: 39.23 | U8: =ROUND(T8 * (1 + VAT), 2) -> 44.72 | V8: 23.25 | W8: =ROUND(V8 * (1 + VAT), 2) -> 26.51
A9: Miniflex | B9: Mi | C9: 0 | D9: 2 | E9: =B9&C9&D9&IF($A$2="Non-municipal","N",IF($A$2="Municiple","Y","error")) -> Mi02N | I9: ≥ 500V & < 66kV | J9: 268.06 | K9: 305.59 | L9: 81.21 | M9: 92.58 | N9: 44.1 | O9: 50.27 | P9: 87.44 | Q9: 99.68 | R9: 60.19 | S9: 68.62 | T9: 38.18 | U9: 43.53 | V9: 21.3 | W9: 24.28
A10: Miniflex | B10: Mi | C10: 0 | D10: 3 | E10: Mi03N | I10: ≥ 66kV & ≤ 132kV | J10: 259.58 | K10: 295.92 | L10: 78.63 | M10: 89.64 | N10: 42.71 | O10: 48.69 | P10: 84.69 | Q10: 96.55 | R10: 58.28 | S10: 66.44 | T10: 36.98 | U10: 42.16 | V10: 11.97 | W10: 13.65
A11: Miniflex | B11: Mi | C11: 0 | D11: 4 | E11: Mi04N | I11: > 132kV* | J11: 244.65 | K11: 278.9 | L11: 74.11 | M11: 84.49 | N11: 40.25 | O11: 45.89 | P11: 79.82 | Q11: 90.99 | R11: 54.92 | S11: 62.61 | T11: 34.85 | U11: 39.73 | V11: 8.72 | W11: 9.94
A12: Miniflex | B12: Mi | C12: 1 | D12: 1 | E12: Mi11N | H12: > 300km and ≤ 600km | I12: < 500V | J12: 274.56 | K12: 313 | L12: 83.19 | M12: 94.84 | N12: 45.17 | O12: 51.49 | P12: 89.57 | Q12: 102.11 | R12: 61.66 | S12: 70.29 | T12: 39.12 | U12: 44.6 | V12: 23.3 | W12: 26.56
A13: Miniflex | B13: Mi | C13: 1 | D13: 2 | E13: Mi12N | I13: ≥ 500V & < 66kV | J13: 270.74 | K13: 308.64 | L13: 82.02 | M13: 93.5 | N13: 44.54 | O13: 50.78 | P13: 88.33 | Q13: 100.7 | R13: 60.78 | S13: 69.29 | T13: 38.56 | U13: 43.96 | V13: 21.37 | W13: 24.36
A14: Miniflex | B14: Mi | C14: 1 | D14: 3 | E14: Mi13N | I14: ≥ 66kV & ≤ 132kV | J14: 262.13 | K14: 298.83 | L14: 79.4 | M14: 90.52 | N14: 43.11 | O14: 49.15 | P14: 85.51 | Q14: 97.48 | R14: 58.85 | S14: 67.09 | T14: 37.33 | U14: 42.56 | V14: 12.02 | W14: 13.7
A15: Miniflex | B15: Mi | C15: 1 | D15: 4 | E15: Mi14N | I15: > 132kV* | J15: 247.09 | K15: 281.68 | L15: 74.86 | M15: 85.34 | N15: 40.63 | O15: 46.32 | P15: 80.59 | Q15: 91.87 | R15: 55.47 | S15: 63.24 | T15: 35.18 | U15: 40.11 | V15: 8.82 | W15: 10.05
A16: Miniflex | B16: Mi | C16: 2 | D16: 1 | E16: Mi21N | H16: > 600km and ≤ 900km | I16: < 500V | J16: 277.3 | K16: 316.12 | L16: 84 | M16: 95.76 | N16: 45.6 | O16: 51.98 | P16: 90.46 | Q16: 103.12 | R16: 62.26 | S16: 70.98 | T16: 39.48 | U16: 45.01 | V16: 23.41 | W16: 26.69
A17: Miniflex | B17: Mi | C17: 2 | D17: 2 | E17: Mi22N | I17: ≥ 500V & < 66kV | J17: 273.46 | K17: 311.74 | L17: 82.85 | M17: 94.45 | N17: 44.99 | O17: 51.29 | P17: 89.2 | Q17: 101.69 | R17: 61.4 | S17: 70 | T17: 38.95 | U17: 44.4 | V17: 21.43 | W17: 24.43
A18: Miniflex | B18: Mi | C18: 2 | D18: 3 | E18: Mi23N | I18: ≥ 66kV & ≤ 132kV | J18: 264.8 | K18: 301.87 | L18: 80.22 | M18: 91.45 | N18: 43.55 | O18: 49.65 | P18: 86.37 | Q18: 98.46 | R18: 59.45 | S18: 67.77 | T18: 37.71 | U18: 42.99 | V18: 12.08 | W18: 13.77
A19: Miniflex | B19: Mi | C19: 2 | D19: 4 | E19: Mi24N | I19: > 132kV* | J19: 249.59 | K19: 284.53 | L19: 75.6 | M19: 86.18 | N19: 41.07 | O19: 46.82 | P19: 81.42 | Q19: 92.82 | R19: 56.03 | S19: 63.87 | T19: 35.56 | U19: 40.54 | V19: 8.94 | W19: 10.19
A20: Miniflex | B20: Mi | C20: 3 | D20: 1 | E20: Mi31N | H20: > 900km | I20: < 500V | J20: 280.09 | K20: 319.3 | L20: 84.87 | M20: 96.75 | N20: 46.08 | O20: 52.53 | P20: 91.38 | Q20: 104.17 | R20: 62.88 | S20: 71.68 | T20: 39.91 | U20: 45.5 | V20: 23.43 | W20: 26.71
A21: Miniflex | B21: Mi | C21: 3 | D21: 2 | E21: Mi32N | I21: ≥ 500V & < 66kV | J21: 276.18 | K21: 314.85 | L21: 83.66 | M21: 95.37 | N21: 45.41 | O21: 51.77 | P21: 90.08 | Q21: 102.69 | R21: 61.99 | S21: 70.67 | T21: 39.33 | U21: 44.84 | V21: 21.51 | W21: 24.52
A22: Miniflex | B22: Mi | C22: 3 | D22: 3 | E22: Mi33N | I22: ≥ 66kV & ≤ 132kV | J22: 267.46 | K22: 304.9 | L22: 81.02 | M22: 92.36 | N22: 43.99 | O22: 50.15 | P22: 87.24 | Q22: 99.45 | R22: 60.05 | S22: 68.46 | T22: 38.09 | U22: 43.42 | V22: 12.13 | W22: 13.83
A23: Miniflex | B23: Mi | C23: 3 | D23: 4 | E23: Mi34N | I23: > 132kV* | J23: 252.02 | K23: 287.3 | L23: 76.38 | M23: 87.07 | N23: 41.5 | O23: 47.31 | P23: 82.26 | Q23: 93.78 | R23: 56.63 | S23: 64.56 | T23: 35.95 | U23: 40.98 | V23: 9 | W23: 10.26
I24: * 132 kV or Transmission connected
H26: Customer categories | J26: Service charge [R/account/day] | L26: Administration charge [R/POD/day]
A28: Tariff | B28: Tariff nameBillcode | C28: Tx zone | D28: Voltage | E28: Billcode | K28: VAT incl | M28: VAT incl | P28: Ancillary service charge [c/kWh] | R28: Network demand charge [c/kWh] [Peak & Standard] | U28: Urban low voltage subsidy charge [R/kVA/m]
A29: Miniflex | B29: Mi | C29: 0 | D29: 1 | E29: =B29&C29&D29&IF($A$2="Non-municipal","N",IF($A$2="Municiple","Y","error")) -> Mi01N | H29: ≤ 100 kVA | J29: 12.64 | K29: =ROUND(J29 * (1 + VAT), 2) -> 14.41 | L29: 2.78 | M29: =ROUND(L29 * (1 + VAT), 2) -> 3.17 | O29: Voltage | Q29: VAT incl | S29: VAT incl | W29: VAT incl
A30: Miniflex | B30: Mi | C30: 0 | D30: 1 | E30: =B30&C30&D30&IF($A$2="Non-municipal","N",IF($A$2="Municiple","Y","error")) -> Mi01N | H30: > 100 kVA & ≤ 500 kVA | J30: 57.76 | K30: =ROUND(J30 * (1 + VAT), 2) -> 65.85 | L30: 16.19 | M30: =ROUND(L30 * (1 + VAT), 2) -> 18.46 | O30: < 500V | P30: 0.36 | Q30: =ROUND(P30 * (1 + VAT), 2) -> 0.41 | R30: 14.38 | S30: =ROUND(R30 * (1 + VAT), 2) -> 16.39 | U30: < 500V | V30: 0 | W30: =ROUND(V30 * (1 + VAT), 2) -> 0
A31: Miniflex | B31: Mi | C31: 0 | D31: 1 | E31: =B31&C31&D31&IF($A$2="Non-municipal","N",IF($A$2="Municiple","Y","error")) -> Mi01N | H31: > 500 kVA & ≤ 1 MVA | J31: 177.75 | K31: =ROUND(J31 * (1 + VAT), 2) -> 202.64 | L31: 32.17 | M31: =ROUND(L31 * (1 + VAT), 2) -> 36.67 | O31: ≥ 500V & < 66kV | P31: 0.35 | Q31: =ROUND(P31 * (1 + VAT), 2) -> 0.4 | R31: 6.03 | S31: =ROUND(R31 * (1 + VAT), 2) -> 6.87 | U31: ≥ 500V & < 66kV | V31: 0 | W31: =ROUND(V31 * (1 + VAT), 2) -> 0
A32: Miniflex | B32: Mi | C32: 0 | D32: 1 | E32: =B32&C32&D32&IF($A$2="Non-municipal","N",IF($A$2="Municiple","Y","error")) -> Mi01N | H32: > 1 MVA | J32: 177.75 | K32: =ROUND(J32 * (1 + VAT), 2) -> 202.64 | L32: 80.11 | M32: =ROUND(L32 * (1 + VAT), 2) -> 91.33 | O32: ≥ 66kV & ≤ 132kV | P32: 0.33 | Q32: =ROUND(P32 * (1 + VAT), 2) -> 0.38 | R32: 2.1 | S32: =ROUND(R32 * (1 + VAT), 2) -> 2.39 | U32: ≥ 66kV & ≤ 132kV | V32: 12.5 | W32: =ROUND(V32 * (1 + VAT), 2) -> 14.25
A33: Miniflex | B33: Mi | C33: 0 | D33: 1 | E33: =B33&C33&D33&IF($A$2="Non-municipal","N",IF($A$2="Municiple","Y","error")) -> Mi01N | H33: Key customers | J33: 3483.16 | K33: =ROUND(J33 * (1 + VAT), 2) -> 3970.8 | L33: 111.24 | M33: =ROUND(L33 * (1 + VAT), 2) -> 126.81 | O33: > 132kV* | P33: 0.31 | Q33: =ROUND(P33 * (1 + VAT), 2) -> 0.35 | R33: 0 | S33: =ROUND(R33 * (1 + VAT), 2) -> 0 | U33: > 132kV* | V33: 12.5 | W33: =ROUND(V33 * (1 + VAT), 2) -> 14.25
O34: * 132 kV or Transmission connected | U34: * 132 kV or Transmission connected
H36: Electrification and rural network subsidy charge [c/kWh] | J36: Affordability subsidy charge [c/kWh] Only payable by non-local authority tariffs | O36: Reactive energy charge [c/kVArh]
O38: High season | Q38: Low season
A39: Tariff | B39: Tariff nameBillcode | C39: Tx zone | D39: Voltage | E39: Billcode | I39: VAT incl | K39: VAT incl | P39: VAT incl | R39: VAT incl
A40: Miniflex | B40: Mi | C40: 0 | D40: 1 | E40: =B40&C40&D40&IF($A$2="Non-municipal","N",IF($A$2="Municiple","Y","error")) -> Mi01N | H40: 6.93 | I40: =ROUND(H40 * (1 + VAT), 2) -> 7.9 | J40: 2.65 | K40: =ROUND(J40 * (1 + VAT), 2) -> 3.02 | O40: 5.46 | P40: =ROUND(O40 * (1 + VAT), 2) -> 6.22 | Q40: 0 | R40: =ROUND(Q40 * (1 + VAT), 2) -> 0
A42: Miniflex | B42: Mi | C42: 0 | D42: 1 | E42: =B42&C42&D42&IF($A$2="Non-municipal","N",IF($A$2="Municiple","Y","error")) -> Mi01N
A43: Miniflex | B43: Mi | C43: 1 | D43: 2 | E43: =B43&C43&D43&IF($A$2="Non-municipal","N",IF($A$2="Municiple","Y","error")) -> Mi12N
A44: Miniflex | B44: Mi | C44: 2 | D44: 3 | E44: Mi23N
A45: Miniflex | B45: Mi | C45: 3 | D45: 4 | E45: Mi34N

Sheet Miniflex Munic inc
G1: Back to menu
A2: Municiple | G2: Miniflex tariff | T2: Local authority
J4: Active energy charge [c/kWh] | V4: Network capacity charge [R/kVA/m]
H5: Transmission zone | J5: High demand season [Jun - Aug] | P5: Low demand season [Sep - May]
I6: Voltage | J6: Peak | L6: Standard | N6: Off Peak | P6: Peak | R6: Standard | T6: Off Peak
A7: Tariff | B7: Tariff nameBillcode | C7: Tx zone | D7: Voltage | E7: Billcode | K7: VAT incl | M7: VAT incl | O7: VAT incl | Q7: VAT incl | S7: VAT incl | U7: VAT incl | W7: VAT incl
A8: Miniflex | B8: Mi | C8: 0 | D8: 1 | E8: =B8&C8&D8&IF($A$2="Non-municipal","N",IF($A$2="Municiple","Y","error")) -> Mi01Y | H8: ≤ 300km | I8: < 500V | J8: 278.85 | K8: =ROUND(J8 * (1 + VAT), 2) -> 317.89 | L8: 84.85 | M8: =ROUND(L8 * (1 + VAT), 2) -> 96.73 | N8: 46.3 | O8: =ROUND(N8 * (1 + VAT), 2) -> 52.78 | P8: 91.3 | Q8: =ROUND(P8 * (1 + VAT), 2) -> 104.08 | R8: 63 | S8: =ROUND(R8 * (1 + VAT), 2) -> 71.82 | T8: 40.16 | U8: =ROUND(T8 * (1 + VAT), 2) -> 45.78 | V8: 23.25 | W8: =ROUND(V8 * (1 + VAT), 2) -> 26.51
A9: Miniflex | B9: Mi | C9: 0 | D9: 2 | E9: =B9&C9&D9&IF($A$2="Non-municipal","N",IF($A$2="Municiple","Y","error")) -> Mi02Y | I9: ≥ 500V & < 66kV | J9: 274.45 | K9: 312.87 | L9: 83.15 | M9: 94.79 | N9: 45.15 | O9: 51.47 | P9: 89.53 | Q9: 102.06 | R9: 61.62 | S9: 70.25 | T9: 39.1 | U9: 44.57 | V9: 21.3 | W9: 24.28
A10: Miniflex | B10: Mi | C10: 0 | D10: 3 | E10: Mi03Y | I10: ≥ 66kV & ≤ 132kV | J10: 265.79 | K10: 303 | L10: 80.51 | M10: 91.78 | N10: 43.72 | O10: 49.84 | P10: 86.7 | Q10: 98.84 | R10: 59.68 | S10: 68.04 | T10: 37.85 | U10: 43.15 | V10: 11.96 | W10: 13.63
A11: Miniflex | B11: Mi | C11: 0 | D11: 4 | E11: Mi04Y | I11: > 132kV* | J11: 250.49 | K11: 285.56 | L11: 75.88 | M11: 86.5 | N11: 41.2 | O11: 46.97 | P11: 81.71 | Q11: 93.15 | R11: 56.24 | S11: 64.11 | T11: 35.68 | U11: 40.68 | V11: 8.73 | W11: 9.95
A12: Miniflex | B12: Mi | C12: 1 | D12: 1 | E12: Mi11Y | H12: > 300km and ≤ 600km | I12: < 500V | J12: 281.12 | K12: 320.48 | L12: 85.17 | M12: 97.09 | N12: 46.24 | O12: 52.71 | P12: 91.71 | Q12: 104.55 | R12: 63.13 | S12: 71.97 | T12: 40.05 | U12: 45.66 | V12: 23.3 | W12: 26.56
A13: Miniflex | B13: Mi | C13: 1 | D13: 2 | E13: Mi12Y | I13: ≥ 500V & < 66kV | J13: 277.19 | K13: 316 | L13: 83.97 | M13: 95.73 | N13: 45.6 | O13: 51.98 | P13: 90.43 | Q13: 103.09 | R13: 62.24 | S13: 70.95 | T13: 39.48 | U13: 45.01 | V13: 21.37 | W13: 24.36
A14: Miniflex | B14: Mi | C14: 1 | D14: 3 | E14: Mi13Y | I14: ≥ 66kV & ≤ 132kV | J14: 268.39 | K14: 305.96 | L14: 81.3 | M14: 92.68 | N14: 44.14 | O14: 50.32 | P14: 87.55 | Q14: 99.81 | R14: 60.25 | S14: 68.69 | T14: 38.21 | U14: 43.56 | V14: 12.03 | W14: 13.71
A15: Miniflex | B15: Mi | C15: 1 | D15: 4 | E15: Mi14Y | I15: > 132kV* | J15: 252.99 | K15: 288.41 | L15: 76.65 | M15: 87.38 | N15: 41.61 | O15: 47.44 | P15: 82.51 | Q15: 94.06 | R15: 56.8 | S15: 64.75 | T15: 36.03 | U15: 41.07 | V15: 8.81 | W15: 10.04
A16: Miniflex | B16: Mi | C16: 2 | D16: 1 | E16: Mi21Y | H16: > 600km and ≤ 900km | I16: < 500V | J16: 283.92 | K16: 323.67 | L16: 86.01 | M16: 98.05 | N16: 46.7 | O16: 53.24 | P16: 92.61 | Q16: 105.58 | R16: 63.75 | S16: 72.68 | T16: 40.44 | U16: 46.1 | V16: 23.42 | W16: 26.7
A17: Miniflex | B17: Mi | C17: 2 | D17: 2 | E17: Mi22Y | I17: ≥ 500V & < 66kV | J17: 279.98 | K17: 319.18 | L17: 84.81 | M17: 96.68 | N17: 46.06 | O17: 52.51 | P17: 91.35 | Q17: 104.14 | R17: 62.84 | S17: 71.64 | T17: 39.88 | U17: 45.46 | V17: 21.43 | W17: 24.43
A18: Miniflex | B18: Mi | C18: 2 | D18: 3 | E18: Mi23Y | I18: ≥ 66kV & ≤ 132kV | J18: 271.12 | K18: 309.08 | L18: 82.12 | M18: 93.62 | N18: 44.59 | O18: 50.83 | P18: 88.42 | Q18: 100.8 | R18: 60.85 | S18: 69.37 | T18: 38.6 | U18: 44 | V18: 12.08 | W18: 13.77
A19: Miniflex | B19: Mi | C19: 2 | D19: 4 | E19: Mi24Y | I19: > 132kV* | J19: 255.53 | K19: 291.3 | L19: 77.42 | M19: 88.26 | N19: 42.03 | O19: 47.91 | P19: 83.36 | Q19: 95.03 | R19: 57.37 | S19: 65.4 | T19: 36.4 | U19: 41.5 | V19: 8.93 | W19: 10.18
A20: Miniflex | B20: Mi | C20: 3 | D20: 1 | E20: Mi31Y | H20: > 900km | I20: < 500V | J20: 286.77 | K20: 326.92 | L20: 86.88 | M20: 99.04 | N20: 47.18 | O20: 53.79 | P20: 93.55 | Q20: 106.65 | R20: 64.38 | S20: 73.39 | T20: 40.85 | U20: 46.57 | V20: 23.44 | W20: 26.72
A21: Miniflex | B21: Mi | C21: 3 | D21: 2 | E21: Mi32Y | I21: ≥ 500V & < 66kV | J21: 282.78 | K21: 322.37 | L21: 85.65 | M21: 97.64 | N21: 46.52 | O21: 53.03 | P21: 92.23 | Q21: 105.14 | R21: 63.48 | S21: 72.37 | T21: 40.26 | U21: 45.9 | V21: 21.52 | W21: 24.53
A22: Miniflex | B22: Mi | C22: 3 | D22: 3 | E22: Mi33Y | I22: ≥ 66kV & ≤ 132kV | J22: 273.85 | K22: 312.19 | L22: 82.96 | M22: 94.57 | N22: 45.05 | O22: 51.36 | P22: 89.32 | Q22: 101.82 | R22: 61.47 | S22: 70.08 | T22: 39 | U22: 44.46 | V22: 12.12 | W22: 13.82
A23: Miniflex | B23: Mi | C23: 3 | D23: 4 | E23: Mi34Y | I23: > 132kV* | J23: 258.04 | K23: 294.17 | L23: 78.21 | M23: 89.16 | N23: 42.5 | O23: 48.45 | P23: 84.22 | Q23: 96.01 | R23: 57.97 | S23: 66.09 | T23: 36.8 | U23: 41.95 | V23: 9 | W23: 10.26
I24: * 132 kV or Transmission connected
H26: Customer categories | J26: Service charge [R/account/day] | L26: Administration charge [R/POD/day]
A28: Tariff | B28: Tariff nameBillcode | C28: Tx zone | D28: Voltage | E28: Billcode | K28: VAT incl | M28: VAT incl | P28: Ancillary service charge [c/kWh] | R28: Network demand charge [c/kWh] [Peak & Standard] | U28: Urban low voltage subsidy charge [R/kVA/m]
A29: Miniflex | B29: Mi | C29: 0 | D29: 1 | E29: =B29&C29&D29&IF($A$2="Non-municipal","N",IF($A$2="Municiple","Y","error")) -> Mi01Y | H29: ≤ 100 kVA | J29: 12.58 | K29: =ROUND(J29 * (1 + VAT), 2) -> 14.34 | L29: 2.76 | M29: =ROUND(L29 * (1 + VAT), 2) -> 3.15 | O29: Voltage | Q29: VAT incl | S29: VAT incl | W29: VAT incl
A30: Miniflex | B30: Mi | C30: 0 | D30: 1 | E30: =B30&C30&D30&IF($A$2="Non-municipal","N",IF($A$2="Municiple","Y","error")) -> Mi01Y | H30: > 100 kVA & ≤ 500 kVA | J30: 57.49 | K30: =ROUND(J30 * (1 + VAT), 2) -> 65.54 | L30: 16.11 | M30: =ROUND(L30 * (1 + VAT), 2) -> 18.37 | O30: < 500V | P30: 0.36 | Q30: =ROUND(P30 * (1 + VAT), 2) -> 0.41 | R30: 14.38 | S30: =ROUND(R30 * (1 + VAT), 2) -> 16.39 | U30: < 500V | V30: 0 | W30: =ROUND(V30 * (1 + VAT), 2) -> 0
A31: Miniflex | B31: Mi | C31: 0 | D31: 1 | E31: =B31&C31&D31&IF($A$2="Non-municipal","N",IF($A$2="Municiple","Y","error")) -> Mi01Y | H31: > 500 kVA & ≤ 1 MVA | J31: 176.93 | K31: =ROUND(J31 * (1 + VAT), 2) -> 201.7 | L31: 32.03 | M31: =ROUND(L31 * (1 + VAT), 2) -> 36.51 | O31: ≥ 500V & < 66kV | P31: 0.35 | Q31: =ROUND(P31 * (1 + VAT), 2) -> 0.4 | R31: 6.04 | S31: =ROUND(R31 * (1 + VAT), 2) -> 6.89 | U31: ≥ 500V & < 66kV | V31: 0 | W31: =ROUND(V31 * (1 + VAT), 2) -> 0
A32: Miniflex | B32: Mi | C32: 0 | D32: 1 | E32: =B32&C32&D32&IF($A$2="Non-municipal","N",IF($A$2="Municiple","Y","error")) -> Mi01Y | H32: > 1 MVA | J32: 176.93 | K32: =ROUND(J32 * (1 + VAT), 2) -> 201.7 | L32: 79.75 | M32: =ROUND(L32 * (1 + VAT), 2) -> 90.92 | O32: ≥ 66kV & ≤ 132kV | P32: 0.33 | Q32: =ROUND(P32 * (1 + VAT), 2) -> 0.38 | R32: 2.09 | S32: =ROUND(R32 * (1 + VAT), 2) -> 2.38 | U32: ≥ 66kV & ≤ 132kV | V32: 12.44 | W32: =ROUND(V32 * (1 + VAT), 2) -> 14.18
A33: Miniflex | B33: Mi | C33: 0 | D33: 1 | E33: =B33&C33&D33&IF($A$2="Non-municipal","N",IF($A$2="Municiple","Y","error")) -> Mi01Y | H33: Key customers | J33: 3467.18 | K33: =ROUND(J33 * (1 + VAT), 2) -> 3952.59 | L33: 110.73 | M33: =ROUND(L33 * (1 + VAT), 2) -> 126.23 | O33: > 132kV* | P33: 0.31 | Q33: =ROUND(P33 * (1 + VAT), 2) -> 0.35 | R33: 0 | S33: =ROUND(R33 * (1 + VAT), 2) -> 0 | U33: > 132kV* | V33: 12.44 | W33: =ROUND(V33 * (1 + VAT), 2) -> 14.18
O34: * 132 kV or Transmission connected | U34: * 132 kV or Transmission connected
H36: Electrification and rural network subsidy charge [c/kWh] | L36: Reactive energy charge [c/kVArh]
L38: High season | N38: Low season
A39: Tariff | B39: Tariff nameBillcode | C39: Tx zone | D39: Voltage | E39: Billcode | I39: VAT incl | M39: VAT incl | O39: VAT incl
A40: Miniflex | B40: Mi | C40: 0 | D40: 1 | E40: =B40&C40&D40&IF($A$2="Non-municipal","N",IF($A$2="Municiple","Y","error")) -> Mi01Y | H40: 6.89 | I40: =ROUND(H40 * (1 + VAT), 2) -> 7.85 | L40: 5.45 | M40: =ROUND(L40 * (1 + VAT), 2) -> 6.21 | N40: 0 | O40: =ROUND(N40 * (1 + VAT), 2) -> 0
A42: Miniflex | B42: Mi | C42: 0 | D42: 1 | E42: =B42&C42&D42&IF($A$2="Non-municipal","N",IF($A$2="Municiple","Y","error")) -> Mi01Y
A43: Miniflex | B43: Mi | C43: 1 | D43: 2 | E43: =B43&C43&D43&IF($A$2="Non-municipal","N",IF($A$2="Municiple","Y","error")) -> Mi12Y
A44: Miniflex | B44: Mi | C44: 2 | D44: 3 | E44: Mi23Y
A45: Miniflex | B45: Mi | C45: 3 | D45: 4 | E45: Mi34Y

Sheet Businessrate inc
H1: Back to menu
A2: Non-municipal | H2: Businessrate tariffs | P2: Non-local authority
J4: Energy charge [c/kWh] | L4: Ancillary service charge [c/kWh] | N4: Network demand charge [c/kWh] | P4: Network capacity charge [R/POD/day] | R4: Service and administration charge [R/POD/day] | Z4: Electrification and rural network subsidy charge [c/kWh] | AB4: Affordability subsidy charge [c/kWh] payable by non-local authority tariffs
Z6: All seasons | AB6: All seasons
A7: Tariff | B7: Tariff nameBillcode | C7: Tx zone | D7: Voltage | E7: Billcode | K7: VAT incl | M7: VAT incl | O7: VAT incl | Q7: VAT incl | S7: VAT incl | AA7: VAT incl | AC7: VAT incl
A8: Businessrate 1 | B8: B1 | C8: 0 | D8: 1 | E8: =B8&C8&D8&IF($A$2="Non-municipal","N",IF($A$2="Municiple","Y","error")) -> B101N | H8: Businessrate 1 | J8: 93.25 | K8: =ROUND(J8 * (1 + VAT), 2) -> 106.31 | L8: 0.36 | M8: =ROUND(L8 * (1 + VAT), 2) -> 0.41 | N8: 13.17 | O8: =ROUND(N8 * (1 + VAT), 2) -> 15.01 | P8: 18.9 | Q8: =ROUND(P8 * (1 + VAT), 2) -> 21.55 | R8: 16.33 | S8: =ROUND(R8 * (1 + VAT), 2) -> 18.62 | Z8: 0 | AA8: =ROUND(Z8 * (1 + VAT), 2) -> 0 | AB8: 0 | AC8: =ROUND(AB8 * (1 + VAT), 2) -> 0
A9: Businessrate 2 | B9: B2 | C9: 0 | D9: 1 | E9: =B9&C9&D9&IF($A$2="Non-municipal","N",IF($A$2="Municiple","Y","error")) -> B201N | H9: Businessrate 2 | J9: 93.25 | K9: =ROUND(J9 * (1 + VAT), 2) -> 106.31 | L9: 0.36 | M9: =ROUND(L9 * (1 + VAT), 2) -> 0.41 | N9: 13.17 | O9: =ROUND(N9 * (1 + VAT), 2) -> 15.01 | P9: 31.85 | Q9: =ROUND(P9 * (1 + VAT), 2) -> 36.31 | R9: 16.33 | S9: =ROUND(R9 * (1 + VAT), 2) -> 18.62 | Z9: =Z8 -> 0 | AA9: =ROUND(Z9 * (1 + VAT), 2) -> 0 | AB9: =AB8 -> 0 | AC9: =ROUND(AB9 * (1 + VAT), 2) -> 0
A10: Businessrate 3 | B10: B3 | C10: 0 | D10: 1 | E10: B301N | H10: Businessrate 3 | J10: 93.25 | K10: =ROUND(J10 * (1 + VAT), 2) -> 106.31 | L10: 0.36 | M10: =ROUND(L10 * (1 + VAT), 2) -> 0.41 | N10: 13.17 | O10: =ROUND(N10 * (1 + VAT), 2) -> 15.01 | P10: 55.03 | Q10: =ROUND(P10 * (1 + VAT), 2) -> 62.73 | R10: 16.33 | S10: =ROUND(R10 * (1 + VAT), 2) -> 18.62 | Z10: =Z8 -> 0 | AA10: =ROUND(Z10 * (1 + VAT), 2) -> 0 | AB10: =AB8 -> 0 | AC10: =ROUND(AB10 * (1 + VAT), 2) -> 0
A11: Businessrate 4 | B11: B4 | C11: 0 | D11: 1 | E11: B401N | H11: Businessrate 4 | J11: 250.93 | K11: =ROUND(J11 * (1 + VAT), 2) -> 286.06 | L11: 0.36 | M11: =ROUND(L11 * (1 + VAT), 2) -> 0.41 | N11: 13.17 | O11: =ROUND(N11 * (1 + VAT), 2) -> 15.01 | Z11: =Z9 -> 0 | AA11: =ROUND(Z11 * (1 + VAT), 2) -> 0 | AB11: =AB9 -> 0 | AC11: =ROUND(AB11 * (1 + VAT), 2) -> 0

Sheet Businessrate Munic inc
H1: Back to menu
A2: Municiple | H2: Businessrate tariffs | P2: Local authority
J4: Energy charge [c/kWh] | L4: Ancillary service charge [c/kWh] | N4: Network demand charge [c/kWh] | P4: Network capacity charge [R/POD/day] | R4: Service and administration charge [R/POD/day] | Z4: Electrification and rural network subsidy charge [c/kWh] | AB4: Affordability subsidy charge [c/kWh] payable by non-local authority tariffs
Z6: All seasons | AB6: All seasons
A7: Tariff | B7: Tariff nameBillcode | C7: Tx zone | D7: Voltage | E7: Billcode | K7: VAT incl | M7: VAT incl | O7: VAT incl | Q7: VAT incl | S7: VAT incl | AA7: VAT incl | AC7: VAT incl
A8: Businessrate 1 | B8: B1 | C8: 0 | D8: 1 | E8: =B8&C8&D8&IF($A$2="Non-municipal","N",IF($A$2="Municiple","Y","error")) -> B101Y | H8: Businessrate 1 | J8: 95.47 | K8: =ROUND(J8 * (1 + VAT), 2) -> 108.84 | L8: 0.36 | M8: =ROUND(L8 * (1 + VAT), 2) -> 0.41 | N8: 13.23 | O8: =ROUND(N8 * (1 + VAT), 2) -> 15.08 | P8: 18.98 | Q8: =ROUND(P8 * (1 + VAT), 2) -> 21.64 | R8: 16.25 | S8: =ROUND(R8 * (1 + VAT), 2) -> 18.53 | Z8: 0 | AA8: =ROUND(Z8 * (1 + VAT), 2) -> 0 | AB8: 0 | AC8: =ROUND(AB8 * (1 + VAT), 2) -> 0
A9: Businessrate 2 | B9: B2 | C9: 0 | D9: 1 | E9: =B9&C9&D9&IF($A$2="Non-municipal","N",IF($A$2="Municiple","Y","error")) -> B201Y | H9: Businessrate 2 | J9: 95.47 | K9: =ROUND(J9 * (1 + VAT), 2) -> 108.84 | L9: 0.36 | M9: =ROUND(L9 * (1 + VAT), 2) -> 0.41 | N9: 13.23 | O9: =ROUND(N9 * (1 + VAT), 2) -> 15.08 | P9: 32 | Q9: =ROUND(P9 * (1 + VAT), 2) -> 36.48 | R9: 16.25 | S9: =ROUND(R9 * (1 + VAT), 2) -> 18.53 | Z9: =Z8 -> 0 | AA9: =ROUND(Z9 * (1 + VAT), 2) -> 0 | AB9: =AB8 -> 0 | AC9: =ROUND(AB9 * (1 + VAT), 2) -> 0
A10: Businessrate 3 | B10: B3 | C10: 0 | D10: 1 | E10: B301Y | H10: Businessrate 3 | J10: 95.47 | K10: =ROUND(J10 * (1 + VAT), 2) -> 108.84 | L10: 0.36 | M10: =ROUND(L10 * (1 + VAT), 2) -> 0.41 | N10: 13.23 | O10: =ROUND(N10 * (1 + VAT), 2) -> 15.08 | P10: 55.3 | Q10: =ROUND(P10 * (1 + VAT), 2) -> 63.04 | R10: 16.25 | S10: =ROUND(R10 * (1 + VAT), 2) -> 18.53 | Z10: =Z8 -> 0 | AA10: =ROUND(Z10 * (1 + VAT), 2) -> 0 | AB10: =AB8 -> 0 | AC10: =ROUND(AB10 * (1 + VAT), 2) -> 0
A11: Businessrate 4 | B11: B4 | C11: 0 | D11: 1 | E11: B401Y | H11: Businessrate 4 | J11: 256.91 | K11: =ROUND(J11 * (1 + VAT), 2) -> 292.88 | L11: 0.36 | M11: =ROUND(L11 * (1 + VAT), 2) -> 0.41 | N11: 13.23 | O11: =ROUND(N11 * (1 + VAT), 2) -> 15.08 | Z11: =Z9 -> 0 | AA11: =ROUND(Z11 * (1 + VAT), 2) -> 0 | AB11: =AB9 -> 0 | AC11: =ROUND(AB11 * (1 + VAT), 2) -> 0

Sheet Public Lighting inc
H1: Back to menu
A2: Non-municipal | H2: Public Lighting tariffs Non-local authority
K4: All Night | M4: 24 Hours
A5: Tariff | B5: Tariff nameBillcode | C5: Tx zone | D5: Voltage | E5: Billcode | L5: VAT incl | N5: VAT incl
A6: Public lighting 24 hours | B6: Pu | C6: 0 | D6: 1 | E6: =B6&C6&D6&IF($A$2="Non-municipal","N",IF($A$2="Municiple","Y","error")) -> Pu01N | H6: Public Lighting | I6: Energy charge [c/kWh] | K6: 74.2 | L6: =ROUND(K6 * (1 + VAT), 2) -> 84.59 | M6: 99.35 | N6: =ROUND(M6 * (1 + VAT), 2) -> 113.26
A7: Public lighting All Night | B7: Pa | C7: 0 | D7: 1 | E7: =B7&C7&D7&IF($A$2="Non-municipal","N",IF($A$2="Municiple","Y","error")) -> Pa01N | I7: Energy charge [R/100W/month] | K7: 23.22 | L7: =ROUND(K7 * (1 + VAT), 2) -> 26.47 | M7: 66.92 | N7: =ROUND(M7 * (1 + VAT), 2) -> 76.29
A9: Public lighting Urban fixed | B9: Pt | C9: 0 | D9: 1 | E9: =B9&C9&D9&IF($A$2="Non-municipal","N",IF($A$2="Municiple","Y","error")) -> Pt01N | H9: Public Lighting - Urban Fixed | I9: Fixed charge [R/POD/day] | K9: 4.88 | L9: =ROUND(K9 * (1 + VAT), 2) -> 5.56
H11: Maintenance charges | K11: R/month
L12: VAT incl
A13: Public Lighting - Maintenance charge - per lumanaire | B13: Plu | C13: 0 | D13: 1 | E13: =B13&C13&D13&IF($A$2="Non-municipal","N",IF($A$2="Municiple","Y","error")) -> Plu01N | J13: Per lumanaire | K13: 39.35 | L13: =ROUND(K13 * (1 + VAT), 2) -> 44.86
A14: Public Lighting - Maintenance charge - per high-mast lumanaire | B14: Plhm | C14: 0 | D14: 1 | E14: =B14&C14&D14&IF($A$2="Non-municipal","N",IF($A$2="Municiple","Y","error")) -> Plhm01N | J14: Per high-mast lumanaire | K14: 915.96 | L14: =ROUND(K14 * (1 + VAT), 2) -> 1044.19

Sheet Public Lighting Munic inc
H1: Back to menu
A2: Municipal | H2: Public Lighting tariffs Local authority | AB2: =SUM(#REF!) ->  | AC2: check value
K4: All Night | M4: 24 Hours
A5: Tariff | B5: Tariff nameBillcode | C5: Tx zone | D5: Voltage | E5: Billcode | L5: VAT incl | N5: VAT incl
A6: Public lighting 24 hours | B6: Pu | C6: 0 | D6: 1 | E6: =B6&C6&D6&IF($A$2="Non-municipal","N",IF($A$2="Municipal","Y","error")) -> Pu01Y | H6: Public Lighting | I6: Energy charge [c/kWh] | K6: 77.06 | L6: =ROUND(K6 * (1 + VAT), 2) -> 87.85 | M6: 103.19 | N6: =ROUND(M6 * (1 + VAT), 2) -> 117.64
A7: Public lighting All Night | B7: Pa | C7: 0 | D7: 1 | E7: =B7&C7&D7&IF($A$2="Non-municipal","N",IF($A$2="Municipal","Y","error")) -> Pa01Y | I7: Energy charge [R/100W/month] | K7: 23.54 | L7: =ROUND(K7 * (1 + VAT), 2) -> 26.84 | M7: 67.84 | N7: =ROUND(M7 * (1 + VAT), 2) -> 77.34
A9: Public lighting Urban fixed | B9: Pt | C9: 0 | D9: 1 | E9: =B9&C9&D9&IF($A$2="Non-municipal","N",IF($A$2="Municipal","Y","error")) -> Pt01Y | H9: Public Lighting - Urban Fixed * | I9: Fixed charge [R/POD/day] | K9: 5.066953351 | L9: =ROUND(K9 * (1 + VAT), 2) -> 5.78
H11: Maintenance charges | K11: R/month
L12: VAT incl
A13: Public Lighting - Maintenance charge - per lumanaire | B13: Plu | C13: 0 | D13: 1 | E13: =B13&C13&D13&IF($A$2="Non-municipal","N",IF($A$2="Municipal","Y","error")) -> Plu01Y | J13: Per lumanaire | K13: 40.66 | L13: =ROUND(K13 * (1 + VAT), 2) -> 46.35
A14: Public Lighting - Maintenance charge - per high-mast lumanaire | B14: Plhm | C14: 0 | D14: 1 | E14: =B14&C14&D14&IF($A$2="Non-municipal","N",IF($A$2="Municipal","Y","error")) -> Plhm01Y | J14: Per high-mast lumanaire | K14: 949.68 | L14: =ROUND(K14 * (1 + VAT), 2) -> 1082.64

Sheet Homepower inc
H1: Back to menu
A2: Non-municipal | H2: Homepower | O2: Non-local authority
J5: Energy charge [c/kWh] | N5: Network capacity charge [R/POD/day]
A6: Tariff | B6: Tariff nameBillcode | C6: Tx zone | D6: Voltage | E6: Billcode | J6: Block 1 [>0 - 600 kWh] | K6: VAT incl | L6: Block 2 [>600 kWh] | M6: VAT incl | O6: VAT incl
A7: Homepower 1 | B7: H1 | C7: 0 | D7: 1 | E7: =B7&C7&D7&IF($A$2="Non-municipal","N",IF($A$2="Municiple","Y","error")) -> H101N | H7: Homepower 1 | J7: 109.29 | K7: =ROUND(J7 * (1 + VAT), 2) -> 124.59 | L7: 172.56 | M7: =ROUND(L7 * (1 + VAT), 2) -> 196.72 | N7: 4.68 | O7: =ROUND(N7 * (1 + VAT), 2) -> 5.34
A8: Homepower 2 | B8: H2 | C8: 0 | D8: 1 | E8: =B8&C8&D8&IF($A$2="Non-municipal","N",IF($A$2="Municiple","Y","error")) -> H201N | H8: Homepower 2 | J8: 109.29 | K8: =ROUND(J8 * (1 + VAT), 2) -> 124.59 | L8: 168.25 | M8: =ROUND(L8 * (1 + VAT), 2) -> 191.81 | N8: 8.77 | O8: =ROUND(N8 * (1 + VAT), 2) -> 10
A9: Homepower 3 | B9: H3 | C9: 0 | D9: 1 | E9: H301N | H9: Homepower 3 | J9: 109.29 | K9: =ROUND(J9 * (1 + VAT), 2) -> 124.59 | L9: 168.25 | M9: =ROUND(L9 * (1 + VAT), 2) -> 191.81 | N9: 18.11 | O9: =ROUND(N9 * (1 + VAT), 2) -> 20.65
A10: Homepower 4 | B10: H4 | C10: 0 | D10: 1 | E10: H401N | H10: Homepower 4 | J10: 109.29 | K10: =ROUND(J10 * (1 + VAT), 2) -> 124.59 | L10: 175.74 | M10: =ROUND(L10 * (1 + VAT), 2) -> 200.34 | N10: 2.86 | O10: =ROUND(N10 * (1 + VAT), 2) -> 3.26
J12: Energy charge [c/kWh] | L12: Network capacity charge [R/kVA]
K13: VAT incl | M13: VAT incl
A14: Homepower Bulk < 500V | B14: HB | C14: 0 | D14: 1 | E14: =B14&C14&D14&IF($A$2="Non-municipal","N",IF($A$2="Municiple","Y","error")) -> HB01N | H14: Homepower Bulk | J14: 143.48 | K14: =ROUND(J14 * (1 + VAT), 2) -> 163.57 | L14: 29.69 | M14: =ROUND(L14 * (1 + VAT), 2) -> 33.85
H15: * The Network capacity charge is based on the NMD or on the maximum demand if measured.

Sheet Homepower Munic inc
H1: Back to menu
A2: Municiple | H2: Homepower tariffs | N2: Local authority
J4: Energy charge [c/kWh] | L4: Energy charge [c/kWh] | N4: Network capacity charge [R/POD/day]
A5: Tariff | B5: Tariff nameBillcode | C5: Tx zone | D5: Voltage | E5: Billcode | J5: Block 1 [>0 - 600 kWh] | K5: VAT incl | L5: Block 2 [>600 kWh] | M5: VAT incl | O5: VAT incl
A6: Homepower 1 | B6: H1 | C6: 0 | D6: 1 | E6: =B6&C6&D6&IF($A$2="Non-municipal","N",IF($A$2="Municiple","Y","error")) -> H101Y | H6: Homepower 1 | J6: 109.29 | K6: =ROUND(J6 * (1 + VAT), 2) -> 124.59 | L6: 172.57 | M6: =ROUND(L6 * (1 + VAT), 2) -> 196.73 | N6: 4.68 | O6: =ROUND(N6 * (1 + VAT), 2) -> 5.34
A7: Homepower 2 | B7: H2 | C7: 0 | D7: 1 | E7: =B7&C7&D7&IF($A$2="Non-municipal","N",IF($A$2="Municiple","Y","error")) -> H201Y | H7: Homepower 2 | J7: 109.29 | K7: =ROUND(J7 * (1 + VAT), 2) -> 124.59 | L7: 168.24 | M7: =ROUND(L7 * (1 + VAT), 2) -> 191.79 | N7: 8.77 | O7: =ROUND(N7 * (1 + VAT), 2) -> 10
A8: Homepower 3 | B8: H3 | C8: 0 | D8: 1 | E8: H301Y | H8: Homepower 3 | J8: 109.29 | K8: =ROUND(J8 * (1 + VAT), 2) -> 124.59 | L8: 168.24 | M8: =ROUND(L8 * (1 + VAT), 2) -> 191.79 | N8: 18.11 | O8: =ROUND(N8 * (1 + VAT), 2) -> 20.65
A9: Homepower 4 | B9: H4 | C9: 0 | D9: 1 | E9: H401Y | H9: Homepower 4 | J9: 109.29 | K9: =ROUND(J9 * (1 + VAT), 2) -> 124.59 | L9: 175.75 | M9: =ROUND(L9 * (1 + VAT), 2) -> 200.36 | N9: 2.86 | O9: =ROUND(N9 * (1 + VAT), 2) -> 3.26

Sheet Homelight inc
H1: Back to menu
A2: Non-municipal | H2: Homelight tariffs Non-local authority
H4: Homelight 60A | J4: Energy charge [c/kWh]
A5: Tariff | B5: Tariff nameBillcode | C5: Tx zone | D5: Voltage | E5: Billcode | K5: VAT incl
A6: Homelight 1 60A | B6: HL16 | C6: 0 | D6: 1 | E6: =B6&C6&D6&IF($A$2="Non-municipal","N",IF($A$2="Municiple","Y","error")) -> HL1601N | H6: Block 1 [> 0 - 600 kWh] | J6: 103.39 | K6: =ROUND(J6 * (1 + VAT), 2) -> 117.86
A7: Homelight 2 60A | B7: HL26 | C7: 0 | D7: 1 | E7: =B7&C7&D7&IF($A$2="Non-municipal","N",IF($A$2="Municiple","Y","error")) -> HL2601N | H7: Block 2 [>600 kWh] | J7: 175.74 | K7: =ROUND(J7 * (1 + VAT), 2) -> 200.34
H10: Homelight 20A | J10: Energy charge [c/kWh]
K11: VAT incl
A12: Homelight 1 20A | B12: HL12 | C12: 0 | D12: 1 | E12: =B12&C12&D12&IF($A$2="Non-municipal","N",IF($A$2="Municiple","Y","error")) -> HL1201N | H12: Block 1 [> 0 - 350 kWh] | J12: 91.46 | K12: =ROUND(J12 * (1 + VAT), 2) -> 104.26
A13: Homelight 2 20A | B13: HL22 | C13: 0 | D13: 1 | E13: =B13&C13&D13&IF($A$2="Non-municipal","N",IF($A$2="Municiple","Y","error")) -> HL2201N | H13: Block 2 [>350 kWh] | J13: 103.51 | K13: =ROUND(J13 * (1 + VAT), 2) -> 118

Sheet Nightsave Rural inc
G1: Back to menu
A2: Non-municipal | G2: Nightsave Rural tariff | R2: Non-local authority | AF2: =SUM(#REF!,#REF!,#REF!,#REF!,#REF!,#REF!,#REF!,#REF!,#REF!,#REF!,#REF!,#REF!,#REF!,#REF!,#REF!) ->  | AG2: check value
J4: Active energy charge [c/kWh] | N4: Energy demand charges [R/kVA/m] | R4: Network capacity charges [R/kVA/m]
H5: Transmission zone | J5: High demand season [Jun - Aug] | L5: Low demand season [Sep - May] | N5: High demand season [Jun - Aug] | P5: Low demand season [Sep - May]
I6: Voltage
A7: Tariff | B7: Tariff nameBillcode | C7: Tx zone | D7: Voltage | E7: Billcode | K7: VAT incl | M7: VAT incl | O7: VAT incl | Q7: VAT incl | S7: VAT incl
A8: Nightsave Rural | B8: NR | C8: 0 | D8: 1 | E8: =B8&C8&D8&IF($A$2="Non-municipal","N",IF($A$2="Municiple","Y","error")) -> NR01N | H8: ≤ 300km | I8: < 500V | J8: 68.78 | K8: =ROUND(J8 * (1 + VAT), 2) -> 78.41 | L8: 53.44 | M8: =ROUND(L8 * (1 + VAT), 2) -> 60.92 | N8: 230.46 | O8: =ROUND(N8 * (1 + VAT), 2) -> 262.72 | P8: 121.98 | Q8: =ROUND(P8 * (1 + VAT), 2) -> 139.06 | R8: 11.65 | S8: =ROUND(R8 * (1 + VAT), 2) -> 13.28
A9: Nightsave Rural | B9: NR | C9: 0 | D9: 2 | E9: =B9&C9&D9&IF($A$2="Non-municipal","N",IF($A$2="Municiple","Y","error")) -> NR02N | I9: ≥ 500V & ≤ 22kV | J9: 67.97 | K9: 77.49 | L9: 52.85 | M9: 60.25 | N9: 223.32 | O9: 254.58 | P9: 117.64 | Q9: 134.11 | R9: 10.7 | S9: 12.2
A10: Nightsave Rural | B10: NR | E10: NRN | J10: 0 | L10: 0 | N10: 0 | O10: 0 | P10: 0 | Q10: 0 | R10: 0
A11: Nightsave Rural | B11: NR | E11: NRN | J11: 0 | L11: 0 | N11: 0 | O11: 0 | P11: 0 | Q11: 0 | R11: 0
A12: Nightsave Rural | B12: NR | C12: 1 | D12: 1 | E12: NR11N | H12: > 300km and ≤ 600km | I12: < 500V | J12: 69.46 | K12: 79.18 | L12: 53.98 | M12: 61.54 | N12: 233.24 | O12: 265.89 | P12: 123.67 | Q12: 140.98 | R12: 11.68 | S12: 13.32
A13: Nightsave Rural | B13: NR | C13: 1 | D13: 2 | E13: NR12N | I13: ≥ 500V & ≤ 22kV | J13: 68.67 | K13: 78.28 | L13: 53.38 | M13: 60.85 | N13: 226.05 | O13: 257.7 | P13: 119.28 | Q13: 135.98 | R13: 10.75 | S13: 12.26
A14: Nightsave Rural | B14: NR | E14: NRN | J14: 0 | L14: 0 | N14: 0 | O14: 0 | P14: 0 | Q14: 0 | R14: 0
A15: Nightsave Rural | B15: NR | E15: NRN | J15: 0 | L15: 0 | N15: 0 | O15: 0 | P15: 0 | Q15: 0 | R15: 0
A16: Nightsave Rural | B16: NR | C16: 2 | D16: 1 | E16: NR21N | H16: > 600km and ≤ 900km | I16: < 500V | J16: 70.16 | K16: 79.98 | L16: 54.51 | M16: 62.14 | N16: 236.04 | O16: 269.09 | P16: 125.33 | Q16: 142.88 | R16: 11.79 | S16: 13.44
A17: Nightsave Rural | B17: NR | C17: 2 | D17: 2 | E17: NR22N | I17: ≥ 500V & ≤ 22kV | J17: 69.34 | K17: 79.05 | L17: 53.91 | M17: 61.46 | N17: 228.76 | O17: 260.79 | P17: 120.93 | Q17: 137.86 | R17: 10.82 | S17: 12.33
A18: Nightsave Rural | B18: NR | E18: NRN | J18: 0 | L18: 0 | N18: 0 | O18: 0 | P18: 0 | Q18: 0 | R18: 0
A19: Nightsave Rural | B19: NR | E19: NRN | J19: 0 | L19: 0 | N19: 0 | O19: 0 | P19: 0 | Q19: 0 | R19: 0
A20: Nightsave Rural | B20: NR | C20: 3 | D20: 1 | E20: NR31N | H20: > 900km | I20: < 500V | J20: 70.85 | K20: 80.77 | L20: 55.06 | M20: 62.77 | N20: 238.9 | O20: =ROUND(N20 * (1 + VAT), 2) -> 272.35 | P20: 127.06 | Q20: =ROUND(P20 * (1 + VAT), 2) -> 144.85 | R20: 11.82 | S20: 13.47
A21: Nightsave Rural | B21: NR | C21: 3 | D21: 2 | E21: NR32N | I21: ≥ 500V & ≤ 22kV | J21: 70.02 | K21: 79.82 | L21: 54.43 | M21: 62.05 | N21: 231.55 | O21: 263.97 | P21: 122.62 | Q21: 139.79 | R21: 10.84 | S21: 12.36
H26: Customer categories | J26: Service charge [R/account/day] | L26: Administration charge [R/POD/day]
A28: Tariff | B28: Tariff nameBillcode | C28: Tx zone | D28: Voltage | E28: Billcode | K28: VAT incl | M28: VAT incl
A29: Nightsave Rural | B29: NR | C29: 0 | D29: 1 | E29: =B29&C29&D29&IF($A$2="Non-municipal","N",IF($A$2="Municiple","Y","error")) -> NR01N | H29: ≤ 100 kVA | J29: 16.02 | K29: =ROUND(J29 * (1 + VAT), 2) -> 18.26 | L29: 4.55 | M29: =ROUND(L29 * (1 + VAT), 2) -> 5.19
A30: Nightsave Rural | B30: NR | C30: 0 | D30: 1 | E30: NR01N | H30: > 100 kVA & ≤ 500 kVA | J30: 54.63 | K30: =ROUND(J30 * (1 + VAT), 2) -> 62.28 | L30: 25.33 | M30: =ROUND(L30 * (1 + VAT), 2) -> 28.88 | P30: Ancillary service charge [c/kWh] | R30: Network demand charge [c/kWh] in all time-of-use periods
A31: Nightsave Rural | B31: NR | C31: 0 | D31: 1 | E31: NR01N | H31: > 500 kVA & ≤ 1 MVA | J31: 168.07 | K31: =ROUND(J31 * (1 + VAT), 2) -> 191.6 | L31: 38.87 | M31: =ROUND(L31 * (1 + VAT), 2) -> 44.31 | O31: Voltage | Q31: VAT incl | S31: VAT incl
A32: Nightsave Rural | B32: NR | C32: 0 | D32: 1 | E32: NR01N | H32: > 1 MVA | J32: 168.07 | K32: =ROUND(J32 * (1 + VAT), 2) -> 191.6 | L32: 72.13 | M32: =ROUND(L32 * (1 + VAT), 2) -> 82.23 | O32: < 500V | P32: 0.36 | Q32: =ROUND(P32 * (1 + VAT), 2) -> 0.41 | R32: 23.18 | S32: =ROUND(R32 * (1 + VAT), 2) -> 26.43
A33: Nightsave Rural | B33: NR | C33: 0 | D33: 1 | E33: NR01N | H33: Key customers | J33: 3293.99 | K33: =ROUND(J33 * (1 + VAT), 2) -> 3755.15 | L33: 72.13 | M33: =ROUND(L33 * (1 + VAT), 2) -> 82.23 | O33: ≥ 500V & ≤ 22kV | P33: 0.36 | Q33: =ROUND(P33 * (1 + VAT), 2) -> 0.41 | R33: 20.32 | S33: =ROUND(R33 * (1 + VAT), 2) -> 23.16
A34: Nightsave Rural | B34: NR | C34: 0 | D34: 2 | E34: NR02N

Sheet Nightsave Rural Munic inc
G1: Back to menu
A2: Municiple | G2: Nightsave Rural tariff | R2: Local authority | AF2: =SUM(#REF!,#REF!,#REF!,#REF!,#REF!,#REF!,#REF!,#REF!,#REF!,#REF!,#REF!,#REF!,#REF!,#REF!,#REF!) ->  | AG2: check value
J4: Active energy charge [c/kWh] | N4: Energy demand charges [R/kVA/m] | R4: Network capacity charges [R/kVA/m]
H5: Transmission zone | J5: High demand season [Jun - Aug] | L5: Low demand season [Sep - May] | N5: High demand season [Jun - Aug] | P5: Low demand season [Sep - May]
I6: Voltage
A7: Tariff | B7: Tariff nameBillcode | C7: Tx zone | D7: Voltage | E7: Billcode | K7: VAT incl | M7: VAT incl | O7: VAT incl | Q7: VAT incl | S7: VAT incl
A8: Nightsave Rural | B8: NR | C8: 0 | D8: 1 | E8: =B8&C8&D8&IF($A$2="Non-municipal","N",IF($A$2="Municiple","Y","error")) -> NR01Y | H8: ≤ 300km | I8: < 500V | J8: 70.42 | K8: =ROUND(J8 * (1 + VAT), 2) -> 80.28 | L8: 54.72 | M8: =ROUND(L8 * (1 + VAT), 2) -> 62.38 | N8: 230.46 | O8: =ROUND(N8 * (1 + VAT), 2) -> 262.72 | P8: 121.98 | Q8: =ROUND(P8 * (1 + VAT), 2) -> 139.06 | R8: 11.77 | S8: =ROUND(R8 * (1 + VAT), 2) -> 13.42
A9: Nightsave Rural | B9: NR | C9: 0 | D9: 2 | E9: =B9&C9&D9&IF($A$2="Non-municipal","N",IF($A$2="Municiple","Y","error")) -> NR02Y | I9: ≥ 500V & ≤ 22kV | J9: 69.59 | K9: 79.33 | L9: 54.11 | M9: 61.69 | N9: 223.32 | O9: 254.58 | P9: 117.63 | Q9: 134.1 | R9: 10.81 | S9: 12.32
A10: Nightsave Rural | B10: NR | E10: NRY | J10: 0 | L10: 0 | N10: 0 | O10: 0 | P10: 0 | Q10: 0 | R10: 0
A11: Nightsave Rural | B11: NR | E11: NRY | J11: 0 | L11: 0 | N11: 0 | O11: 0 | P11: 0 | Q11: 0 | R11: 0
A12: Nightsave Rural | B12: NR | C12: 1 | D12: 1 | E12: NR11Y | H12: > 300km and ≤ 600km | I12: < 500V | J12: 71.13 | K12: 81.09 | L12: 55.28 | M12: 63.02 | N12: 233.26 | O12: 265.92 | P12: 123.67 | Q12: 140.98 | R12: 11.79 | S12: 13.44
A13: Nightsave Rural | B13: NR | C13: 1 | D13: 2 | E13: NR12Y | I13: ≥ 500V & ≤ 22kV | J13: 70.28 | K13: 80.12 | L13: 54.65 | M13: 62.3 | N13: 226.05 | O13: 257.7 | P13: 119.27 | Q13: 135.97 | R13: 10.85 | S13: 12.37
A14: Nightsave Rural | B14: NR | E14: NRY | J14: 0 | L14: 0 | N14: 0 | O14: 0 | P14: 0 | Q14: 0 | R14: 0
A15: Nightsave Rural | B15: NR | E15: NRY | J15: 0 | L15: 0 | N15: 0 | O15: 0 | P15: 0 | Q15: 0 | R15: 0
A16: Nightsave Rural | B16: NR | C16: 2 | D16: 1 | E16: NR21Y | H16: > 600km and ≤ 900km | I16: < 500V | J16: 71.82 | K16: 81.87 | L16: 55.81 | M16: 63.62 | N16: 236.05 | O16: 269.1 | P16: 125.33 | Q16: 142.88 | R16: 11.91 | S16: 13.58
A17: Nightsave Rural | B17: NR | C17: 2 | D17: 2 | E17: NR22Y | I17: ≥ 500V & ≤ 22kV | J17: 70.98 | K17: 80.92 | L17: 55.19 | M17: 62.92 | N17: 228.77 | O17: 260.8 | P17: 120.93 | Q17: 137.86 | R17: 10.92 | S17: 12.45
A18: Nightsave Rural | B18: NR | E18: NRY | J18: 0 | L18: 0 | N18: 0 | O18: 0 | P18: 0 | Q18: 0 | R18: 0
A19: Nightsave Rural | B19: NR | E19: NRY | J19: 0 | L19: 0 | N19: 0 | O19: 0 | P19: 0 | Q19: 0 | R19: 0
A20: Nightsave Rural | B20: NR | C20: 3 | D20: 1 | E20: NR31Y | H20: > 900km | I20: < 500V | J20: 72.54 | K20: 82.7 | L20: 56.36 | M20: 64.25 | N20: 238.91 | O20: 272.36 | P20: 127.06 | Q20: 144.85 | R20: 11.92 | S20: 13.59
A21: Nightsave Rural | B21: NR | C21: 3 | D21: 2 | E21: NR32Y | I21: ≥ 500V & ≤ 22kV | J21: 71.68 | K21: 81.72 | L21: 55.72 | M21: 63.52 | N21: 231.56 | O21: 263.98 | P21: 122.62 | Q21: 139.79 | R21: 10.93 | S21: 12.46
H26: Customer categories | J26: Service charge [R/account/day] | L26: Administration charge [R/POD/day]
A28: Tariff | B28: Tariff nameBillcode | C28: Tx zone | D28: Voltage | E28: Billcode | K28: VAT incl | M28: VAT incl
A29: Nightsave Rural | B29: NR | C29: 0 | D29: 1 | E29: =B29&C29&D29&IF($A$2="Non-municipal","N",IF($A$2="Municiple","Y","error")) -> NR01Y | H29: ≤ 100 kVA | J29: 15.95 | K29: =ROUND(J29 * (1 + VAT), 2) -> 18.18 | L29: 4.53 | M29: =ROUND(L29 * (1 + VAT), 2) -> 5.16
A30: Nightsave Rural | B30: NR | C30: 0 | D30: 1 | E30: =B30&C30&D30&IF($A$2="Non-municipal","N",IF($A$2="Municiple","Y","error")) -> NR01Y | H30: > 100 kVA & ≤ 500 kVA | J30: 54.39 | K30: =ROUND(J30 * (1 + VAT), 2) -> 62 | L30: 25.21 | M30: =ROUND(L30 * (1 + VAT), 2) -> 28.74 | P30: Ancillary service charge [c/kWh] | R30: Network demand charge [c/kWh] in all time-of-use periods
A31: Nightsave Rural | B31: NR | C31: 0 | D31: 1 | E31: =B31&C31&D31&IF($A$2="Non-municipal","N",IF($A$2="Municiple","Y","error")) -> NR01Y | H31: > 500 kVA & ≤ 1 MVA | J31: 167.31 | K31: =ROUND(J31 * (1 + VAT), 2) -> 190.73 | L31: 38.69 | M31: =ROUND(L31 * (1 + VAT), 2) -> 44.11 | O31: Voltage | Q31: VAT incl | S31: VAT incl
A32: Nightsave Rural | B32: NR | C32: 0 | D32: 1 | E32: =B32&C32&D32&IF($A$2="Non-municipal","N",IF($A$2="Municiple","Y","error")) -> NR01Y | H32: > 1 MVA | J32: 167.31 | K32: =ROUND(J32 * (1 + VAT), 2) -> 190.73 | L32: 71.81 | M32: =ROUND(L32 * (1 + VAT), 2) -> 81.86 | O32: < 500V | P32: 0.36 | Q32: =ROUND(P32 * (1 + VAT), 2) -> 0.41 | R32: 23.42 | S32: =ROUND(R32 * (1 + VAT), 2) -> 26.7
A33: Nightsave Rural | B33: NR | C33: 0 | D33: 1 | E33: =B33&C33&D33&IF($A$2="Non-municipal","N",IF($A$2="Municiple","Y","error")) -> NR01Y | H33: Key customers | J33: 3278.87 | K33: =ROUND(J33 * (1 + VAT), 2) -> 3737.91 | L33: 71.81 | M33: =ROUND(L33 * (1 + VAT), 2) -> 81.86 | O33: ≥ 500V & ≤ 22kV | P33: 0.36 | Q33: =ROUND(P33 * (1 + VAT), 2) -> 0.41 | R33: 20.5 | S33: =ROUND(R33 * (1 + VAT), 2) -> 23.37

Sheet Ruraflex inc
G1: Back to menu
A2: Non-municipal | G2: Ruraflex tariff | T2: Non-local authority | AF2: =SUM(#REF!,#REF!,#REF!,#REF!,#REF!,#REF!,#REF!,#REF!,#REF!,#REF!,#REF!,#REF!) ->  | AG2: check value
J4: Active energy charge [c/kWh] | V4: Network capacity charges [R/kVA/m]
H5: Transmission zone | J5: High demand season [Jun - Aug] | P5: Low demand season [Sep - May]
I6: Voltage | J6: Peak | L6: Standard | N6: Off Peak | P6: Peak | R6: Standard | T6: Off Peak
A7: Tariff | B7: Tariff nameBillcode | C7: Tx zone | D7: Voltage | E7: Billcode | K7: VAT incl | M7: VAT incl | O7: VAT incl | Q7: VAT incl | S7: VAT incl | U7: VAT incl | W7: VAT incl
A8: Ruraflex | B8: Ru | C8: 0 | D8: 1 | E8: =B8&C8&D8&IF($A$2="Non-municipal","N",IF($A$2="Municiple","Y","error")) -> Ru01N | H8: ≤ 300km | I8: < 500V | J8: 282 | K8: =ROUND(J8 * (1 + VAT), 2) -> 321.48 | L8: 85.43 | M8: =ROUND(L8 * (1 + VAT), 2) -> 97.39 | N8: 46.4 | O8: =ROUND(N8 * (1 + VAT), 2) -> 52.9 | P8: 91.99 | Q8: =ROUND(P8 * (1 + VAT), 2) -> 104.87 | R8: 63.31 | S8: =ROUND(R8 * (1 + VAT), 2) -> 72.17 | T8: 40.16 | U8: =ROUND(T8 * (1 + VAT), 2) -> 45.78 | V8: 16.28 | W8: =ROUND(V8 * (1 + VAT), 2) -> 18.56
A9: Ruraflex | B9: Ru | C9: 0 | D9: 2 | E9: =B9&C9&D9&IF($A$2="Non-municipal","N",IF($A$2="Municiple","Y","error")) -> Ru02N | I9: ≥ 500V & ≤ 22kV | J9: 279.21 | K9: 318.3 | L9: 84.59 | M9: 96.43 | N9: 45.93 | O9: 52.36 | P9: 91.09 | Q9: 103.84 | R9: 62.68 | S9: 71.46 | T9: 39.76 | U9: 45.33 | V9: 14.92 | W9: 17.01
A10: Ruraflex | B10: Ru | E10: RuN | J10: 0 | L10: 0 | N10: 0 | P10: 0 | R10: 0 | T10: 0 | V10: 0
A11: Ruraflex | B11: Ru | E11: RuN | J11: 0 | L11: 0 | N11: 0 | P11: 0 | R11: 0 | T11: 0 | V11: 0
A12: Ruraflex | B12: Ru | C12: 1 | D12: 1 | E12: Ru11N | H12: > 300km and ≤ 600km | I12: < 500V | J12: 284.82 | K12: 324.69 | L12: 86.28 | M12: 98.36 | N12: 46.86 | O12: 53.42 | P12: 92.9 | Q12: 105.91 | R12: 63.94 | S12: 72.89 | T12: 40.58 | U12: 46.26 | V12: 16.33 | W12: 18.62
A13: Ruraflex | B13: Ru | C13: 1 | D13: 2 | E13: Ru12N | I13: ≥ 500V & ≤ 22kV | J13: 281.99 | K13: 321.47 | L13: 85.42 | M13: 97.38 | N13: 46.4 | O13: 52.9 | P13: 91.99 | Q13: 104.87 | R13: 63.3 | S13: 72.16 | T13: 40.16 | U13: 45.78 | V13: 15.02 | W13: 17.12
A14: Ruraflex | B14: Ru | E14: RuN | J14: 0 | L14: 0 | N14: 0 | P14: 0 | R14: 0 | T14: 0 | V14: 0
A15: Ruraflex | B15: Ru | E15: RuN | J15: 0 | L15: 0 | N15: 0 | P15: 0 | R15: 0 | T15: 0 | V15: 0
A16: Ruraflex | B16: Ru | C16: 2 | D16: 1 | E16: Ru21N | H16: > 600km and ≤ 900km | I16: < 500V | J16: 287.67 | K16: 327.94 | L16: 87.15 | M16: 99.35 | N16: 47.32 | O16: 53.94 | P16: 93.84 | Q16: 106.98 | R16: 64.58 | S16: 73.62 | T16: 40.98 | U16: 46.72 | V16: 16.42 | W16: 18.72
A17: Ruraflex | B17: Ru | C17: 2 | D17: 2 | E17: Ru22N | I17: ≥ 500V & ≤ 22kV | J17: 284.81 | K17: 324.68 | L17: 86.27 | M17: 98.35 | N17: 46.86 | O17: 53.42 | P17: 92.9 | Q17: 105.91 | R17: 63.94 | S17: 72.89 | T17: 40.58 | U17: 46.26 | V17: 15.08 | W17: 17.19
A18: Ruraflex | B18: Ru | E18: RuN | J18: 0 | L18: 0 | N18: 0 | P18: 0 | R18: 0 | T18: 0 | V18: 0
A19: Ruraflex | B19: Ru | E19: RuN | J19: 0 | L19: 0 | N19: 0 | P19: 0 | R19: 0 | T19: 0 | V19: 0
A20: Ruraflex | B20: Ru | C20: 3 | D20: 1 | E20: Ru31N | H20: > 900km | I20: < 500V | J20: 290.54 | K20: 331.22 | L20: 88.02 | M20: 100.34 | N20: 47.79 | O20: 54.48 | P20: 94.76 | Q20: 108.03 | R20: 65.22 | S20: 74.35 | T20: 41.39 | U20: 47.18 | V20: 16.49 | W20: 18.8
A21: Ruraflex | B21: Ru | C21: 3 | D21: 2 | E21: Ru32N | I21: ≥ 500V & ≤ 22kV | J21: 287.66 | K21: 327.93 | L21: 87.15 | M21: 99.35 | N21: 47.32 | O21: 53.94 | P21: 93.84 | Q21: 106.98 | R21: 64.58 | S21: 73.62 | T21: 40.98 | U21: 46.72 | V21: 15.09 | W21: 17.2
N22: 0
N23: 0
H26: Customer categories | J26: Service charge [R/account/day] | L26: Administration charge [R/POD/day] | Q26: Ancillary service charge [c/kWh] | S26: Network demand charge [c/kWh] in all time-of-use periods
O27: Voltage | R27: VAT incl | T27: VAT incl
A28: Tariff | B28: Tariff nameBillcode | C28: Tx zone | D28: Voltage | E28: Billcode | K28: VAT incl | M28: VAT incl | O28: < 500V | Q28: 0.36 | R28: =ROUND(Q28 * (1 + VAT), 2) -> 0.41 | S28: 23.18 | T28: =ROUND(S28 * (1 + VAT), 2) -> 26.43
A29: Ruraflex | B29: Ru | C29: 0 | D29: 1 | E29: =B29&C29&D29&IF($A$2="Non-municipal","N",IF($A$2="Municiple","Y","error")) -> Ru01N | H29: ≤ 100 kVA | J29: 16.02 | K29: =ROUND(J29 * (1 + VAT), 2) -> 18.26 | L29: 4.55 | M29: =ROUND(L29 * (1 + VAT), 2) -> 5.19 | O29: ≥ 500V & < 22kV | Q29: 0.36 | R29: =ROUND(Q29 * (1 + VAT), 2) -> 0.41 | S29: 20.32 | T29: =ROUND(S29 * (1 + VAT), 2) -> 23.16
A30: Ruraflex | B30: Ru | C30: 0 | D30: 1 | E30: =B30&C30&D30&IF($A$2="Non-municipal","N",IF($A$2="Municiple","Y","error")) -> Ru01N | H30: > 100 kVA & ≤ 500 kVA | J30: 54.63 | K30: =ROUND(J30 * (1 + VAT), 2) -> 62.28 | L30: 25.33 | M30: =ROUND(L30 * (1 + VAT), 2) -> 28.88
A31: Ruraflex | B31: Ru | C31: 0 | D31: 1 | E31: =B31&C31&D31&IF($A$2="Non-municipal","N",IF($A$2="Municiple","Y","error")) -> Ru01N | H31: > 500 kVA & ≤ 1 MVA | J31: 168.07 | K31: =ROUND(J31 * (1 + VAT), 2) -> 191.6 | L31: 38.87 | M31: =ROUND(L31 * (1 + VAT), 2) -> 44.31 | O31: Reactive energy charge [c/kVArh]
A32: Ruraflex | B32: Ru | C32: 0 | D32: 1 | E32: =B32&C32&D32&IF($A$2="Non-municipal","N",IF($A$2="Municiple","Y","error")) -> Ru01N | H32: > 1 MVA | J32: 168.07 | K32: =ROUND(J32 * (1 + VAT), 2) -> 191.6 | L32: 72.13 | M32: =ROUND(L32 * (1 + VAT), 2) -> 82.23 | O32: High season | Q32: Low season
A33: Ruraflex | B33: Ru | C33: 0 | D33: 1 | E33: =B33&C33&D33&IF($A$2="Non-municipal","N",IF($A$2="Municiple","Y","error")) -> Ru01N | H33: Key customers | J33: 3293.99 | K33: =ROUND(J33 * (1 + VAT), 2) -> 3755.15 | L33: 72.13 | M33: =ROUND(L33 * (1 + VAT), 2) -> 82.23 | P33: VAT incl | R33: VAT incl
O34: 7.83 | P34: =ROUND(O34 * (1 + VAT), 2) -> 8.93 | Q34: 0 | R34: =ROUND(Q34 * (1 + VAT), 2) -> 0

Sheet Ruraflex Munic inc
G1: Back to menu
A2: Municiple | G2: Ruraflex tariff | T2: Local authority | AF2: =SUM(#REF!,#REF!,#REF!,#REF!,#REF!,#REF!,#REF!,#REF!,#REF!,#REF!,#REF!,#REF!) ->  | AG2: check value
J4: Active energy charge [c/kWh] | V4: Network capacity charges [R/kVA/m]
H5: Transmission zone | J5: High demand season [Jun - Aug] | P5: Low demand season [Sep - May]
I6: Voltage | J6: Peak | L6: Standard | N6: Off Peak | P6: Peak | R6: Standard | T6: Off Peak
A7: Tariff | B7: Tariff nameBillcode | C7: Tx zone | D7: Voltage | E7: Billcode | K7: VAT incl | M7: VAT incl | O7: VAT incl | Q7: VAT incl | S7: VAT incl | U7: VAT incl | W7: VAT incl
A8: Ruraflex | B8: Ru | C8: 0 | D8: 1 | E8: =B8&C8&D8&IF($A$2="Non-municipal","N",IF($A$2="Municiple","Y","error")) -> Ru01Y | H8: ≤ 300km | I8: < 500V | J8: 288.73 | K8: =ROUND(J8 * (1 + VAT), 2) -> 329.15 | L8: 87.46 | M8: =ROUND(L8 * (1 + VAT), 2) -> 99.7 | N8: 47.5 | O8: =ROUND(N8 * (1 + VAT), 2) -> 54.15 | P8: 94.19 | Q8: =ROUND(P8 * (1 + VAT), 2) -> 107.38 | R8: 64.82 | S8: =ROUND(R8 * (1 + VAT), 2) -> 73.89 | T8: 41.12 | U8: =ROUND(T8 * (1 + VAT), 2) -> 46.88 | V8: 16.42 | W8: =ROUND(V8 * (1 + VAT), 2) -> 18.72
A9: Ruraflex | B9: Ru | C9: 0 | D9: 2 | E9: =B9&C9&D9&IF($A$2="Non-municipal","N",IF($A$2="Municiple","Y","error")) -> Ru02Y | I9: ≥ 500V & ≤ 22kV | J9: 285.86 | K9: 325.88 | L9: 86.6 | M9: 98.72 | N9: 47.02 | O9: 53.6 | P9: 93.27 | Q9: 106.33 | R9: 64.16 | S9: 73.14 | T9: 40.7 | U9: 46.4 | V9: 15.06 | W9: 17.17
A10: Ruraflex | B10: Ru | E10: RuY | J10: 0 | L10: 0 | N10: 0 | P10: 0 | R10: 0 | T10: 0 | V10: 0
A11: Ruraflex | B11: Ru | E11: RuY | J11: 0 | L11: 0 | N11: 0 | P11: 0 | R11: 0 | T11: 0 | V11: 0
A12: Ruraflex | B12: Ru | C12: 1 | D12: 1 | E12: Ru11Y | H12: > 300km and ≤ 600km | I12: < 500V | J12: 291.61 | K12: 332.44 | L12: 88.35 | M12: 100.72 | N12: 47.95 | O12: 54.66 | P12: 95.12 | Q12: 108.44 | R12: 65.47 | S12: 74.64 | T12: 41.54 | U12: 47.36 | V12: 16.49 | W12: 18.8
A13: Ruraflex | B13: Ru | C13: 1 | D13: 2 | E13: Ru12Y | I13: ≥ 500V & ≤ 22kV | J13: 288.72 | K13: 329.14 | L13: 87.45 | M13: 99.69 | N13: 47.5 | O13: 54.15 | P13: 94.19 | Q13: 107.38 | R13: 64.81 | S13: 73.88 | T13: 41.12 | U13: 46.88 | V13: 15.15 | W13: 17.27
A14: Ruraflex | B14: Ru | E14: RuY | J14: 0 | L14: 0 | N14: 0 | P14: 0 | R14: 0 | T14: 0 | V14: 0
A15: Ruraflex | B15: Ru | E15: RuY | J15: 0 | L15: 0 | N15: 0 | P15: 0 | R15: 0 | T15: 0 | V15: 0
A16: Ruraflex | B16: Ru | C16: 2 | D16: 1 | E16: Ru21Y | H16: > 600km and ≤ 900km | I16: < 500V | J16: 294.53 | K16: 335.76 | L16: 89.21 | M16: 101.7 | N16: 48.45 | O16: 55.23 | P16: 96.07 | Q16: 109.52 | R16: 66.11 | S16: 75.37 | T16: 41.96 | U16: 47.83 | V16: 16.58 | W16: 18.9
A17: Ruraflex | B17: Ru | C17: 2 | D17: 2 | E17: Ru22Y | I17: ≥ 500V & ≤ 22kV | J17: 291.6 | K17: 332.42 | L17: 88.34 | M17: 100.71 | N17: 47.95 | O17: 54.66 | P17: 95.12 | Q17: 108.44 | R17: 65.47 | S17: 74.64 | T17: 41.54 | U17: 47.36 | V17: 15.22 | W17: 17.35
A18: Ruraflex | B18: Ru | E18: RuY | J18: 0 | L18: 0 | N18: 0 | P18: 0 | R18: 0 | T18: 0 | V18: 0
A19: Ruraflex | B19: Ru | E19: RuY | J19: 0 | L19: 0 | N19: 0 | P19: 0 | R19: 0 | T19: 0 | V19: 0
A20: Ruraflex | B20: Ru | C20: 3 | D20: 1 | E20: Ru31Y | H20: > 900km | I20: < 500V | J20: 297.48 | K20: 339.13 | L20: 90.13 | M20: 102.75 | N20: 48.91 | O20: 55.76 | P20: 97.02 | Q20: 110.6 | R20: 66.79 | S20: 76.14 | T20: 42.37 | U20: 48.3 | V20: 16.63 | W20: 18.96
A21: Ruraflex | B21: Ru | C21: 3 | D21: 2 | E21: Ru32Y | I21: ≥ 500V & ≤ 22kV | J21: 294.52 | K21: 335.75 | L21: 89.21 | M21: 101.7 | N21: 48.45 | O21: 55.23 | P21: 96.07 | Q21: 109.52 | R21: 66.11 | S21: 75.37 | T21: 41.96 | U21: 47.83 | V21: 15.23 | W21: 17.36
N22: 0
N23: 0
H26: Customer categories | J26: Service charge [R/account/day] | L26: Administration charge [R/POD/day] | Q26: Ancillary service charge [c/kWh] | S26: Network demand charge [c/kWh] in all time-of-use periods
O27: Voltage | R27: VAT incl | T27: VAT incl
A28: Tariff | B28: Tariff nameBillcode | C28: Tx zone | D28: Voltage | E28: Billcode | K28: VAT incl | M28: VAT incl | O28: < 500V | Q28: 0.36 | R28: =ROUND(Q28 * (1 + VAT), 2) -> 0.41 | S28: 23.42 | T28: =ROUND(S28 * (1 + VAT), 2) -> 26.7
A29: Ruraflex | B29: Ru | C29: 0 | D29: 1 | E29: =B29&C29&D29&IF($A$2="Non-municipal","N",IF($A$2="Municiple","Y","error")) -> Ru01Y | H29: ≤ 100 kVA | J29: 15.95 | K29: =ROUND(J29 * (1 + VAT), 2) -> 18.18 | L29: 4.53 | M29: =ROUND(L29 * (1 + VAT), 2) -> 5.16 | O29: ≥ 500V & < 22kV | Q29: 0.36 | R29: =ROUND(Q29 * (1 + VAT), 2) -> 0.41 | S29: 20.5 | T29: =ROUND(S29 * (1 + VAT), 2) -> 23.37
A30: Ruraflex | B30: Ru | C30: 0 | D30: 1 | E30: =B30&C30&D30&IF($A$2="Non-municipal","N",IF($A$2="Municiple","Y","error")) -> Ru01Y | H30: > 100 kVA & ≤ 500 kVA | J30: 54.39 | K30: =ROUND(J30 * (1 + VAT), 2) -> 62 | L30: 25.21 | M30: =ROUND(L30 * (1 + VAT), 2) -> 28.74
A31: Ruraflex | B31: Ru | C31: 0 | D31: 1 | E31: =B31&C31&D31&IF($A$2="Non-municipal","N",IF($A$2="Municiple","Y","error")) -> Ru01Y | H31: > 500 kVA & ≤ 1 MVA | J31: 167.31 | K31: =ROUND(J31 * (1 + VAT), 2) -> 190.73 | L31: 38.69 | M31: =ROUND(L31 * (1 + VAT), 2) -> 44.11 | O31: Reactive energy charge [c/kVArh]
A32: Ruraflex | B32: Ru | C32: 0 | D32: 1 | E32: =B32&C32&D32&IF($A$2="Non-municipal","N",IF($A$2="Municiple","Y","error")) -> Ru01Y | H32: > 1 MVA | J32: 167.31 | K32: =ROUND(J32 * (1 + VAT), 2) -> 190.73 | L32: 71.81 | M32: =ROUND(L32 * (1 + VAT), 2) -> 81.86 | O32: High season | Q32: Low season
A33: Ruraflex | B33: Ru | C33: 0 | D33: 1 | E33: =B33&C33&D33&IF($A$2="Non-municipal","N",IF($A$2="Municiple","Y","error")) -> Ru01Y | H33: Key customers | J33: 3278.87 | K33: =ROUND(J33 * (1 + VAT), 2) -> 3737.91 | L33: 71.81 | M33: =ROUND(L33 * (1 + VAT), 2) -> 81.86 | P33: VAT incl | R33: VAT incl
O34: 7.79 | P34: =ROUND(O34 * (1 + VAT), 2) -> 8.88 | Q34: 0 | R34: =ROUND(Q34 * (1 + VAT), 2) -> 0

Sheet Ruraflex Gen inc
G1: Back to menu
A2: Non-municipal | G2: Ruraflex Gen tariff | T2: Non-local authority | AF2: =SUM(#REF!,#REF!,#REF!,#REF!,#REF!,#REF!,#REF!,#REF!,#REF!,#REF!,#REF!,#REF!) ->  | AG2: check value
J4: Active energy charge for loads [c/kWh] | V4: Network capacity charges [R/kVA/m]
H5: Transmission zone | J5: High demand season [Jun - Aug] | P5: Low demand season [Sep - May]
I6: Voltage | J6: Peak | L6: Standard | N6: Off Peak | P6: Peak | R6: Standard | T6: Off Peak
A7: Tariff | B7: Tariff nameBillcode | C7: Tx zone | D7: Voltage | E7: Billcode | K7: VAT incl | M7: VAT incl | O7: VAT incl | Q7: VAT incl | S7: VAT incl | U7: VAT incl | W7: VAT incl
A8: Genflex rural | B8: GR | C8: 0 | D8: 1 | E8: =B8&C8&D8&IF($A$2="Non-municipal","N",IF($A$2="Municiple","Y","error")) -> GR01N | H8: ≤ 300km | I8: < 500V | J8: 282 | K8: =ROUND(J8 * (1 + VAT), 2) -> 321.48 | L8: 85.43 | M8: =ROUND(L8 * (1 + VAT), 2) -> 97.39 | N8: 46.4 | O8: =ROUND(N8 * (1 + VAT), 2) -> 52.9 | P8: 91.99 | Q8: =ROUND(P8 * (1 + VAT), 2) -> 104.87 | R8: 63.31 | S8: =ROUND(R8 * (1 + VAT), 2) -> 72.17 | T8: 40.16 | U8: =ROUND(T8 * (1 + VAT), 2) -> 45.78 | V8: 16.28 | W8: =ROUND(V8 * (1 + VAT), 2) -> 18.56
A9: Genflex rural | B9: GR | C9: 0 | D9: 2 | E9: =B9&C9&D9&IF($A$2="Non-municipal","N",IF($A$2="Municiple","Y","error")) -> GR02N | I9: ≥ 500V & ≤ 22kV | J9: 279.21 | K9: 318.3 | L9: 84.59 | M9: 96.43 | N9: 45.93 | O9: 52.36 | P9: 91.09 | Q9: 103.84 | R9: 62.68 | S9: 71.46 | T9: 39.76 | U9: 45.33 | V9: 14.92 | W9: 17.01
A10: Genflex rural | B10: GR | E10: GRN | J10: 0 | L10: 0 | N10: 0 | P10: 0 | R10: 0 | T10: 0 | V10: 0
A11: Genflex rural | B11: GR | E11: GRN | J11: 0 | L11: 0 | N11: 0 | P11: 0 | R11: 0 | T11: 0 | V11: 0
A12: Genflex rural | B12: GR | C12: 1 | D12: 1 | E12: GR11N | H12: > 300km and ≤ 600km | I12: < 500V | J12: 284.82 | K12: 324.69 | L12: 86.28 | M12: 98.36 | N12: 46.86 | O12: 53.42 | P12: 92.9 | Q12: 105.91 | R12: 63.94 | S12: 72.89 | T12: 40.58 | U12: 46.26 | V12: 16.33 | W12: 18.62
A13: Genflex rural | B13: GR | C13: 1 | D13: 2 | E13: GR12N | I13: ≥ 500V & ≤ 22kV | J13: 281.99 | K13: 321.47 | L13: 85.42 | M13: 97.38 | N13: 46.4 | O13: 52.9 | P13: 91.99 | Q13: 104.87 | R13: 63.3 | S13: 72.16 | T13: 40.16 | U13: 45.78 | V13: 15.02 | W13: 17.12
A14: Genflex rural | B14: GR | E14: GRN | J14: 0 | L14: 0 | N14: 0 | P14: 0 | R14: 0 | T14: 0 | V14: 0
A15: Genflex rural | B15: GR | E15: GRN | J15: 0 | L15: 0 | N15: 0 | P15: 0 | R15: 0 | T15: 0 | V15: 0
A16: Genflex rural | B16: GR | C16: 2 | D16: 1 | E16: GR21N | H16: > 600km and ≤ 900km | I16: < 500V | J16: 287.67 | K16: 327.94 | L16: 87.15 | M16: 99.35 | N16: 47.32 | O16: 53.94 | P16: 93.84 | Q16: 106.98 | R16: 64.58 | S16: 73.62 | T16: 40.98 | U16: 46.72 | V16: 16.42 | W16: 18.72
A17: Genflex rural | B17: GR | C17: 2 | D17: 2 | E17: GR22N | I17: ≥ 500V & ≤ 22kV | J17: 284.81 | K17: 324.68 | L17: 86.27 | M17: 98.35 | N17: 46.86 | O17: 53.42 | P17: 92.9 | Q17: 105.91 | R17: 63.94 | S17: 72.89 | T17: 40.58 | U17: 46.26 | V17: 15.08 | W17: 17.19
A18: Genflex rural | B18: GR | E18: GRN | J18: 0 | L18: 0 | N18: 0 | P18: 0 | R18: 0 | T18: 0 | V18: 0
A19: Genflex rural | B19: GR | E19: GRN | J19: 0 | L19: 0 | N19: 0 | P19: 0 | R19: 0 | T19: 0 | V19: 0
A20: Genflex rural | B20: GR | C20: 3 | D20: 1 | E20: GR31N | H20: > 900km | I20: < 500V | J20: 290.54 | K20: 331.22 | L20: 88.02 | M20: 100.34 | N20: 47.79 | O20: 54.48 | P20: 94.76 | Q20: 108.03 | R20: 65.22 | S20: 74.35 | T20: 41.39 | U20: 47.18 | V20: 16.49 | W20: 18.8
A21: Genflex rural | B21: GR | C21: 3 | D21: 2 | E21: GR32N | I21: ≥ 500V & ≤ 22kV | J21: 287.66 | K21: 327.93 | L21: 87.15 | M21: 99.35 | N21: 47.32 | O21: 53.94 | P21: 93.84 | Q21: 106.98 | R21: 64.58 | S21: 73.62 | T21: 40.98 | U21: 46.72 | V21: 15.09 | W21: 17.2
N22: 0
N23: 0
A24: Gen-purchase | B24: NLPurchADJ | C24: 0 | D24: 4 | E24: =B24&C24&D24&IF($A$2="Non-municipal","N",IF($A$2="Municiple","Y","error")) -> NLPurchADJ04N
Q26: Ancillary service charge for loads and generators
H28: Customer categories | J28: Service charge [R/account/day] | L28: Administration charge [R/POD/day] | O28: Voltage | Q28: Ancillary service charge [c/kWh]
H29: [kVA or MVA = loads] | R29: VAT incl
A30: Tariff | B30: Tariff nameBillcode | C30: Tx zone | D30: Voltage | E30: Billcode | H30: [kW or MW = generators] | K30: VAT incl | M30: VAT incl | O30: < 500V | Q30: 0.36 | R30: =ROUND(Q30 * (1 + VAT), 2) -> 0.41
A31: Genflex rural | B31: GR | C31: 0 | D31: 1 | E31: =B31&C31&D31&IF($A$2="Non-municipal","N",IF($A$2="Municiple","Y","error")) -> GR01N | H31: ≤ 100 kVA/kW | J31: 16.02 | K31: =ROUND(J31 * (1 + VAT), 2) -> 18.26 | L31: 4.55 | M31: =ROUND(L31 * (1 + VAT), 2) -> 5.19 | O31: ≥ 500V & < 22kV | Q31: 0.36 | R31: =ROUND(Q31 * (1 + VAT), 2) -> 0.41
A32: Genflex rural | B32: GR | C32: 0 | D32: 1 | E32: =B32&C32&D32&IF($A$2="Non-municipal","N",IF($A$2="Municiple","Y","error")) -> GR01N | H32: > 100 KVA/kW & ≤ 500 kVA/kW | J32: 54.63 | K32: =ROUND(J32 * (1 + VAT), 2) -> 62.28 | L32: 25.33 | M32: =ROUND(L32 * (1 + VAT), 2) -> 28.88
A33: Genflex rural | B33: GR | C33: 0 | D33: 1 | E33: =B33&C33&D33&IF($A$2="Non-municipal","N",IF($A$2="Municiple","Y","error")) -> GR01N | H33: > 500 kVA/kW & ≤ 1 MVA/MW | J33: 168.07 | K33: =ROUND(J33 * (1 + VAT), 2) -> 191.6 | L33: 38.87 | M33: =ROUND(L33 * (1 + VAT), 2) -> 44.31 | O33: Reactive energy charge [c/kVArh] | S33: Network demand charge [c/kWh] for loads in all time-of-use periods
A34: Genflex rural | B34: GR | C34: 0 | D34: 1 | E34: =B34&C34&D34&IF($A$2="Non-municipal","N",IF($A$2="Municiple","Y","error")) -> GR01N | H34: > 1 MVA/MW | J34: 168.07 | K34: =ROUND(J34 * (1 + VAT), 2) -> 191.6 | L34: 72.13 | M34: =ROUND(L34 * (1 + VAT), 2) -> 82.23 | O34: High season | Q34: Low season | T34: VAT incl
A35: Genflex rural | B35: GR | C35: 0 | D35: 1 | E35: =B35&C35&D35&IF($A$2="Non-municipal","N",IF($A$2="Municiple","Y","error")) -> GR01N | H35: Key customers | J35: 3293.99 | K35: =ROUND(J35 * (1 + VAT), 2) -> 3755.15 | L35: 72.13 | M35: =ROUND(L35 * (1 + VAT), 2) -> 82.23 | P35: VAT incl | R35: VAT incl | S35: 23.18 | T35: =ROUND(S35 * (1 + VAT), 2) -> 26.43
O36: 7.83 | P36: =ROUND(O36 * (1 + VAT), 2) -> 8.93 | Q36: 0 | R36: =ROUND(Q36 * (1 + VAT), 2) -> 0 | S36: 20.32 | T36: =ROUND(S36 * (1 + VAT), 2) -> 23.16

Sheet Landrate inc
H1: Back to menu
A2: Non-municipal | H2: Landrate tariffs | R2: Non-local authority
J4: Energy charge [c/kWh] | L4: Ancillary service charge [c/kWh] | N4: Network demand charge [c/kWh] | P4: Network capacity charge [R/POD/day] | R4: Service charge [R/POD/day]
A5: Tariff | B5: Tariff nameBillcode | C5: Tx zone | D5: Voltage | E5: Billcode | K5: VAT incl | M5: VAT incl | O5: VAT incl | Q5: VAT incl | S5: VAT incl
A6: Landrate 1 | B6: L1 | C6: 0 | D6: 1 | E6: =B6&C6&D6&IF($A$2="Non-municipal","N",IF($A$2="Municiple","Y","error")) -> L101N | H6: Landrate 1 | J6: 92.79 | K6: =ROUND(J6 * (1 + VAT), 2) -> 105.78 | L6: 0.36 | M6: =ROUND(L6 * (1 + VAT), 2) -> 0.41 | N6: 23.18 | O6: =ROUND(N6 * (1 + VAT), 2) -> 26.43 | P6: 24.78 | Q6: =ROUND(P6 * (1 + VAT), 2) -> 28.25 | R6: 20.58 | S6: =ROUND(R6 * (1 + VAT), 2) -> 23.46
A7: Landrate 2 | B7: L2 | C7: 0 | D7: 1 | E7: =B7&C7&D7&IF($A$2="Non-municipal","N",IF($A$2="Municiple","Y","error")) -> L201N | H7: Landrate 2 | J7: 92.79 | K7: =ROUND(J7 * (1 + VAT), 2) -> 105.78 | L7: 0.36 | M7: =ROUND(L7 * (1 + VAT), 2) -> 0.41 | N7: 23.18 | O7: =ROUND(N7 * (1 + VAT), 2) -> 26.43 | P7: 38.09 | Q7: =ROUND(P7 * (1 + VAT), 2) -> 43.42 | R7: 20.58 | S7: =ROUND(R7 * (1 + VAT), 2) -> 23.46
A8: Landrate 3 | B8: L3 | C8: 0 | D8: 1 | E8: L301N | H8: Landrate 3 | J8: 92.79 | K8: =ROUND(J8 * (1 + VAT), 2) -> 105.78 | L8: 0.36 | M8: =ROUND(L8 * (1 + VAT), 2) -> 0.41 | N8: 23.18 | O8: =ROUND(N8 * (1 + VAT), 2) -> 26.43 | P8: 60.9 | Q8: =ROUND(P8 * (1 + VAT), 2) -> 69.43 | R8: 20.58 | S8: =ROUND(R8 * (1 + VAT), 2) -> 23.46
A9: Landrate 4 | B9: L4 | C9: 0 | D9: 1 | E9: L401N | H9: Landrate 4 | J9: 200.41 | K9: =ROUND(J9 * (1 + VAT), 2) -> 228.47 | L9: 0.36 | M9: =ROUND(L9 * (1 + VAT), 2) -> 0.41 | N9: 23.18 | O9: =ROUND(N9 * (1 + VAT), 2) -> 26.43 | P9: 19.74 | Q9: =ROUND(P9 * (1 + VAT), 2) -> 22.5 | R9: 0 | S9: =ROUND(R9 * (1 + VAT), 2) -> 0
A10: Landlight | B10: Lt | C10: 0 | D10: 1 | E10: Lt01N | H10: Landlight 20A | J10: 342.67 | K10: =ROUND(J10 * (1 + VAT), 2) -> 390.64
A11: Landrate Dx | B11: Ld | C11: 0 | D11: 1 | E11: Ld01N | H11: Landrate Dx* | R11: 44.14 | S11: =ROUND(R11 * (1 + VAT), 2) -> 50.32
H13: *R/day fixed charge inclusive of the following charges; energy, anciallary service, network demand, betwork capacity and service charge.

Sheet Landrate Munic inc
H1: Back to menu
A2: Municiple | H2: Landrate tariffs | S2: Local authority
J4: Energy charge [c/kWh] | L4: Ancillary service charge [c/kWh] | N4: Network demand charge [c/kWh] | P4: Network capacity charge [R/POD/day] | R4: Service charge [R/POD/day]
A5: Tariff | B5: Tariff nameBillcode | C5: Tx zone | D5: Voltage | E5: Billcode | K5: VAT incl | M5: VAT incl | O5: VAT incl | Q5: VAT incl | S5: VAT incl
A6: Landrate 1 | B6: L1 | C6: 0 | D6: 1 | E6: =B6&C6&D6&IF($A$2="Non-municipal","N",IF($A$2="Municiple","Y","error")) -> L101Y | H6: Landrate 1 | J6: 95 | K6: =ROUND(J6 * (1 + VAT), 2) -> 108.3 | L6: 0.36 | M6: =ROUND(L6 * (1 + VAT), 2) -> 0.41 | N6: 23.42 | O6: =ROUND(N6 * (1 + VAT), 2) -> 26.7 | P6: 25 | Q6: =ROUND(P6 * (1 + VAT), 2) -> 28.5 | R6: 20.48 | S6: =ROUND(R6 * (1 + VAT), 2) -> 23.35
A7: Landrate 2 | B7: L2 | C7: 0 | D7: 1 | E7: =B7&C7&D7&IF($A$2="Non-municipal","N",IF($A$2="Municiple","Y","error")) -> L201Y | H7: Landrate 2 | J7: 95 | K7: =ROUND(J7 * (1 + VAT), 2) -> 108.3 | L7: 0.36 | M7: =ROUND(L7 * (1 + VAT), 2) -> 0.41 | N7: 23.42 | O7: =ROUND(N7 * (1 + VAT), 2) -> 26.7 | P7: 38.44 | Q7: =ROUND(P7 * (1 + VAT), 2) -> 43.82 | R7: 20.48 | S7: =ROUND(R7 * (1 + VAT), 2) -> 23.35
A8: Landrate 3 | B8: L3 | C8: 0 | D8: 1 | E8: L301Y | H8: Landrate 3 | J8: 95 | K8: =ROUND(J8 * (1 + VAT), 2) -> 108.3 | L8: 0.36 | M8: =ROUND(L8 * (1 + VAT), 2) -> 0.41 | N8: 23.42 | O8: =ROUND(N8 * (1 + VAT), 2) -> 26.7 | P8: 61.47 | Q8: =ROUND(P8 * (1 + VAT), 2) -> 70.08 | R8: 20.48 | S8: =ROUND(R8 * (1 + VAT), 2) -> 23.35
A9: Landrate 4 | B9: L4 | C9: 0 | D9: 1 | E9: L401Y | H9: Landrate 4 | J9: 205.18 | K9: =ROUND(J9 * (1 + VAT), 2) -> 233.91 | L9: 0.36 | M9: =ROUND(L9 * (1 + VAT), 2) -> 0.41 | N9: 23.42 | O9: =ROUND(N9 * (1 + VAT), 2) -> 26.7 | P9: 19.92 | Q9: =ROUND(P9 * (1 + VAT), 2) -> 22.71
A10: Landrate Dx | B10: Ld | C10: 0 | D10: 1 | E10: =B10&C10&D10&IF($A$2="Non-municipal","N",IF($A$2="Municiple","Y","error")) -> Ld01Y | H10: Landrate Dx | R10: 44.31 | S10: =ROUND(R10 * (1 + VAT), 2) -> 50.51

Sheet TOuS Original (hidden)
B4: Reliability service charge urban | D4: Charge [c/kWh]
E5: VAT incl
B6: < 500V | D6: 0.27 | E6: =ROUND(D6 * (1 + VAT), 2) -> 0.31
B7: ≥ 500V & < 66kV | D7: 0.26 | E7: =ROUND(D7 * (1 + VAT), 2) -> 0.3
B8: ≥ 66kV & ≤ 132kV | D8: 0.25 | E8: =ROUND(D8 * (1 + VAT), 2) -> 0.29
B9: > 132kV | D9: 0.23 | E9: =ROUND(D9 * (1 + VAT), 2) -> 0.26
B12: Reliability service charge rural | D12: Charge [c/kWh]
E13: VAT incl
B14: < 500V | D14: 0.27 | E14: =ROUND(D14 * (1 + VAT), 2) -> 0.31
B15: ≥ 500V & ≤ 22kV | D15: 0.27 | E15: =ROUND(D15 * (1 + VAT), 2) -> 0.31
C18: Transmission zone | D18: Voltage | E18: R/kVA
F19: VAT incl
B20: ETUoS urban | C20: ≤ 300km | D20: < 500V | E20: 11.36438596 | F20: =ROUND(E20 * (1 + VAT), 2) -> 12.96
D21: ≥ 500V & < 66kV | E21: 11.19400536 | F21: 12.76
D22: ≥ 66kV & ≤ 132kV | E22: 10.8362061 | F22: 12.35
C23: > 300km & ≤ 600km | D23: < 500V | E23: 11.46661432 | F23: 13.07
D24: ≥ 500V & < 66kV | E24: 11.31327178 | F24: 12.9
D25: ≥ 66kV & ≤ 132kV | E25: 10.95547252 | F25: 12.49
C26: > 600km & ≤ 900km | D26: < 500V | E26: 11.58588074 | F26: 13.21
D27: ≥ 500V & < 66kV | E27: 11.4325382 | F27: 13.03
D28: ≥ 66kV & ≤ 132kV | E28: 11.05770088 | F28: 12.61
C29: > 900km | D29: < 500V | E29: 11.70514716 | F29: 13.34
D30: ≥ 500V & < 66kV | E30: 11.55180462 | F30: 13.17
D31: ≥ 66kV & ≤ 132kV | E31: 11.1769673 | F31: 12.74
C34: Transmission zone | D34: Voltage | E34: R/kVA
F35: VAT incl
B36: ETUoS rural | C36: ≤ 300km | D36: < 500V | E36: 11.7732994 | F36: =ROUND(E36 * (1 + VAT), 2) -> 13.42
D37: ≥ 500V & < 66kV | E37: 11.67107104 | F37: 13.31
C38: > 300km & ≤ 600km | D38: < 500V | E38: 11.89256582 | F38: 13.56
D39: ≥ 500V & < 66kV | E39: 11.79033746 | F39: 13.44
C40: > 600km & ≤ 900km | D40: < 500V | E40: 12.01183224 | F40: 13.69
D41: ≥ 500V & < 66kV | E41: 11.90960388 | F41: 13.58
C42: > 900km | D42: < 500V | E42: 12.13109866 | F42: 13.83
D43: ≥ 500V & < 66kV | E43: 12.0288703 | F43: 13.71
B46: Distribution network charges urban
D47: Network access charge [R/kVA/m] | F47: Network demand charge [R/kVA/m] | H47: Urban low voltage subsidy charge [R/kVA/m]
B49: Voltage | E49: VAT incl | G49: VAT incl | I49: VAT incl
B50: < 500V | D50: =#REF! ->  | E50: =ROUND(D50 * (1 + VAT), 2) ->  | F50: =#REF! ->  | G50: =ROUND(F50 * (1 + VAT), 2) ->  | H50: =#REF! ->  | I50: =ROUND(H50 * (1 + VAT), 2) -> 
B51: ≥ 500V & < 66kV | D51: =#REF! ->  | E51: =ROUND(D51 * (1 + VAT), 2) ->  | F51: =#REF! ->  | G51: =ROUND(F51 * (1 + VAT), 2) ->  | H51: =#REF! ->  | I51: =ROUND(H51 * (1 + VAT), 2) -> 
B52: ≥ 66kV & ≤ 132kV | D52: =#REF! ->  | E52: =ROUND(D52 * (1 + VAT), 2) ->  | F52: =#REF! ->  | G52: =ROUND(F52 * (1 + VAT), 2) ->  | H52: =#REF! ->  | I52: =ROUND(H52 * (1 + VAT), 2) -> 
B53: > 132kV | D53: =#REF! ->  | E53: =ROUND(D53 * (1 + VAT), 2) ->  | F53: =#REF! ->  | G53: =ROUND(F53 * (1 + VAT), 2) ->  | H53: =#REF! ->  | I53: =ROUND(H53 * (1 + VAT), 2) -> 
B56: Distribution network charges rural
D57: Network access charge [R/kVA/m] | F57: Network demand charge [c/kWh]
B59: Voltage | E59: VAT incl | G59: VAT incl
B60: < 500V | D60: 6.201664795 | E60: =ROUND(D60 * (1 + VAT), 2) -> 7.07 | F60: 19.67324725 | G60: =ROUND(F60 * (1 + VAT), 2) -> 22.43
B61: ≥ 500V & ≤ 22kV | D61: 2.297555913 | E61: =ROUND(D61 * (1 + VAT), 2) -> 2.62 | F61: 17.23886725 | G61: =ROUND(F61 * (1 + VAT), 2) -> 19.65
B64: Distribution network charges for Generators
D65: Network access charge [R/MW/m]
B67: Voltage | E67: VAT incl
B68: < 500V
B69: ≥ 500V & < 66kV
B70: ≥ 66kV & ≤ 132kV | D70: 9.4 | E70: =ROUND(D70 * (1 + VAT), 2) -> 10.72
B73: Electrification and rural network subsidy charge [c/kWh]
D74: Rural network subsidy charge [c/kWh] | F74: Electrification networks subsidy charge [c/kWh] | H74: Total electrification and rural network subsidy charge [c/kWh]
B76: Tariff | E76: VAT incl | G76: VAT incl | I76: VAT incl
B77: Megaflex, Miniflex, Nightsave Urban Large, Nightsave Urban Small, Businessrate
D78: 2.68 | E78: =ROUND(D78 * (1 + VAT), 2) -> 3.06 | F78: 0.91 | G78: =ROUND(F78 * (1 + VAT), 2) -> 1.04 | H78: 3.59 | I78: =ROUND(H78 * (1 + VAT), 2) -> 4.09
B83: Service and admin charges
B84: Customer categories | D84: Service charge [R/account/day] | F84: Administration charge [R/POD/day]
E86: VAT incl | G86: VAT incl
B87: ≤ 100 kVA | D87: 9.49 | E87: =ROUND(D87 * (1 + VAT), 2) -> 10.82 | F87: 2.08 | G87: =ROUND(F87 * (1 + VAT), 2) -> 2.37
B88: > 100 kVA & ≤ 500 kVA | D88: 43.38 | E88: =ROUND(D88 * (1 + VAT), 2) -> 49.45 | F88: 12.16 | G88: =ROUND(F88 * (1 + VAT), 2) -> 13.86
B89: > 500 kVA & ≤ 1 MVA | D89: 133.5 | E89: =ROUND(D89 * (1 + VAT), 2) -> 152.19 | F89: 24.17 | G89: =ROUND(F89 * (1 + VAT), 2) -> 27.55
B90: > 1 MVA | D90: 133.5 | E90: =ROUND(D90 * (1 + VAT), 2) -> 152.19 | F90: 60.17 | G90: =ROUND(F90 * (1 + VAT), 2) -> 68.59
B91: Key customers | D91: 2616.06 | E91: =ROUND(D91 * (1 + VAT), 2) -> 2982.31 | F91: 83.55 | G91: =ROUND(F91 * (1 + VAT), 2) -> 95.25
B94: Distribution loss factors | F94: Transmission loss factors for loads
B95: Voltage | C95: Urban loss factor | D95: Rural loss factor | F95: Distance from Johannesburg | G95: Zone | H95: Loss factor
B96: < 500V | C96: ='Loss Factors'!O6 -> 1.1111 | D96: ='Loss Factors'!P6 -> 1.1527 | F96: 0 to 300 km | G96: 0 | H96: ='Loss Factors'!T6 -> 1.0107
B97: ≥ 500V & < 66kV | C97: ='Loss Factors'!O7 -> 1.0957 | D97: ='Loss Factors'!P7 -> 1.1412 | F97: 301 to 600 km | G97: 1 | H97: ='Loss Factors'!T7 -> 1.0208
B98: ≥ 66kV & ≤ 132kV | C98: ='Loss Factors'!O8 -> 1.0611 | F98: 601 to 900 km | G98: 2 | H98: ='Loss Factors'!T8 -> 1.031
B99: > 132kV | C99: ='Loss Factors'!O9 -> 1 | F99: > 900 km | G99: 3 | H99: ='Loss Factors'!T9 -> 1.0413
K104: TUoS [ > 132kV] | M104: Charge R/kVA
N105: VAT incl
L106: ≤ 300km | M106: =#REF! ->  | N106: =ROUND(M106 * (1 + VAT), 2) -> 
L107: > 300km & ≤ 600km | M107: =#REF! ->  | N107: =ROUND(M107 * (1 + VAT), 2) -> 
L108: > 600km & ≤ 900km | M108: =#REF! ->  | N108: =ROUND(M108 * (1 + VAT), 2) -> 
L109: > 900km | M109: =#REF! ->  | N109: =ROUND(M109 * (1 + VAT), 2) -> 

Sheet TUoS
H1: Back to menu
A2: Non-municipal
H3: TUoS (Transmission use of system) charges (> 132 KV or direct Transmission connected) network charge for loads
H6: Electrification and rural network subsidy charge [c/kWh]
J7: Electrification and rural network subsidy charge [c/kWh]
A9: Tariff | B9: Tariff nameBillcode | C9: Tx zone | D9: Voltage | E9: Billcode | H9: Tariff | K9: VAT incl
H10: Megaflex, Miniflex, Nightsave Urban Large, Nightsave Urban Small, Businessrate
A11: Megaflex | B11: Me | C11: 0 | D11: 1 | E11: =B11&C11&D11&IF($A$2="Non-municipal","N",IF($A$2="Municiple","Y","error")) -> Me01N | J11: ='Megaflex inc'!H46 -> 6.93 | K11: 7.9
H15: Service and admin charges
H16: Utilised capacity/maximum export capacity | J16: Service charge [R/account/day] | L16: Administration charge [R/POD/day]
H19: [kVA/MVA = loads]
A20: Tariff | B20: Tariff nameBillcode | C20: Tx zone | D20: Voltage | E20: Billcode | H20: [kW/MW = generators] | K20: VAT incl | M20: VAT incl
A21: Miniflex | B21: Mi | C21: 0 | D21: 1 | E21: =B21&C21&D21&IF($B$28="Non-municipal","N",IF($B$28="Municiple","Y","error")) -> Mi01N | H21: ≤ 100 kVA/kW | J21: 12.64 | K21: 14.41 | L21: 2.78 | M21: 3.17
A22: Miniflex | B22: Mi | C22: 0 | D22: 1 | E22: =B22&C22&D22&IF($B$28="Non-municipal","N",IF($B$28="Municiple","Y","error")) -> Mi01N | H22: > 100 kVA/kW & ≤ 500 kVA/kW | J22: 57.76 | K22: 65.85 | L22: 16.19 | M22: 18.46
A23: Miniflex | B23: Mi | C23: 0 | D23: 1 | E23: Mi01N | H23: > 500 kVA/kW & ≤ 1 MVA/MW | J23: 177.75 | K23: 202.64 | L23: 32.17 | M23: 36.67
A24: Miniflex | B24: Mi | C24: 0 | D24: 1 | E24: Mi01N | H24: > 1 MVA/MW | J24: 177.75 | K24: 202.64 | L24: 80.11 | M24: 91.33
A25: Miniflex | B25: Mi | C25: 0 | D25: 1 | E25: Mi01N | H25: Key customers or Transmission connected generators | J25: 3483.16 | K25: 3970.8 | L25: 111.24 | M25: 126.81
B28: Non-municipal | H28: Transmission loss factors for loads
A29: Tariff | B29: Tariff nameBillcode | C29: Tx zone | D29: Voltage | E29: Billcode | H29: Distance from Johannesburg | I29: Zone | J29: Loss factor
A30: Transmission loss factor | B30: TxLoss | C30: 0 | D30: 4 | E30: =B30&C30&D30&IF($B$28="Non-municipal","N",IF($B$28="Municiple","Y","error")) -> TxLoss04N | H30: ≤ 300km | I30: 0 | J30: 1.0107
A31: Transmission loss factor | B31: TxLoss | C31: 1 | D31: 4 | E31: =B31&C31&D31&IF($B$28="Non-municipal","N",IF($B$28="Municiple","Y","error")) -> TxLoss14N | H31: > 300km & ≤ 600km | I31: 1 | J31: 1.0208
A32: Transmission loss factor | B32: TxLoss | C32: 2 | D32: 4 | E32: =B32&C32&D32&IF($B$28="Non-municipal","N",IF($B$28="Municiple","Y","error")) -> TxLoss24N | H32: > 600km & ≤ 900km | I32: 2 | J32: 1.031
A33: Transmission loss factor | B33: TxLoss | C33: 3 | D33: 4 | E33: =B33&C33&D33&IF($B$28="Non-municipal","N",IF($B$28="Municiple","Y","error")) -> TxLoss34N | H33: > 900km | I33: 3 | J33: 1.0413
H36: Loss factors for Transmission connected generators | J36: Loss factor
A37: Tariff | B37: Tariff nameBillcode | C37: Tx zone | D37: Voltage | E37: Billcode
A38: TUoS network charges for Transmission connected generators | B38: GenTUOS | C38: Cape | D38: 4 | E38: =B38&C38&D38&IF($A$2="Non-municipal","N",IF($A$2="Municiple","Y","error")) -> GenTUOSCape4N | I38: Cape | J38: ='Loss Factors'!P14 -> 0.971
A39: TUoS network charges for Transmission connected generators | B39: GenTUOS | C39: Karoo | D39: 4 | E39: GenTUOSKaroo4N | I39: Karoo | J39: ='Loss Factors'!P15 -> 0.995
A40: TUoS network charges for Transmission connected generators | B40: GenTUOS | C40: Kwazulu-Natal | D40: 4 | E40: GenTUOSKwazulu-Natal4N | I40: Kwazulu-Natal | J40: ='Loss Factors'!P16 -> 1.004
A41: TUoS network charges for Transmission connected generators | B41: GenTUOS | C41: Vaal | D41: 4 | E41: GenTUOSVaal4N | I41: Vaal | J41: ='Loss Factors'!P17 -> 1.02
A42: TUoS network charges for Transmission connected generators | B42: GenTUOS | C42: Waterburg | D42: 4 | E42: GenTUOSWaterburg4N | I42: Waterberg | J42: ='Loss Factors'!P18 -> 1.023
A43: TUoS network charges for Transmission connected generators | B43: GenTUOS | C43: Mpumalanga | D43: 4 | E43: GenTUOSMpumalanga4N | I43: Mpumalanga | J43: ='Loss Factors'!P19 -> 1.021
H46: TUoS network charges for Transmission connected loads | J46: Network capacity charge [R/kVA/m]
A47: Tariff | B47: Tariff nameBillcode | C47: Tx zone | D47: Voltage | E47: Billcode | K47: VAT incl
A48: WEPS | B48: We | C48: 0 | D48: 1 | E48: =B48&C48&D48&IF($A$2="Non-municipal","N",IF($A$2="Municiple","Y","error")) -> We01N | I48: ≤ 300km | J48: ='WEPS inc'!V11 -> 8.76 | K48: 9.99
A49: WEPS | B49: We | C49: 0 | D49: 2 | E49: We02N | I49: > 300km & ≤ 600km | J49: ='WEPS inc'!V15 -> 8.85 | K49: 10.09
A50: WEPS | B50: We | C50: 0 | D50: 3 | E50: We03N | I50: > 600km & ≤ 900km | J50: ='WEPS inc'!V19 -> 8.97 | K50: 10.23
A51: WEPS | B51: We | C51: 0 | D51: 4 | E51: We04N | I51: > 900km | J51: ='WEPS inc'!V23 -> 9.04 | K51: 10.31
H54: TUoS network charges for Transmission connected generators | J54: Network charge [R/kW/m]
A55: Tariff | B55: Tariff nameBillcode | C55: Tx zone | D55: Voltage | E55: Billcode | K55: VAT incl
A56: TUoS network charges for Transmission connected generators | B56: GenTUOS | C56: Cape | D56: 4 | E56: =B56&C56&D56&IF($A$2="Non-municipal","N",IF($A$2="Municiple","Y","error")) -> GenTUOSCape4N | I56: Cape | J56: 0 | K56: 0
A57: TUoS network charges for Transmission connected generators | B57: GenTUOS | C57: Karoo | D57: 4 | E57: GenTUOSKaroo4N | I57: Karoo | J57: 0 | K57: 0
A58: TUoS network charges for Transmission connected generators | B58: GenTUOS | C58: Kwazulu-Natal | D58: 4 | E58: GenTUOSKwazulu-Natal4N | I58: Kwazulu-Natal | J58: 1.84 | K58: 2.1
A59: TUoS network charges for Transmission connected generators | B59: GenTUOS | C59: Vaal | D59: 4 | E59: GenTUOSVaal4N | I59: Vaal | J59: 6.13 | K59: 6.99
A60: TUoS network charges for Transmission connected generators | B60: GenTUOS | C60: Waterburg | D60: 4 | E60: GenTUOSWaterburg4N | I60: Waterberg | J60: 7.85 | K60: 8.95
A61: TUoS network charges for Transmission connected generators | B61: GenTUOS | C61: Mpumalanga | D61: 4 | E61: GenTUOSMpumalanga4N | I61: Mpumalanga | J61: 7.28 | K61: 8.3
H64: Transmission connected ancillary service charge | J64: Ancillary service charge [c/kWh]
A66: Tariff | B66: Tariff nameBillcode | C66: Tx zone | D66: Voltage | E66: Billcode | K66: VAT incl
A67: TUoS network charges for Transmission connected generators | B67: GenTUOS | C67: Cape | D67: 4 | E67: =B67&C67&D67&IF($A$2="Non-municipal","N",IF($A$2="Municiple","Y","error")) -> GenTUOSCape4N | H67: Generators | J67: 0.31 | K67: 0.35
A68: TUoS network charges for Transmission connected generators | B68: GenTUOS | C68: Cape | D68: 4 | E68: =B68&C68&D68&IF($A$2="Non-municipal","N",IF($A$2="Municiple","Y","error")) -> GenTUOSCape4N | H68: Loads | J68: 0.31 | K68: 0.35

Sheet DUoS
A2: Non-Municipal | H2: Back to menu
H4: DUoS (Distribution use of system) charges
H7: Ancillary service charge Urbanp | J7: Charge [c/kWh]
A8: Tariff | B8: Tariff nameBillcode | C8: Tx zone | D8: Voltage | E8: Billcode | K8: VAT incl
A9: Gen-DUoS urban | B9: NEGenDUoSU | C9: 0 | D9: 1 | E9: =B9&C9&D9&IF($A$2="Non-municipal","N",IF($A$2="Municiple","Y","error")) -> NEGenDUoSU01N | H9: < 500V | J9: 0.36 | K9: =ROUND(J9 * (1 + VAT), 2) -> 0.41
A10: Gen-DUoS urban | B10: NEGenDUoSU | C10: 0 | D10: 2 | E10: =B10&C10&D10&IF($A$2="Non-municipal","N",IF($A$2="Municiple","Y","error")) -> NEGenDUoSU02N | H10: ≥ 500V & < 66kV | J10: 0.35 | K10: =ROUND(J10 * (1 + VAT), 2) -> 0.4
A11: Gen-DUoS urban | B11: NEGenDUoSU | C11: 0 | D11: 3 | E11: NEGenDUoSU03N | H11: ≥ 66kV & ≤ 132kV | J11: 0.33 | K11: =ROUND(J11 * (1 + VAT), 2) -> 0.38
H15: Ancillary service charge Ruralp | J15: Charge [c/kWh]
A16: Tariff | B16: Tariff nameBillcode | C16: Tx zone | D16: Voltage | E16: Billcode | K16: VAT incl
A17: Gen-DUoS rural | B17: NEGenDUoSR | C17: 0 | D17: 1 | E17: =B17&C17&D17&IF($A$2="Non-municipal","N",IF($A$2="Municiple","Y","error")) -> NEGenDUoSR01N | H17: < 500V | J17: 0.36 | K17: =ROUND(J17 * (1 + VAT), 2) -> 0.41
A18: Gen-DUoS rural | B18: NEGenDUoSR | C18: 0 | D18: 2 | E18: =B18&C18&D18&IF($A$2="Non-municipal","N",IF($A$2="Municiple","Y","error")) -> NEGenDUoSR02N | H18: ≥ 500V & ≤ 22kV | J18: 0.36 | K18: =ROUND(J18 * (1 + VAT), 2) -> 0.41
I21: Transmission zone | J21: Voltage | K21: [R/kVA]
A22: Tariff | B22: Tariff nameBillcode | C22: Tx zone | D22: Voltage | E22: Billcode | L22: VAT incl
H23: ETUoS urban | I23: ≤ 300km | J23: < 500V | K23: ='Megaflex inc'!V8 -> 7.79 | L23: =ROUND(K23 * (1 + VAT), 2) -> 8.88
J24: ≥ 500V & < 66kV | K24: ='Megaflex inc'!V9 -> 7.12 | L24: 8.12
J25: ≥ 66kV & ≤ 132kV | K25: ='Megaflex inc'!V10 -> 6.94 | L25: 7.91
I26: > 300km & ≤ 600km | J26: < 500V | K26: ='Megaflex inc'!V12 -> 7.85 | L26: 8.95
J27: ≥ 500V & < 66kV | K27: ='Megaflex inc'!V13 -> 7.19 | L27: 8.2
J28: ≥ 66kV & ≤ 132kV | K28: ='Megaflex inc'!V14 -> 6.99 | L28: 7.97
I29: > 600km & ≤ 900km | J29: < 500V | K29: ='Megaflex inc'!V16 -> 7.95 | L29: 9.06
J30: ≥ 500V & < 66kV | K30: ='Megaflex inc'!V17 -> 7.25 | L30: 8.27
J31: ≥ 66kV & ≤ 132kV | K31: ='Megaflex inc'!V18 -> 7.03 | L31: 8.01
I32: > 900km | J32: < 500V | K32: ='Megaflex inc'!V20 -> 7.98 | L32: 9.1
J33: ≥ 500V & < 66kV | K33: ='Megaflex inc'!V21 -> 7.34 | L33: 8.37
J34: ≥ 66kV & ≤ 132kV | K34: ='Megaflex inc'!V22 -> 7.09 | L34: 8.08
I37: Transmission zone | J37: Voltage | K37: [R/kVA]
A38: Tariff | B38: Tariff nameBillcode | C38: Tx zone | D38: Voltage | E38: Billcode | L38: VAT incl
H39: ETUoS rural | I39: ≤ 300km | J39: < 500V | K39: ='Ruraflex inc'!V8 -> 16.28 | L39: =ROUND(K39 * (1 + VAT), 2) -> 18.56
J40: ≥ 500V & < 66kV | K40: ='Ruraflex inc'!V9 -> 14.92 | L40: 17.01
I41: > 300km & ≤ 600km | J41: < 500V | K41: ='Ruraflex inc'!V12 -> 16.33 | L41: 18.62
J42: ≥ 500V & < 66kV | K42: ='Ruraflex inc'!V13 -> 15.02 | L42: 17.12
I43: > 600km & ≤ 900km | J43: < 500V | K43: ='Ruraflex inc'!V16 -> 16.42 | L43: 18.72
J44: ≥ 500V & < 66kV | K44: ='Ruraflex inc'!V17 -> 15.08 | L44: 17.19
I45: > 900km | J45: < 500V | K45: ='Ruraflex inc'!V20 -> 16.49 | L45: 18.8
J46: ≥ 500V & < 66kV | K46: ='Ruraflex inc'!V21 -> 15.09 | L46: 17.2
H49: Distribution network charges urbanp
J50: Network capacity charge [R/kVA/m] | L50: Network demand charge [R/kVA/m] | N50: Urban low voltage subsidy charge [R/kVA/m]
A52: Tariff | B52: Tariff nameBillcode | C52: Tx zone | D52: Voltage | E52: Billcode | H52: Voltage | K52: VAT incl | M52: VAT incl | O52: VAT incl
A53: Gen-DUoS urban | B53: NEGenDUoSU | C53: 0 | D53: 1 | E53: =B53&C53&D53&IF($A$2="Non-municipal","N",IF($A$2="Municiple","Y","error")) -> NEGenDUoSU01N | H53: < 500V | J53: ='Megaflex inc'!J30 -> 15.48 | K53: =ROUND(J53 * (1 + VAT), 2) -> 17.65 | L53: ='Megaflex inc'!L30 -> 29.35 | M53: =ROUND(L53 * (1 + VAT), 2) -> 33.46 | N53: ='Megaflex inc'!N30 -> 0 | O53: =ROUND(N53 * (1 + VAT), 2) -> 0
A54: Gen-DUoS urban | B54: NEGenDUoSU | C54: 0 | D54: 2 | E54: =B54&C54&D54&IF($A$2="Non-municipal","N",IF($A$2="Municiple","Y","error")) -> NEGenDUoSU02N | H54: ≥ 500V & < 66kV | J54: ='Megaflex inc'!J31 -> 14.2 | K54: =ROUND(J54 * (1 + VAT), 2) -> 16.19 | L54: ='Megaflex inc'!L31 -> 26.93 | M54: =ROUND(L54 * (1 + VAT), 2) -> 30.7 | N54: ='Megaflex inc'!N31 -> 0 | O54: =ROUND(N54 * (1 + VAT), 2) -> 0
A55: Gen-DUoS urban | B55: NEGenDUoSU | C55: 0 | D55: 3 | E55: NEGenDUoSU03N | H55: ≥ 66kV & ≤ 132kV | J55: ='Megaflex inc'!J32 -> 5.07 | K55: =ROUND(J55 * (1 + VAT), 2) -> 5.78 | L55: ='Megaflex inc'!L32 -> 9.39 | M55: =ROUND(L55 * (1 + VAT), 2) -> 10.7 | N55: ='Megaflex inc'!N32 -> 12.5 | O55: =ROUND(N55 * (1 + VAT), 2) -> 14.25
A56: Gen-DUoS urban | B56: NEGenDUoSU | C56: 0 | D56: 4 | E56: =B56&C56&D56&IF($A$2="Non-municipal","N",IF($A$2="Municiple","Y","error")) -> NEGenDUoSU04N | H56: > 132kV | J56: ='Megaflex inc'!J33 -> 0 | K56: =ROUND(J56 * (1 + VAT), 2) -> 0 | L56: ='Megaflex inc'!L33 -> 0 | M56: =ROUND(L56 * (1 + VAT), 2) -> 0 | N56: ='Megaflex inc'!N33 -> 12.5 | O56: =ROUND(N56 * (1 + VAT), 2) -> 14.25
H59: Distribution network charges ruralp
J60: Network capacity charge [R/kVA/m] | L60: Network demand charge [c/kWh]
A62: Tariff | B62: Tariff nameBillcode | C62: Tx zone | D62: Voltage | E62: Billcode | H62: Voltage | K62: VAT incl | M62: VAT incl
A63: Gen-DUoS rural | B63: NEGenDUoSR | C63: 0 | D63: 1 | E63: =B63&C63&D63&IF($A$2="Non-municipal","N",IF($A$2="Municiple","Y","error")) -> NEGenDUoSR01N | H63: < 500V | J63: ='Ruraflex inc'!V8 -> 16.28 | K63: =ROUND(J63 * (1 + VAT), 2) -> 18.56 | L63: ='Ruraflex inc'!S28 -> 23.18 | M63: =ROUND(L63 * (1 + VAT), 2) -> 26.43
A64: Gen-DUoS rural | B64: NEGenDUoSR | C64: 0 | D64: 2 | E64: =B64&C64&D64&IF($A$2="Non-municipal","N",IF($A$2="Municiple","Y","error")) -> NEGenDUoSR02N | H64: ≥ 500V & ≤ 22kV | J64: ='Ruraflex inc'!V9 -> 14.92 | K64: =ROUND(J64 * (1 + VAT), 2) -> 17.01 | L64: ='Ruraflex inc'!S29 -> 20.32 | M64: =ROUND(L64 * (1 + VAT), 2) -> 23.16
H67: Distribution network charges for Generators
J68: Network capacity charge [R/kW/m]
A70: Tariff | B70: Tariff nameBillcode | C70: Tx zone | D70: Voltage | E70: Billcode | H70: Voltage | K70: VAT incl
A71: Gen-DUoS urban | B71: NEGenDUoSU | C71: 0 | D71: 1 | E71: =B71&C71&D71&IF($A$2="Non-municipal","N",IF($A$2="Municiple","Y","error")) -> NEGenDUoSU01N | H71: < 500V
A72: Gen-DUoS urban | B72: NEGenDUoSU | C72: 0 | D72: 2 | E72: =B72&C72&D72&IF($A$2="Non-municipal","N",IF($A$2="Municiple","Y","error")) -> NEGenDUoSU02N | H72: ≥ 500V & < 66kV
A73: Gen-DUoS urban | B73: NEGenDUoSU | C73: 0 | D73: 3 | E73: NEGenDUoSU03N | H73: ≥ 66kV & ≤ 132kV | J73: 12.52 | K73: =ROUND(J73 * (1 + VAT), 2) -> 14.27
H75: Electrification and rural network subsidy charge [c/kWh] | R75: Electrification and rural network subsidy charge [c/kWh]
J77: Rural network subsidy charge [c/kWh] | L77: Electrification networks subsidy charge [c/kWh] | N77: Total electrification and rural network subsidy charge [c/kWh] | R77: Tariff | T77: Total electrification and rural network subsidy charge [c/kWh]
A79: Tariff | B79: Tariff nameBillcode | C79: Tx zone | D79: Voltage | E79: Billcode | H79: Tariff | K79: VAT incl | M79: VAT incl | O79: VAT incl | U79: VAT incl
H80: Megaflex, Miniflex, Nightsave Urban Large, Nightsave Urban Small, Businessrate | R80: Megaflex, Miniflex, Nightsave Urban Large, Nightsave Urban Small, Businessrate
A81: Megaflex | B81: Me | C81: 0 | D81: 1 | E81: =B81&C81&D81&IF($A$2="Non-municipal","N",IF($A$2="Municiple","Y","error")) -> Me01N | J81: 4.6 | K81: =ROUND(J81 * (1 + VAT), 2) -> 5.24 | L81: 2.33 | M81: =ROUND(L81 * (1 + VAT), 2) -> 2.66 | N81: =SUM(J81, L81) -> 6.93 | O81: =ROUND(N81 * (1 + VAT), 2) -> 7.9 | T81: 6.93 | U81: =ROUND(T81 * (1 + VAT), 2) -> 7.9
A82: 0.6637010676
A83: 0.3362989324
H86: Service and administration charges (urbanp )
H87: Customer categories utilised capacity / maximum export capacity | J87: Service charge [R/account/day] | L87: Administration charge [R/POD/day]
H90: [kVA or MVA = loads]
A91: Tariff | B91: Tariff nameBillcode | C91: Tx zone | D91: Voltage | E91: Billcode | H91: [kW or MW = generators] | K91: VAT incl | M91: VAT incl
A92: Miniflex | B92: Mi | C92: 0 | D92: 1 | E92: =B92&C92&D92&IF($A$2="Non-municipal","N",IF($A$2="Municiple","Y","error")) -> Mi01N | H92: ≤ 100 kVA/kW | J92: 12.64 | K92: =ROUND(J92 * (1 + VAT), 2) -> 14.41 | L92: 2.78 | M92: =ROUND(L92 * (1 + VAT), 2) -> 3.17
A93: Miniflex | B93: Mi | C93: 0 | D93: 1 | E93: =B93&C93&D93&IF($A$2="Non-municipal","N",IF($A$2="Municiple","Y","error")) -> Mi01N | H93: > 100 kVA/kW & ≤ 500 kVA/kW | J93: 57.76 | K93: =ROUND(J93 * (1 + VAT), 2) -> 65.85 | L93: 16.19 | M93: =ROUND(L93 * (1 + VAT), 2) -> 18.46
A94: Miniflex | B94: Mi | C94: 0 | D94: 1 | E94: Mi01N | H94: > 500 kVA/kW & ≤ 1 MVA/MW | J94: 177.75 | K94: =ROUND(J94 * (1 + VAT), 2) -> 202.64 | L94: 32.17 | M94: =ROUND(L94 * (1 + VAT), 2) -> 36.67
A95: Miniflex | B95: Mi | C95: 0 | D95: 1 | E95: Mi01N | H95: > 1 MVA/MW | J95: 177.75 | K95: =ROUND(J95 * (1 + VAT), 2) -> 202.64 | L95: 80.11 | M95: =ROUND(L95 * (1 + VAT), 2) -> 91.33
A96: Miniflex | B96: Mi | C96: 0 | D96: 1 | E96: Mi01N | H96: Key customers or Transmission connected | J96: 3483.16 | K96: =ROUND(J96 * (1 + VAT), 2) -> 3970.8 | L96: 111.24 | M96: =ROUND(L96 * (1 + VAT), 2) -> 126.81
H99: Service and administration charges (ruralp)
H100: Customer categories utilised capacity / maximum export capacity | J100: Service charge [R/account/day] | L100: Administration charge [R/POD/day]
H103: [kVA or MVA = loads]
A104: Tariff | B104: Tariff nameBillcode | C104: Tx zone | D104: Voltage | E104: Billcode | H104: [kW or MW = generators] | K104: VAT incl | M104: VAT incl
A105: Ruraflex | B105: Ru | C105: 0 | D105: 1 | E105: =B105&C105&D105&IF($A$2="Non-municipal","N",IF($A$2="Municiple","Y","error")) -> Ru01N | H105: ≤ 100 kVA/kW | J105: 16.02 | K105: =ROUND(J105 * (1 + VAT), 2) -> 18.26 | L105: 4.55 | M105: =ROUND(L105 * (1 + VAT), 2) -> 5.19
A106: Ruraflex | B106: Ru | C106: 0 | D106: 1 | E106: =B106&C106&D106&IF($A$2="Non-municipal","N",IF($A$2="Municiple","Y","error")) -> Ru01N | H106: > 100 kVA/kW & ≤ 500 kVA/kW | J106: 54.63 | K106: =ROUND(J106 * (1 + VAT), 2) -> 62.28 | L106: 25.33 | M106: =ROUND(L106 * (1 + VAT), 2) -> 28.88
A107: Ruraflex | B107: Ru | C107: 0 | D107: 1 | E107: Ru01N | H107: > 500 kVA/kW & ≤ 1 MVA/MW | J107: 168.07 | K107: =ROUND(J107 * (1 + VAT), 2) -> 191.6 | L107: 38.87 | M107: =ROUND(L107 * (1 + VAT), 2) -> 44.31
A108: Ruraflex | B108: Ru | C108: 0 | D108: 1 | E108: Ru01N | H108: > 1 MVA/MW | J108: 168.07 | K108: =ROUND(J108 * (1 + VAT), 2) -> 191.6 | L108: 72.13 | M108: =ROUND(L108 * (1 + VAT), 2) -> 82.23
A109: Ruraflex | B109: Ru | C109: 0 | D109: 1 | E109: Ru01N | H109: Key customers | J109: 3293.99 | K109: =ROUND(J109 * (1 + VAT), 2) -> 3755.15 | L109: 72.13 | M109: =ROUND(L109 * (1 + VAT), 2) -> 82.23
H111: Distribution loss factors | L111: Transmission loss factors for loads
A112: Tariff | B112: Tariff nameBillcode | C112: Tx zone | D112: Voltage | E112: Billcode | H112: Voltage | I112: Urbanp loss factor | J112: Ruralp loss factor | L112: Distance from Johannesburg | M112: Zone | N112: Loss factor
A113: Distribution loss factor - Urban | B113: DxLossUrb | C113: 0 | D113: 1 | E113: =B113&C113&D113&IF($A$2="Non-municipal","N",IF($A$2="Municiple","Y","error")) -> DxLossUrb01N | H113: < 500V | I113: 1.1111 | J113: 1.1527 | L113: ≤ 300km | M113: 0 | N113: 1.0107
A114: Distribution loss factor - Urban | B114: DxLossUrb | C114: 0 | D114: 2 | E114: =B114&C114&D114&IF($A$2="Non-municipal","N",IF($A$2="Municiple","Y","error")) -> DxLossUrb02N | H114: ≥ 500V & < 66kV | I114: 1.0957 | J114: 1.1412 | L114: > 300km & ≤ 600km | M114: 1 | N114: 1.0208
A115: Distribution loss factor - Urban | B115: DxLossUrb | C115: 0 | D115: 3 | E115: DxLossUrb03N | H115: ≥ 66kV & ≤ 132kV | I115: 1.0611 | L115: > 600km & ≤ 900km | M115: 2 | N115: 1.031
A116: Distribution loss factor - Urban | B116: DxLossUrb | C116: 0 | D116: 4 | E116: DxLossUrb04N | H116: > 132kV | I116: 1 | L116: > 900km | M116: 3 | N116: 1.0413
A118: Distribution loss factor - Rural | B118: DxLossRur | C118: 0 | D118: 1 | E118: =B118&C118&D118&IF($A$2="Non-municipal","N",IF($A$2="Municiple","Y","error")) -> DxLossRur01N
A119: Distribution loss factor - Rural | B119: DxLossRur | C119: 0 | D119: 2 | E119: =B119&C119&D119&IF($A$2="Non-municipal","N",IF($A$2="Municiple","Y","error")) -> DxLossRur02N
A122: Transmission loss factor | B122: TxLoss | C122: 0 | D122: 4 | E122: =B122&C122&D122&IF($A$2="Non-municipal","N",IF($A$2="Municiple","Y","error")) -> TxLoss04N
A123: Transmission loss factor | B123: TxLoss | C123: 1 | D123: 4 | E123: =B123&C123&D123&IF($A$2="Non-municipal","N",IF($A$2="Municiple","Y","error")) -> TxLoss14N
A124: Transmission loss factor | B124: TxLoss | C124: 2 | D124: 4 | E124: TxLoss24N
A125: Transmission loss factor | B125: TxLoss | C125: 3 | D125: 4 | E125: TxLoss34N

Sheet Loss Factors
N1: Back to menu | AL1: 0.14
N2: Loss factors
A3: Non-municipal
N4: Distribution loss factors | R4: Transmission loss factors for loads
A5: Tariff | B5: Tariff nameBillcode | C5: Tx zone | D5: Voltage | E5: Billcode | G5: Tariff | H5: Tariff nameBillcode | I5: Tx zone | J5: Voltage | K5: Billcode | N5: Voltage | O5: Urban loss factor | P5: Rural loss factor | R5: Distance from Johannesburg | S5: Zone | T5: Loss factor
A6: Distribution loss factor - Urban | B6: DxLossUrb | C6: 0 | D6: 1 | E6: =B6&C6&D6&IF($A$3="Non-municipal","N",IF($A$3="Municiple","Y","error")) -> DxLossUrb01N | G6: Transmission loss factor | H6: TxLoss | I6: 0 | J6: 4 | K6: =H6&I6&J6&IF($A$3="Non-municipal","N",IF($A$3="Municiple","Y","error")) -> TxLoss04N | N6: < 500V | O6: 1.1111 | P6: 1.1527 | R6: ≤ 300km | S6: 0 | T6: 1.0107
A7: Distribution loss factor - Urban | B7: DxLossUrb | C7: 0 | D7: 2 | E7: =B7&C7&D7&IF($A$3="Non-municipal","N",IF($A$3="Municiple","Y","error")) -> DxLossUrb02N | G7: Transmission loss factor | H7: TxLoss | I7: 1 | J7: 4 | K7: =H7&I7&J7&IF($A$3="Non-municipal","N",IF($A$3="Municiple","Y","error")) -> TxLoss14N | N7: ≥ 500V & < 66kV | O7: 1.0957 | P7: 1.1412 | R7: > 300km & ≤ 600km | S7: 1 | T7: 1.0208
A8: Distribution loss factor - Urban | B8: DxLossUrb | C8: 0 | D8: 3 | E8: =B8&C8&D8&IF($A$3="Non-municipal","N",IF($A$3="Municiple","Y","error")) -> DxLossUrb03N | G8: Transmission loss factor | H8: TxLoss | I8: 2 | J8: 4 | K8: =H8&I8&J8&IF($A$3="Non-municipal","N",IF($A$3="Municiple","Y","error")) -> TxLoss24N | N8: ≥ 66kV & ≤ 132kV | O8: 1.0611 | R8: > 600km & ≤ 900km | S8: 2 | T8: 1.031
A9: Distribution loss factor - Urban | B9: DxLossUrb | C9: 0 | D9: 4 | E9: =B9&C9&D9&IF($A$3="Non-municipal","N",IF($A$3="Municiple","Y","error")) -> DxLossUrb04N | G9: Transmission loss factor | H9: TxLoss | I9: 3 | J9: 4 | K9: =H9&I9&J9&IF($A$3="Non-municipal","N",IF($A$3="Municiple","Y","error")) -> TxLoss34N | N9: > 132kV/Transmission connected | O9: 1 | R9: > 900km | S9: 3 | T9: 1.0413
A11: Distribution loss factor - Rural | B11: DxLossRur | C11: 0 | D11: 1 | E11: =B11&C11&D11&IF($A$3="Non-municipal","N",IF($A$3="Municiple","Y","error")) -> DxLossRur01N | P11: 2012/13
A12: Distribution loss factor - Rural | B12: DxLossRur | C12: 0 | D12: 2 | E12: =B12&C12&D12&IF($A$3="Non-municipal","N",IF($A$3="Municiple","Y","error")) -> DxLossRur02N | N12: Loss factors for Transmission connected generators | P12: Loss factor
A13: Tariff | B13: Tariff nameBillcode | C13: Tx zone | D13: Voltage | E13: Billcode
A14: TUoS network charges for Transmission connected generators | B14: GenTUOS | C14: Cape | D14: 4 | E14: =B14&C14&D14&IF($A$3="Non-municipal","N",IF($A$3="Municiple","Y","error")) -> GenTUOSCape4N | O14: Cape | P14: 0.971
A15: TUoS network charges for Transmission connected generators | B15: GenTUOS | C15: Karoo | D15: 4 | E15: GenTUOSKaroo4N | O15: Karoo | P15: 0.995
A16: TUoS network charges for Transmission connected generators | B16: GenTUOS | C16: Kwazulu-Natal | D16: 4 | E16: GenTUOSKwazulu-Natal4N | O16: Kwazulu-Natal | P16: 1.004
A17: TUoS network charges for Transmission connected generators | B17: GenTUOS | C17: Vaal | D17: 4 | E17: GenTUOSVaal4N | O17: Vaal | P17: 1.02
A18: TUoS network charges for Transmission connected generators | B18: GenTUOS | C18: Waterburg | D18: 4 | E18: GenTUOSWaterburg4N | O18: Waterburg | P18: 1.023
A19: TUoS network charges for Transmission connected generators | B19: GenTUOS | C19: Mpumalanga | D19: 4 | E19: GenTUOSMpumalanga4N | O19: Mpumalanga | P19: 1.021

Sheet Excess NCC or MEC
S1: Back to menu
A2: Non-municipal | S2: Urban - Excess NCC Megaflex [non local authorities] | X2: Urban - Excess NCC Nightsave Urban Large [non local authorities] | AD2: Urban - Excess NCC Miniflex [non local authorities] | AK2: Urban - Excess NCC WEPS [non local authorities]
U4: Excess network charge [R/kVA/m] | AA4: Excess network charge [R/kVA/m] | AG4: Excess network charge [R/kVA/m] | AM4: Excess network charge [R/kVA/m]
S5: Transmission zone | Y5: Transmission zone | AE5: Transmission zone | AK5: Transmission zone
T6: Voltage | Z6: Voltage | AF6: Voltage | AL6: Voltage
A7: Tariff | B7: Tariff nameBillcode | C7: Tx zone | D7: Voltage | E7: Billcode | G7: Tariff | H7: Tariff nameBillcode | I7: Tx zone | J7: Voltage | K7: Billcode | M7: Tariff | N7: Tariff nameBillcode | O7: Tx zone | P7: Voltage | Q7: Billcode | V7: VAT incl | AB7: VAT incl | AH7: VAT incl | AN7: VAT incl
A8: Excess NAC Megaflex | B8: ExNACMe | C8: 0 | D8: 1 | E8: =B8&C8&D8&IF($A$2="Non-municipal","N",IF($A$2="Municiple","Y","error")) -> ExNACMe01N | G8: Excess NAC Nightsave Large | H8: ExNACNL | I8: 0 | J8: 1 | K8: =H8&I8&J8&IF($A$2="Non-municipal","N",IF($A$2="Municiple","Y","error")) -> ExNACNL01N | M8: Excess NAC Miniflex | N8: ExNACMi | O8: 0 | P8: 1 | Q8: =N8&O8&P8&IF($A$2="Non-municipal","N",IF($A$2="Municiple","Y","error")) -> ExNACMi01N | S8: ≤ 300km | T8: < 500V | U8: 23.27 | V8: =ROUND(U8 * (1 + VAT), 2) -> 26.53 | Y8: ≤ 300km | Z8: < 500V | AA8: 23.27 | AB8: =ROUND(AA8 * (1 + VAT), 2) -> 26.53 | AE8: ≤ 300km | AF8: < 500V | AG8: 23.25 | AH8: =ROUND(AG8 * (1 + VAT), 2) -> 26.51 | AK8: ≤ 300km | AL8: < 500V | AM8: 23.27 | AN8: =ROUND(AM8 * (1 + VAT), 2) -> 26.53
A9: Excess NAC Megaflex | B9: ExNACMe | C9: 0 | D9: 2 | E9: =B9&C9&D9&IF($A$2="Non-municipal","N",IF($A$2="Municiple","Y","error")) -> ExNACMe02N | G9: Excess NAC Nightsave Large | H9: ExNACNL | I9: 0 | J9: 2 | K9: =H9&I9&J9&IF($A$2="Non-municipal","N",IF($A$2="Municiple","Y","error")) -> ExNACNL02N | M9: Excess NAC Miniflex | N9: ExNACMi | O9: 0 | P9: 2 | Q9: =N9&O9&P9&IF($A$2="Non-municipal","N",IF($A$2="Municiple","Y","error")) -> ExNACMi02N | T9: ≥ 500V & < 66kV | U9: 21.32 | V9: 24.3 | Z9: ≥ 500V & < 66kV | AA9: 21.32 | AB9: 24.3 | AF9: ≥ 500V & < 66kV | AG9: 21.3 | AH9: 24.28 | AL9: ≥ 500V & < 66kV | AM9: 21.32 | AN9: 24.3
A10: Excess NAC Megaflex | B10: ExNACMe | C10: 0 | D10: 3 | E10: ExNACMe03N | G10: Excess NAC Nightsave Large | H10: ExNACNL | I10: 0 | J10: 3 | K10: ExNACNL03N | M10: Excess NAC Miniflex | N10: ExNACMi | O10: 0 | P10: 3 | Q10: ExNACMi03N | T10: ≥ 66kV & ≤ 132kV | U10: 24.51 | V10: 27.94 | Z10: ≥ 66kV & ≤ 132kV | AA10: 24.51 | AB10: 27.94 | AF10: ≥ 66kV & ≤ 132kV | AG10: 24.47 | AH10: 27.9 | AL10: ≥ 66kV & ≤ 132kV | AM10: 24.51 | AN10: 27.94
A11: Excess NAC Megaflex | B11: ExNACMe | C11: 0 | D11: 4 | E11: ExNACMe04N | G11: Excess NAC Nightsave Large | H11: ExNACNL | I11: 0 | J11: 4 | K11: ExNACNL04N | M11: Excess NAC Miniflex | N11: ExNACMi | O11: 0 | P11: 4 | Q11: ExNACMi04N | T11: > 132kV* | U11: 21.26 | V11: 24.24 | Z11: > 132kV* | AA11: 21.26 | AB11: 24.24 | AF11: > 132kV* | AG11: 21.22 | AH11: 24.19 | AL11: > 132kV* | AM11: 21.26 | AN11: 24.24
A12: Excess NAC Megaflex | B12: ExNACMe | C12: 1 | D12: 1 | E12: ExNACMe11N | G12: Excess NAC Nightsave Large | H12: ExNACNL | I12: 1 | J12: 1 | K12: ExNACNL11N | M12: Excess NAC Miniflex | N12: ExNACMi | O12: 1 | P12: 1 | Q12: ExNACMi11N | S12: > 300km and ≤ 600km | T12: < 500V | U12: 23.33 | V12: 26.6 | Y12: > 300km and ≤ 600km | Z12: < 500V | AA12: 23.33 | AB12: 26.6 | AE12: > 300km and ≤ 600km | AF12: < 500V | AG12: 23.3 | AH12: 26.56 | AK12: > 300km and ≤ 600km | AL12: < 500V | AM12: 23.33 | AN12: 26.6
A13: Excess NAC Megaflex | B13: ExNACMe | C13: 1 | D13: 2 | E13: ExNACMe12N | G13: Excess NAC Nightsave Large | H13: ExNACNL | I13: 1 | J13: 2 | K13: ExNACNL12N | M13: Excess NAC Miniflex | N13: ExNACMi | O13: 1 | P13: 2 | Q13: ExNACMi12N | T13: ≥ 500V & < 66kV | U13: 21.39 | V13: 24.38 | Z13: ≥ 500V & < 66kV | AA13: 21.39 | AB13: 24.38 | AF13: ≥ 500V & < 66kV | AG13: 21.37 | AH13: 24.36 | AL13: ≥ 500V & < 66kV | AM13: 21.39 | AN13: 24.38
A14: Excess NAC Megaflex | B14: ExNACMe | C14: 1 | D14: 3 | E14: ExNACMe13N | G14: Excess NAC Nightsave Large | H14: ExNACNL | I14: 1 | J14: 3 | K14: ExNACNL13N | M14: Excess NAC Miniflex | N14: ExNACMi | O14: 1 | P14: 3 | Q14: ExNACMi13N | T14: ≥ 66kV & ≤ 132kV | U14: 24.56 | V14: 28 | Z14: ≥ 66kV & ≤ 132kV | AA14: 24.56 | AB14: 28 | AF14: ≥ 66kV & ≤ 132kV | AG14: 24.52 | AH14: 27.95 | AL14: ≥ 66kV & ≤ 132kV | AM14: 24.56 | AN14: 28
A15: Excess NAC Megaflex | B15: ExNACMe | C15: 1 | D15: 4 | E15: ExNACMe14N | G15: Excess NAC Nightsave Large | H15: ExNACNL | I15: 1 | J15: 4 | K15: ExNACNL14N | M15: Excess NAC Miniflex | N15: ExNACMi | O15: 1 | P15: 4 | Q15: ExNACMi14N | T15: > 132kV* | U15: 21.35 | V15: 24.34 | Z15: > 132kV* | AA15: 21.35 | AB15: 24.34 | AF15: > 132kV* | AG15: 21.32 | AH15: 24.3 | AL15: > 132kV* | AM15: 21.35 | AN15: 24.34
A16: Excess NAC Megaflex | B16: ExNACMe | C16: 2 | D16: 1 | E16: ExNACMe21N | G16: Excess NAC Nightsave Large | H16: ExNACNL | I16: 2 | J16: 1 | K16: ExNACNL21N | M16: Excess NAC Miniflex | N16: ExNACMi | O16: 2 | P16: 1 | Q16: ExNACMi21N | S16: > 600km and ≤ 900km | T16: < 500V | U16: 23.43 | V16: 26.71 | Y16: > 600km and ≤ 900km | Z16: < 500V | AA16: 23.43 | AB16: 26.71 | AE16: > 600km and ≤ 900km | AF16: < 500V | AG16: 23.41 | AH16: 26.69 | AK16: > 600km and ≤ 900km | AL16: < 500V | AM16: 23.43 | AN16: 26.71
A17: Excess NAC Megaflex | B17: ExNACMe | C17: 2 | D17: 2 | E17: ExNACMe22N | G17: Excess NAC Nightsave Large | H17: ExNACNL | I17: 2 | J17: 2 | K17: ExNACNL22N | M17: Excess NAC Miniflex | N17: ExNACMi | O17: 2 | P17: 2 | Q17: ExNACMi22N | T17: ≥ 500V & < 66kV | U17: 21.45 | V17: 24.45 | Z17: ≥ 500V & < 66kV | AA17: 21.45 | AB17: 24.45 | AF17: ≥ 500V & < 66kV | AG17: 21.43 | AH17: 24.43 | AL17: ≥ 500V & < 66kV | AM17: 21.45 | AN17: 24.45
A18: Excess NAC Megaflex | B18: ExNACMe | C18: 2 | D18: 3 | E18: ExNACMe23N | G18: Excess NAC Nightsave Large | H18: ExNACNL | I18: 2 | J18: 3 | K18: ExNACNL23N | M18: Excess NAC Miniflex | N18: ExNACMi | O18: 2 | P18: 3 | Q18: ExNACMi23N | T18: ≥ 66kV & ≤ 132kV | U18: 24.6 | V18: 28.04 | Z18: ≥ 66kV & ≤ 132kV | AA18: 24.6 | AB18: 28.04 | AF18: ≥ 66kV & ≤ 132kV | AG18: 24.58 | AH18: 28.02 | AL18: ≥ 66kV & ≤ 132kV | AM18: 24.6 | AN18: 28.04
A19: Excess NAC Megaflex | B19: ExNACMe | C19: 2 | D19: 4 | E19: ExNACMe24N | G19: Excess NAC Nightsave Large | H19: ExNACNL | I19: 2 | J19: 4 | K19: ExNACNL24N | M19: Excess NAC Miniflex | N19: ExNACMi | O19: 2 | P19: 4 | Q19: ExNACMi24N | T19: > 132kV* | U19: 21.47 | V19: 24.48 | Z19: > 132kV* | AA19: 21.47 | AB19: 24.48 | AF19: > 132kV* | AG19: 21.44 | AH19: 24.44 | AL19: > 132kV* | AM19: 21.47 | AN19: 24.48
A20: Excess NAC Megaflex | B20: ExNACMe | C20: 3 | D20: 1 | E20: ExNACMe31N | G20: Excess NAC Nightsave Large | H20: ExNACNL | I20: 3 | J20: 1 | K20: ExNACNL31N | M20: Excess NAC Miniflex | N20: ExNACMi | O20: 3 | P20: 1 | Q20: ExNACMi31N | S20: > 900km | T20: < 500V | U20: 23.46 | V20: 26.74 | Y20: > 900km | Z20: < 500V | AA20: 23.46 | AB20: 26.74 | AE20: > 900km | AF20: < 500V | AG20: 23.43 | AH20: 26.71 | AK20: > 900km | AL20: < 500V | AM20: 23.46 | AN20: 26.74
A21: Excess NAC Megaflex | B21: ExNACMe | C21: 3 | D21: 2 | E21: ExNACMe32N | G21: Excess NAC Nightsave Large | H21: ExNACNL | I21: 3 | J21: 2 | K21: ExNACNL32N | M21: Excess NAC Miniflex | N21: ExNACMi | O21: 3 | P21: 2 | Q21: ExNACMi32N | T21: ≥ 500V & < 66kV | U21: 21.54 | V21: 24.56 | Z21: ≥ 500V & < 66kV | AA21: 21.54 | AB21: 24.56 | AF21: ≥ 500V & < 66kV | AG21: 21.51 | AH21: 24.52 | AL21: ≥ 500V & < 66kV | AM21: 21.54 | AN21: 24.56
A22: Excess NAC Megaflex | B22: ExNACMe | C22: 3 | D22: 3 | E22: ExNACMe33N | G22: Excess NAC Nightsave Large | H22: ExNACNL | I22: 3 | J22: 3 | K22: ExNACNL33N | M22: Excess NAC Miniflex | N22: ExNACMi | O22: 3 | P22: 3 | Q22: ExNACMi33N | T22: ≥ 66kV & ≤ 132kV | U22: 24.66 | V22: 28.11 | Z22: ≥ 66kV & ≤ 132kV | AA22: 24.66 | AB22: 28.11 | AF22: ≥ 66kV & ≤ 132kV | AG22: 24.63 | AH22: 28.08 | AL22: ≥ 66kV & ≤ 132kV | AM22: 24.66 | AN22: 28.11
A23: Excess NAC Megaflex | B23: ExNACMe | C23: 3 | D23: 4 | E23: ExNACMe34N | G23: Excess NAC Nightsave Large | H23: ExNACNL | I23: 3 | J23: 4 | K23: ExNACNL34N | M23: Excess NAC Miniflex | N23: ExNACMi | O23: 3 | P23: 4 | Q23: ExNACMi34N | T23: > 132kV* | U23: 21.54 | V23: 24.56 | Z23: > 132kV* | AA23: 21.54 | AB23: 24.56 | AF23: > 132kV* | AG23: 21.5 | AH23: 24.51 | AL23: > 132kV* | AM23: 21.54 | AN23: 24.56
T24: * 132 kV or Transmission connected | Z24: * 132 kV or Transmission connected | AF24: * 132 kV or Transmission connected | AL24: * 132 kV or Transmission connected
S25: Urban - Excess NCC Nightsave Urban Small [non local authorities] | X25: Rural - Excess NCC Nightsave Rural [non local authorities] | AD25: Rural - Excess NCC Ruraflex [non local authorities]
U27: Excess network charge [R/kVA/m] | AA27: Excess network charge [R/kVA/m] | AG27: Excess network charge [R/kVA/m]
S28: Transmission zone | Y28: Transmission zone | AE28: Transmission zone
T29: Voltage | Z29: Voltage | AF29: Voltage
A30: Tariff | B30: Tariff nameBillcode | C30: Tx zone | D30: Voltage | E30: Billcode | G30: Tariff | H30: Tariff nameBillcode | I30: Tx zone | J30: Voltage | K30: Billcode | M30: Tariff | N30: Tariff nameBillcode | O30: Tx zone | P30: Voltage | Q30: Billcode | V30: VAT incl | AB30: VAT incl | AH30: VAT incl
A31: Excess NAC Nightsave Small | B31: ExNACNS | C31: 0 | D31: 1 | E31: =B31&C31&D31&IF($A$2="Non-municipal","N",IF($A$2="Municiple","Y","error")) -> ExNACNS01N | G31: Excess NAC Nightsave Rural | H31: ExNACNR | I31: 0 | J31: 1 | K31: =H31&I31&J31&IF($A$2="Non-municipal","N",IF($A$2="Municiple","Y","error")) -> ExNACNR01N | M31: Excess NAC Ruraflex | N31: ExNACRu | O31: 0 | P31: 1 | Q31: =N31&O31&P31&IF($A$2="Non-municipal","N",IF($A$2="Municiple","Y","error")) -> ExNACRu01N | S31: ≤ 300km | T31: < 500V | U31: 23.27 | V31: =ROUND(U31 * (1 + VAT), 2) -> 26.53 | Y31: ≤ 300km | Z31: < 500V | AA31: 11.65 | AB31: =ROUND(AA31 * (1 + VAT), 2) -> 13.28 | AE31: ≤ 300km | AF31: < 500V | AG31: 16.28 | AH31: =ROUND(AG31 * (1 + VAT), 2) -> 18.56
A32: Excess NAC Nightsave Small | B32: ExNACNS | C32: 0 | D32: 2 | E32: =B32&C32&D32&IF($A$2="Non-municipal","N",IF($A$2="Municiple","Y","error")) -> ExNACNS02N | G32: Excess NAC Nightsave Rural | H32: ExNACNR | I32: 0 | J32: 2 | K32: =H32&I32&J32&IF($A$2="Non-municipal","N",IF($A$2="Municiple","Y","error")) -> ExNACNR02N | M32: Excess NAC Ruraflex | N32: ExNACRu | O32: 0 | P32: 2 | Q32: =N32&O32&P32&IF($A$2="Non-municipal","N",IF($A$2="Municiple","Y","error")) -> ExNACRu02N | T32: ≥ 500V & < 66kV | U32: 21.32 | V32: 24.3 | Z32: ≥ 500V & ≤ 22kV | AA32: 10.7 | AB32: 12.2 | AF32: ≥ 500V & ≤ 22kV | AG32: 14.92 | AH32: 17.01
A33: Excess NAC Nightsave Small | B33: ExNACNS | C33: 0 | D33: 3 | E33: ExNACNS03N | G33: Excess NAC Nightsave Rural | H33: ExNACNR | I33: 0 | J33: 3 | K33: ExNACNR03N | M33: Excess NAC Ruraflex | N33: ExNACRu | O33: 0 | P33: 3 | Q33: ExNACRu03N | T33: ≥ 66kV & ≤ 132kV | U33: 24.51 | V33: 27.94
A34: Excess NAC Nightsave Small | B34: ExNACNS | C34: 0 | D34: 4 | E34: ExNACNS04N | G34: Excess NAC Nightsave Rural | H34: ExNACNR | I34: 0 | J34: 4 | K34: ExNACNR04N | M34: Excess NAC Ruraflex | N34: ExNACRu | O34: 0 | P34: 4 | Q34: ExNACRu04N | T34: > 132kV* | U34: 21.26 | V34: 24.24
A35: Excess NAC Nightsave Small | B35: ExNACNS | C35: 1 | D35: 1 | E35: ExNACNS11N | G35: Excess NAC Nightsave Rural | H35: ExNACNR | I35: 1 | J35: 1 | K35: ExNACNR11N | M35: Excess NAC Ruraflex | N35: ExNACRu | O35: 1 | P35: 1 | Q35: ExNACRu11N | S35: > 300km and ≤ 600km | T35: < 500V | U35: 23.33 | V35: 26.6 | Y35: > 300km and ≤ 600km | Z35: < 500V | AA35: 11.68 | AB35: =ROUND(AA35 * (1 + VAT), 2) -> 13.32 | AE35: > 300km and ≤ 600km | AF35: < 500V | AG35: 16.33 | AH35: =ROUND(AG35 * (1 + VAT), 2) -> 18.62
A36: Excess NAC Nightsave Small | B36: ExNACNS | C36: 1 | D36: 2 | E36: ExNACNS12N | G36: Excess NAC Nightsave Rural | H36: ExNACNR | I36: 1 | J36: 2 | K36: ExNACNR12N | M36: Excess NAC Ruraflex | N36: ExNACRu | O36: 1 | P36: 2 | Q36: ExNACRu12N | T36: ≥ 500V & < 66kV | U36: 21.39 | V36: 24.38 | Z36: ≥ 500V & ≤ 22kV | AA36: 10.75 | AB36: 12.26 | AF36: ≥ 500V & ≤ 22kV | AG36: 15.02 | AH36: 17.12
A37: Excess NAC Nightsave Small | B37: ExNACNS | C37: 1 | D37: 3 | E37: ExNACNS13N | G37: Excess NAC Nightsave Rural | H37: ExNACNR | I37: 1 | J37: 3 | K37: ExNACNR13N | M37: Excess NAC Ruraflex | N37: ExNACRu | O37: 1 | P37: 3 | Q37: ExNACRu13N | T37: ≥ 66kV & ≤ 132kV | U37: 24.56 | V37: 28
A38: Excess NAC Nightsave Small | B38: ExNACNS | C38: 1 | D38: 4 | E38: ExNACNS14N | G38: Excess NAC Nightsave Rural | H38: ExNACNR | I38: 1 | J38: 4 | K38: ExNACNR14N | M38: Excess NAC Ruraflex | N38: ExNACRu | O38: 1 | P38: 4 | Q38: ExNACRu14N | T38: > 132kV* | U38: 21.35 | V38: 24.34
A39: Excess NAC Nightsave Small | B39: ExNACNS | C39: 2 | D39: 1 | E39: ExNACNS21N | G39: Excess NAC Nightsave Rural | H39: ExNACNR | I39: 2 | J39: 1 | K39: ExNACNR21N | M39: Excess NAC Ruraflex | N39: ExNACRu | O39: 2 | P39: 1 | Q39: ExNACRu21N | S39: > 600km and ≤ 900km | T39: < 500V | U39: 23.43 | V39: 26.71 | Y39: > 600km and ≤ 900km | Z39: < 500V | AA39: 11.79 | AB39: =ROUND(AA39 * (1 + VAT), 2) -> 13.44 | AE39: > 600km and ≤ 900km | AF39: < 500V | AG39: 16.42 | AH39: =ROUND(AG39 * (1 + VAT), 2) -> 18.72
A40: Excess NAC Nightsave Small | B40: ExNACNS | C40: 2 | D40: 2 | E40: ExNACNS22N | G40: Excess NAC Nightsave Rural | H40: ExNACNR | I40: 2 | J40: 2 | K40: ExNACNR22N | M40: Excess NAC Ruraflex | N40: ExNACRu | O40: 2 | P40: 2 | Q40: ExNACRu22N | T40: ≥ 500V & < 66kV | U40: 21.45 | V40: 24.45 | Z40: ≥ 500V & ≤ 22kV | AA40: 10.82 | AB40: 12.33 | AF40: ≥ 500V & ≤ 22kV | AG40: 15.08 | AH40: 17.19
A41: Excess NAC Nightsave Small | B41: ExNACNS | C41: 2 | D41: 3 | E41: ExNACNS23N | G41: Excess NAC Nightsave Rural | H41: ExNACNR | I41: 2 | J41: 3 | K41: ExNACNR23N | M41: Excess NAC Ruraflex | N41: ExNACRu | O41: 2 | P41: 3 | Q41: ExNACRu23N | T41: ≥ 66kV & ≤ 132kV | U41: 24.6 | V41: 28.04
A42: Excess NAC Nightsave Small | B42: ExNACNS | C42: 2 | D42: 4 | E42: ExNACNS24N | G42: Excess NAC Nightsave Rural | H42: ExNACNR | I42: 2 | J42: 4 | K42: ExNACNR24N | M42: Excess NAC Ruraflex | N42: ExNACRu | O42: 2 | P42: 4 | Q42: ExNACRu24N | T42: > 132kV* | U42: 21.47 | V42: 24.48
A43: Excess NAC Nightsave Small | B43: ExNACNS | C43: 3 | D43: 1 | E43: ExNACNS31N | G43: Excess NAC Nightsave Rural | H43: ExNACNR | I43: 3 | J43: 1 | K43: ExNACNR31N | M43: Excess NAC Ruraflex | N43: ExNACRu | O43: 3 | P43: 1 | Q43: ExNACRu31N | S43: > 900km | T43: < 500V | U43: 23.46 | V43: 26.74 | Y43: > 900km | Z43: < 500V | AA43: 11.82 | AB43: =ROUND(AA43 * (1 + VAT), 2) -> 13.47 | AE43: > 900km | AF43: < 500V | AG43: 16.49 | AH43: =ROUND(AG43 * (1 + VAT), 2) -> 18.8
A44: Excess NAC Nightsave Small | B44: ExNACNS | C44: 3 | D44: 2 | E44: ExNACNS32N | G44: Excess NAC Nightsave Rural | H44: ExNACNR | I44: 3 | J44: 2 | K44: ExNACNR32N | M44: Excess NAC Ruraflex | N44: ExNACRu | O44: 3 | P44: 2 | Q44: ExNACRu32N | T44: ≥ 500V & < 66kV | U44: 21.54 | V44: 24.56 | Z44: ≥ 500V & ≤ 22kV | AA44: 10.84 | AB44: 12.36 | AF44: ≥ 500V & ≤ 22kV | AG44: 15.09 | AH44: 17.2
A45: Excess NAC Nightsave Small | B45: ExNACNS | C45: 3 | D45: 3 | E45: ExNACNS33N | G45: Excess NAC Nightsave Rural | H45: ExNACNR | I45: 3 | J45: 3 | K45: ExNACNR33N | M45: Excess NAC Ruraflex | N45: ExNACRu | O45: 3 | P45: 3 | Q45: ExNACRu33N | T45: ≥ 66kV & ≤ 132kV | U45: 24.66 | V45: 28.11
A46: Excess NAC Nightsave Small | B46: ExNACNS | C46: 3 | D46: 4 | E46: ExNACNS34N | G46: Excess NAC Nightsave Rural | H46: ExNACNR | I46: 3 | J46: 4 | K46: ExNACNR34N | M46: Excess NAC Ruraflex | N46: ExNACRu | O46: 3 | P46: 4 | Q46: ExNACRu34N | T46: > 132kV* | U46: 21.54 | V46: 24.56
T47: * 132 kV or Transmission connected
S50: Excess MEC- Transmission connected generators | Y50: Excess MEC- Distribution connected Generators
T52: Excess Network capacity charge[R/kW/m] | Z52: Excess Network capacity charge[R/kW/m]
U53: VAT incl | AA53: VAT incl
S54: Cape | T54: =T55 -> 1.84 | U54: =ROUND(T54 * (1 + VAT), 2) -> 2.1 | Y54: Voltage
S55: Karoo | T55: =T56 -> 1.84 | U55: 2.1 | Y55: < 500V | Z55: 0 | AA55: =ROUND(Z55 * (1 + VAT), 2) -> 0
S56: Kwazulu-Natal | T56: =TUoS!J58 -> 1.84 | U56: 2.1 | Y56: ≥ 500V & < 66kV | Z56: =Z57 -> 12.52 | AA56: 14.27
S57: Vaal | T57: =TUoS!J59 -> 6.13 | U57: 6.99 | Y57: ≥ 66kV & ≤ 132kV | Z57: =DUoS!J73 -> 12.52 | AA57: 14.27
S58: Waterberg | T58: =TUoS!J60 -> 7.85 | U58: 8.95
S59: Mpumalanga | T59: =TUoS!J61 -> 7.28 | U59: 8.3

Sheet Excess NCC Munic
S1: Back to menu
A2: Municiple | S2: Urban - Excess NCC Megaflex [Local authorities] | X2: Urban - Excess NCC Nightsave Urban Large [Local authorities] | AD2: Urban - Excess NCC Miniflex [Local authorities] | AK2: Urban - Excess NCC WEPS [Local authorities]
U4: Excess network charge [R/kVA/m] | AA4: Excess network charge [R/kVA/m] | AG4: Excess network charge [R/kVA/m] | AM4: Excess network charge [R/kVA/m]
S5: Transmission zone | Y5: Transmission zone | AE5: Transmission zone | AK5: Transmission zone
T6: Voltage | Z6: Voltage | AF6: Voltage | AL6: Voltage
A7: Tariff | B7: Tariff nameBillcode | C7: Tx zone | D7: Voltage | E7: Billcode | G7: Tariff | H7: Tariff nameBillcode | I7: Tx zone | J7: Voltage | K7: Billcode | M7: Tariff | N7: Tariff nameBillcode | O7: Tx zone | P7: Voltage | Q7: Billcode | V7: VAT incl | AB7: VAT incl | AH7: VAT incl | AN7: VAT incl
A8: Excess NAC Megaflex | B8: ExNACMe | C8: 0 | D8: 1 | E8: =B8&C8&D8&IF($A$2="Non-municipal","N",IF($A$2="Municiple","Y","error")) -> ExNACMe01Y | G8: Excess NAC Nightsave Large | H8: ExNACNL | I8: 0 | J8: 1 | K8: =H8&I8&J8&IF($A$2="Non-municipal","N",IF($A$2="Municiple","Y","error")) -> ExNACNL01Y | M8: Excess NAC Miniflex | N8: ExNACMi | O8: 0 | P8: 1 | Q8: =N8&O8&P8&IF($A$2="Non-municipal","N",IF($A$2="Municiple","Y","error")) -> ExNACMi01Y | S8: ≤ 300km | T8: < 500V | U8: 23.26 | V8: =ROUND(U8 * (1 + VAT), 2) -> 26.52 | Y8: ≤ 300km | Z8: < 500V | AA8: 23.26 | AB8: =ROUND(AA8 * (1 + VAT), 2) -> 26.52 | AE8: ≤ 300km | AF8: < 500V | AG8: 23.25 | AH8: =ROUND(AG8 * (1 + VAT), 2) -> 26.51 | AK8: ≤ 300km | AL8: < 500V | AM8: 23.26 | AN8: =ROUND(AM8 * (1 + VAT), 2) -> 26.52
A9: Excess NAC Megaflex | B9: ExNACMe | C9: 0 | D9: 2 | E9: =B9&C9&D9&IF($A$2="Non-municipal","N",IF($A$2="Municiple","Y","error")) -> ExNACMe02Y | G9: Excess NAC Nightsave Large | H9: ExNACNL | I9: 0 | J9: 2 | K9: =H9&I9&J9&IF($A$2="Non-municipal","N",IF($A$2="Municiple","Y","error")) -> ExNACNL02Y | M9: Excess NAC Miniflex | N9: ExNACMi | O9: 0 | P9: 2 | Q9: =N9&O9&P9&IF($A$2="Non-municipal","N",IF($A$2="Municiple","Y","error")) -> ExNACMi02Y | T9: ≥ 500V & < 66kV | U9: 21.3 | V9: 24.28 | Z9: ≥ 500V & < 66kV | AA9: 21.3 | AB9: 24.28 | AF9: ≥ 500V & < 66kV | AG9: 21.3 | AH9: 24.28 | AL9: ≥ 500V & < 66kV | AM9: 21.3 | AN9: 24.28
A10: Excess NAC Megaflex | B10: ExNACMe | C10: 0 | D10: 3 | E10: ExNACMe03Y | G10: Excess NAC Nightsave Large | H10: ExNACNL | I10: 0 | J10: 3 | K10: ExNACNL03Y | M10: Excess NAC Miniflex | N10: ExNACMi | O10: 0 | P10: 3 | Q10: ExNACMi03Y | T10: ≥ 66kV & ≤ 132kV | U10: 24.42 | V10: 27.84 | Z10: ≥ 66kV & ≤ 132kV | AA10: 24.42 | AB10: 27.84 | AF10: ≥ 66kV & ≤ 132kV | AG10: 24.4 | AH10: 27.82 | AL10: ≥ 66kV & ≤ 132kV | AM10: 24.42 | AN10: 27.84
A11: Excess NAC Megaflex | B11: ExNACMe | C11: 0 | D11: 4 | E11: ExNACMe04Y | G11: Excess NAC Nightsave Large | H11: ExNACNL | I11: 0 | J11: 4 | K11: ExNACNL04Y | M11: Excess NAC Miniflex | N11: ExNACMi | O11: 0 | P11: 4 | Q11: ExNACMi04Y | T11: > 132kV* | U11: 21.17 | V11: 24.13 | Z11: > 132kV* | AA11: 21.17 | AB11: 24.13 | AF11: > 132kV* | AG11: 21.17 | AH11: 24.13 | AL11: > 132kV* | AM11: 21.17 | AN11: 24.13
A12: Excess NAC Megaflex | B12: ExNACMe | C12: 1 | D12: 1 | E12: ExNACMe11Y | G12: Excess NAC Nightsave Large | H12: ExNACNL | I12: 1 | J12: 1 | K12: ExNACNL11Y | M12: Excess NAC Miniflex | N12: ExNACMi | O12: 1 | P12: 1 | Q12: ExNACMi11Y | S12: > 300km and ≤ 600km | T12: < 500V | U12: 23.3 | V12: 26.56 | Y12: > 300km and ≤ 600km | Z12: < 500V | AA12: 23.3 | AB12: 26.56 | AE12: > 300km and ≤ 600km | AF12: < 500V | AG12: 23.3 | AH12: 26.56 | AK12: > 300km and ≤ 600km | AL12: < 500V | AM12: 23.3 | AN12: 26.56
A13: Excess NAC Megaflex | B13: ExNACMe | C13: 1 | D13: 2 | E13: ExNACMe12Y | G13: Excess NAC Nightsave Large | H13: ExNACNL | I13: 1 | J13: 2 | K13: ExNACNL12Y | M13: Excess NAC Miniflex | N13: ExNACMi | O13: 1 | P13: 2 | Q13: ExNACMi12Y | T13: ≥ 500V & < 66kV | U13: 21.37 | V13: 24.36 | Z13: ≥ 500V & < 66kV | AA13: 21.37 | AB13: 24.36 | AF13: ≥ 500V & < 66kV | AG13: 21.37 | AH13: 24.36 | AL13: ≥ 500V & < 66kV | AM13: 21.37 | AN13: 24.36
A14: Excess NAC Megaflex | B14: ExNACMe | C14: 1 | D14: 3 | E14: ExNACMe13Y | G14: Excess NAC Nightsave Large | H14: ExNACNL | I14: 1 | J14: 3 | K14: ExNACNL13Y | M14: Excess NAC Miniflex | N14: ExNACMi | O14: 1 | P14: 3 | Q14: ExNACMi13Y | T14: ≥ 66kV & ≤ 132kV | U14: 24.47 | V14: 27.9 | Z14: ≥ 66kV & ≤ 132kV | AA14: 24.47 | AB14: 27.9 | AF14: ≥ 66kV & ≤ 132kV | AG14: 24.47 | AH14: 27.9 | AL14: ≥ 66kV & ≤ 132kV | AM14: 24.47 | AN14: 27.9
A15: Excess NAC Megaflex | B15: ExNACMe | C15: 1 | D15: 4 | E15: ExNACMe14Y | G15: Excess NAC Nightsave Large | H15: ExNACNL | I15: 1 | J15: 4 | K15: ExNACNL14Y | M15: Excess NAC Miniflex | N15: ExNACMi | O15: 1 | P15: 4 | Q15: ExNACMi14Y | T15: > 132kV* | U15: 21.25 | V15: 24.23 | Z15: > 132kV* | AA15: 21.25 | AB15: 24.23 | AF15: > 132kV* | AG15: 21.25 | AH15: 24.23 | AL15: > 132kV* | AM15: 21.25 | AN15: 24.23
A16: Excess NAC Megaflex | B16: ExNACMe | C16: 2 | D16: 1 | E16: ExNACMe21Y | G16: Excess NAC Nightsave Large | H16: ExNACNL | I16: 2 | J16: 1 | K16: ExNACNL21Y | M16: Excess NAC Miniflex | N16: ExNACMi | O16: 2 | P16: 1 | Q16: ExNACMi21Y | S16: > 600km and ≤ 900km | T16: < 500V | U16: 23.4 | V16: 26.68 | Y16: > 600km and ≤ 900km | Z16: < 500V | AA16: 23.4 | AB16: 26.68 | AE16: > 600km and ≤ 900km | AF16: < 500V | AG16: 23.42 | AH16: 26.7 | AK16: > 600km and ≤ 900km | AL16: < 500V | AM16: 23.4 | AN16: 26.68
A17: Excess NAC Megaflex | B17: ExNACMe | C17: 2 | D17: 2 | E17: ExNACMe22Y | G17: Excess NAC Nightsave Large | H17: ExNACNL | I17: 2 | J17: 2 | K17: ExNACNL22Y | M17: Excess NAC Miniflex | N17: ExNACMi | O17: 2 | P17: 2 | Q17: ExNACMi22Y | T17: ≥ 500V & < 66kV | U17: 21.43 | V17: 24.43 | Z17: ≥ 500V & < 66kV | AA17: 21.43 | AB17: 24.43 | AF17: ≥ 500V & < 66kV | AG17: 21.43 | AH17: 24.43 | AL17: ≥ 500V & < 66kV | AM17: 21.43 | AN17: 24.43
A18: Excess NAC Megaflex | B18: ExNACMe | C18: 2 | D18: 3 | E18: ExNACMe23Y | G18: Excess NAC Nightsave Large | H18: ExNACNL | I18: 2 | J18: 3 | K18: ExNACNL23Y | M18: Excess NAC Miniflex | N18: ExNACMi | O18: 2 | P18: 3 | Q18: ExNACMi23Y | T18: ≥ 66kV & ≤ 132kV | U18: 24.53 | V18: 27.96 | Z18: ≥ 66kV & ≤ 132kV | AA18: 24.53 | AB18: 27.96 | AF18: ≥ 66kV & ≤ 132kV | AG18: 24.52 | AH18: 27.95 | AL18: ≥ 66kV & ≤ 132kV | AM18: 24.53 | AN18: 27.96
A19: Excess NAC Megaflex | B19: ExNACMe | C19: 2 | D19: 4 | E19: ExNACMe24Y | G19: Excess NAC Nightsave Large | H19: ExNACNL | I19: 2 | J19: 4 | K19: ExNACNL24Y | M19: Excess NAC Miniflex | N19: ExNACMi | O19: 2 | P19: 4 | Q19: ExNACMi24Y | T19: > 132kV* | U19: 21.37 | V19: 24.36 | Z19: > 132kV* | AA19: 21.37 | AB19: 24.36 | AF19: > 132kV* | AG19: 21.37 | AH19: 24.36 | AL19: > 132kV* | AM19: 21.37 | AN19: 24.36
A20: Excess NAC Megaflex | B20: ExNACMe | C20: 3 | D20: 1 | E20: ExNACMe31Y | G20: Excess NAC Nightsave Large | H20: ExNACNL | I20: 3 | J20: 1 | K20: ExNACNL31Y | M20: Excess NAC Miniflex | N20: ExNACMi | O20: 3 | P20: 1 | Q20: ExNACMi31Y | S20: > 900km | T20: < 500V | U20: 23.44 | V20: 26.72 | Y20: > 900km | Z20: < 500V | AA20: 23.44 | AB20: 26.72 | AE20: > 900km | AF20: < 500V | AG20: 23.44 | AH20: 26.72 | AK20: > 900km | AL20: < 500V | AM20: 23.44 | AN20: 26.72
A21: Excess NAC Megaflex | B21: ExNACMe | C21: 3 | D21: 2 | E21: ExNACMe32Y | G21: Excess NAC Nightsave Large | H21: ExNACNL | I21: 3 | J21: 2 | K21: ExNACNL32Y | M21: Excess NAC Miniflex | N21: ExNACMi | O21: 3 | P21: 2 | Q21: ExNACMi32Y | T21: ≥ 500V & < 66kV | U21: 21.5 | V21: 24.51 | Z21: ≥ 500V & < 66kV | AA21: 21.5 | AB21: 24.51 | AF21: ≥ 500V & < 66kV | AG21: 21.52 | AH21: 24.53 | AL21: ≥ 500V & < 66kV | AM21: 21.5 | AN21: 24.51
A22: Excess NAC Megaflex | B22: ExNACMe | C22: 3 | D22: 3 | E22: ExNACMe33Y | G22: Excess NAC Nightsave Large | H22: ExNACNL | I22: 3 | J22: 3 | K22: ExNACNL33Y | M22: Excess NAC Miniflex | N22: ExNACMi | O22: 3 | P22: 3 | Q22: ExNACMi33Y | T22: ≥ 66kV & ≤ 132kV | U22: 24.58 | V22: 28.02 | Z22: ≥ 66kV & ≤ 132kV | AA22: 24.58 | AB22: 28.02 | AF22: ≥ 66kV & ≤ 132kV | AG22: 24.56 | AH22: 28 | AL22: ≥ 66kV & ≤ 132kV | AM22: 24.58 | AN22: 28.02
A23: Excess NAC Megaflex | B23: ExNACMe | C23: 3 | D23: 4 | E23: ExNACMe34Y | G23: Excess NAC Nightsave Large | H23: ExNACNL | I23: 3 | J23: 4 | K23: ExNACNL34Y | M23: Excess NAC Miniflex | N23: ExNACMi | O23: 3 | P23: 4 | Q23: ExNACMi34Y | T23: > 132kV* | U23: 21.44 | V23: 24.44 | Z23: > 132kV* | AA23: 21.44 | AB23: 24.44 | AF23: > 132kV* | AG23: 21.44 | AH23: 24.44 | AL23: > 132kV* | AM23: 21.44 | AN23: 24.44
T24: * 132 kV or Transmission connected | Z24: * 132 kV or Transmission connected | AF24: * 132 kV or Transmission connected | AL24: * 132 kV or Transmission connected
S25: Urban - Excess NCC Nightsave Urban Small [Local authorities] | X25: Rural - Excess NCC Nightsave Rural [Local authorities] | AD25: Rural - Excess NCC Ruraflex [Local authorities]
U27: Excess network charge [R/kVA/m] | AA27: Excess network charge [R/kVA/m] | AG27: Excess network charge [R/kVA/m]
S28: Transmission zone | Y28: Transmission zone | AE28: Transmission zone
T29: Voltage | Z29: Voltage | AF29: Voltage
A30: Tariff | B30: Tariff nameBillcode | C30: Tx zone | D30: Voltage | E30: Billcode | G30: Tariff | H30: Tariff nameBillcode | I30: Tx zone | J30: Voltage | K30: Billcode | M30: Tariff | N30: Tariff nameBillcode | O30: Tx zone | P30: Voltage | Q30: Billcode | V30: VAT incl | AB30: VAT incl | AH30: VAT incl
A31: Excess NAC Nightsave Small | B31: ExNACNS | C31: 0 | D31: 1 | E31: =B31&C31&D31&IF($A$2="Non-municipal","N",IF($A$2="Municiple","Y","error")) -> ExNACNS01Y | G31: Excess NAC Nightsave Rural | H31: ExNACNR | I31: 0 | J31: 1 | K31: =H31&I31&J31&IF($A$2="Non-municipal","N",IF($A$2="Municiple","Y","error")) -> ExNACNR01Y | M31: Excess NAC Ruraflex | N31: ExNACRu | O31: 0 | P31: 1 | Q31: =N31&O31&P31&IF($A$2="Non-municipal","N",IF($A$2="Municiple","Y","error")) -> ExNACRu01Y | S31: ≤ 300km | T31: < 500V | U31: 23.26 | V31: =ROUND(U31 * (1 + VAT), 2) -> 26.52 | Y31: ≤ 300km | Z31: < 500V | AA31: 11.77 | AB31: =ROUND(AA31 * (1 + VAT), 2) -> 13.42 | AE31: ≤ 300km | AF31: < 500V | AG31: 16.42 | AH31: =ROUND(AG31 * (1 + VAT), 2) -> 18.72
A32: Excess NAC Nightsave Small | B32: ExNACNS | C32: 0 | D32: 2 | E32: =B32&C32&D32&IF($A$2="Non-municipal","N",IF($A$2="Municiple","Y","error")) -> ExNACNS02Y | G32: Excess NAC Nightsave Rural | H32: ExNACNR | I32: 0 | J32: 2 | K32: =H32&I32&J32&IF($A$2="Non-municipal","N",IF($A$2="Municiple","Y","error")) -> ExNACNR02Y | M32: Excess NAC Ruraflex | N32: ExNACRu | O32: 0 | P32: 2 | Q32: =N32&O32&P32&IF($A$2="Non-municipal","N",IF($A$2="Municiple","Y","error")) -> ExNACRu02Y | T32: ≥ 500V & < 66kV | U32: 21.3 | V32: 24.28 | Z32: ≥ 500V & ≤ 22kV | AA32: 10.81 | AB32: 12.32 | AF32: ≥ 500V & ≤ 22kV | AG32: 15.06 | AH32: 17.17
A33: Excess NAC Nightsave Small | B33: ExNACNS | C33: 0 | D33: 3 | E33: ExNACNS03Y | G33: Excess NAC Nightsave Rural | H33: ExNACNR | I33: 0 | J33: 3 | K33: ExNACNR03Y | M33: Excess NAC Ruraflex | N33: ExNACRu | O33: 0 | P33: 3 | Q33: ExNACRu03Y | T33: ≥ 66kV & ≤ 132kV | U33: 24.42 | V33: 27.84
A34: Excess NAC Nightsave Small | B34: ExNACNS | C34: 0 | D34: 4 | E34: ExNACNS04Y | G34: Excess NAC Nightsave Rural | H34: ExNACNR | I34: 0 | J34: 4 | K34: ExNACNR04Y | M34: Excess NAC Ruraflex | N34: ExNACRu | O34: 0 | P34: 4 | Q34: ExNACRu04Y | T34: > 132kV* | U34: 21.17 | V34: 24.13
A35: Excess NAC Nightsave Small | B35: ExNACNS | C35: 1 | D35: 1 | E35: ExNACNS11Y | G35: Excess NAC Nightsave Rural | H35: ExNACNR | I35: 1 | J35: 1 | K35: ExNACNR11Y | M35: Excess NAC Ruraflex | N35: ExNACRu | O35: 1 | P35: 1 | Q35: ExNACRu11Y | S35: > 300km and ≤ 600km | T35: < 500V | U35: 23.3 | V35: 26.56 | Y35: > 300km and ≤ 600km | Z35: < 500V | AA35: 11.79 | AB35: =ROUND(AA35 * (1 + VAT), 2) -> 13.44 | AE35: > 300km and ≤ 600km | AF35: < 500V | AG35: 16.49 | AH35: =ROUND(AG35 * (1 + VAT), 2) -> 18.8
A36: Excess NAC Nightsave Small | B36: ExNACNS | C36: 1 | D36: 2 | E36: ExNACNS12Y | G36: Excess NAC Nightsave Rural | H36: ExNACNR | I36: 1 | J36: 2 | K36: ExNACNR12Y | M36: Excess NAC Ruraflex | N36: ExNACRu | O36: 1 | P36: 2 | Q36: ExNACRu12Y | T36: ≥ 500V & < 66kV | U36: 21.37 | V36: 24.36 | Z36: ≥ 500V & ≤ 22kV | AA36: 10.85 | AB36: 12.37 | AF36: ≥ 500V & ≤ 22kV | AG36: 15.15 | AH36: 17.27
A37: Excess NAC Nightsave Small | B37: ExNACNS | C37: 1 | D37: 3 | E37: ExNACNS13Y | G37: Excess NAC Nightsave Rural | H37: ExNACNR | I37: 1 | J37: 3 | K37: ExNACNR13Y | M37: Excess NAC Ruraflex | N37: ExNACRu | O37: 1 | P37: 3 | Q37: ExNACRu13Y | T37: ≥ 66kV & ≤ 132kV | U37: 24.47 | V37: 27.9
A38: Excess NAC Nightsave Small | B38: ExNACNS | C38: 1 | D38: 4 | E38: ExNACNS14Y | G38: Excess NAC Nightsave Rural | H38: ExNACNR | I38: 1 | J38: 4 | K38: ExNACNR14Y | M38: Excess NAC Ruraflex | N38: ExNACRu | O38: 1 | P38: 4 | Q38: ExNACRu14Y | T38: > 132kV* | U38: 21.25 | V38: 24.23
A39: Excess NAC Nightsave Small | B39: ExNACNS | C39: 2 | D39: 1 | E39: ExNACNS21Y | G39: Excess NAC Nightsave Rural | H39: ExNACNR | I39: 2 | J39: 1 | K39: ExNACNR21Y | M39: Excess NAC Ruraflex | N39: ExNACRu | O39: 2 | P39: 1 | Q39: ExNACRu21Y | S39: > 600km and ≤ 900km | T39: < 500V | U39: 23.4 | V39: 26.68 | Y39: > 600km and ≤ 900km | Z39: < 500V | AA39: 11.91 | AB39: =ROUND(AA39 * (1 + VAT), 2) -> 13.58 | AE39: > 600km and ≤ 900km | AF39: < 500V | AG39: 16.58 | AH39: =ROUND(AG39 * (1 + VAT), 2) -> 18.9
A40: Excess NAC Nightsave Small | B40: ExNACNS | C40: 2 | D40: 2 | E40: ExNACNS22Y | G40: Excess NAC Nightsave Rural | H40: ExNACNR | I40: 2 | J40: 2 | K40: ExNACNR22Y | M40: Excess NAC Ruraflex | N40: ExNACRu | O40: 2 | P40: 2 | Q40: ExNACRu22Y | T40: ≥ 500V & < 66kV | U40: 21.43 | V40: 24.43 | Z40: ≥ 500V & ≤ 22kV | AA40: 10.92 | AB40: 12.45 | AF40: ≥ 500V & ≤ 22kV | AG40: 15.22 | AH40: 17.35
A41: Excess NAC Nightsave Small | B41: ExNACNS | C41: 2 | D41: 3 | E41: ExNACNS23Y | G41: Excess NAC Nightsave Rural | H41: ExNACNR | I41: 2 | J41: 3 | K41: ExNACNR23Y | M41: Excess NAC Ruraflex | N41: ExNACRu | O41: 2 | P41: 3 | Q41: ExNACRu23Y | T41: ≥ 66kV & ≤ 132kV | U41: 24.53 | V41: 27.96
A42: Excess NAC Nightsave Small | B42: ExNACNS | C42: 2 | D42: 4 | E42: ExNACNS24Y | G42: Excess NAC Nightsave Rural | H42: ExNACNR | I42: 2 | J42: 4 | K42: ExNACNR24Y | M42: Excess NAC Ruraflex | N42: ExNACRu | O42: 2 | P42: 4 | Q42: ExNACRu24Y | T42: > 132kV* | U42: 21.37 | V42: 24.36
A43: Excess NAC Nightsave Small | B43: ExNACNS | C43: 3 | D43: 1 | E43: ExNACNS31Y | G43: Excess NAC Nightsave Rural | H43: ExNACNR | I43: 3 | J43: 1 | K43: ExNACNR31Y | M43: Excess NAC Ruraflex | N43: ExNACRu | O43: 3 | P43: 1 | Q43: ExNACRu31Y | S43: > 900km | T43: < 500V | U43: 23.44 | V43: 26.72 | Y43: > 900km | Z43: < 500V | AA43: 11.92 | AB43: =ROUND(AA43 * (1 + VAT), 2) -> 13.59 | AE43: > 900km | AF43: < 500V | AG43: 16.63 | AH43: =ROUND(AG43 * (1 + VAT), 2) -> 18.96
A44: Excess NAC Nightsave Small | B44: ExNACNS | C44: 3 | D44: 2 | E44: ExNACNS32Y | G44: Excess NAC Nightsave Rural | H44: ExNACNR | I44: 3 | J44: 2 | K44: ExNACNR32Y | M44: Excess NAC Ruraflex | N44: ExNACRu | O44: 3 | P44: 2 | Q44: ExNACRu32Y | T44: ≥ 500V & < 66kV | U44: 21.5 | V44: 24.51 | Z44: ≥ 500V & ≤ 22kV | AA44: 10.93 | AB44: 12.46 | AF44: ≥ 500V & ≤ 22kV | AG44: 15.23 | AH44: 17.36
A45: Excess NAC Nightsave Small | B45: ExNACNS | C45: 3 | D45: 3 | E45: ExNACNS33Y | G45: Excess NAC Nightsave Rural | H45: ExNACNR | I45: 3 | J45: 3 | K45: ExNACNR33Y | M45: Excess NAC Ruraflex | N45: ExNACRu | O45: 3 | P45: 3 | Q45: ExNACRu33Y | T45: ≥ 66kV & ≤ 132kV | U45: 24.58 | V45: 28.02
A46: Excess NAC Nightsave Small | B46: ExNACNS | C46: 3 | D46: 4 | E46: ExNACNS34Y | G46: Excess NAC Nightsave Rural | H46: ExNACNR | I46: 3 | J46: 4 | K46: ExNACNR34Y | M46: Excess NAC Ruraflex | N46: ExNACRu | O46: 3 | P46: 4 | Q46: ExNACRu34Y | T46: > 132kV* | U46: 21.44 | V46: 24.44
T47: * 132 kV or Transmission connected

Sheet Reconciliaton
B2: Generator reconciliations
C4: Wheeling | G4: Energy add back
C5: Tariff name | D5: Tariff rate | E5: Source | G5: Tariff name | H5: Tariff rate | I5: Source
C6: Gen-wheeling non Munic urban | D6: Energy: | E6: WEPS energy rate excluding losses | G6: Gen-purchase- urban | H6: Energy: | I6: WEPS energy rate excluding losses
D7: Affordability subsidy: | E7: same as WEPS | H7: Affordability subsidy: | I7: same as WEPS
D8: Admin charge: | E8: same as WEPS | H8: Admin charge: | I8: same as WEPS
D9: Other components: | E9: not applicable | H9: Other components: | I9: not applicable
C10: Gen-wheeling non Munic rural | D10: Energy: | E10: WEPS energy rate excluding losses | G10: Gen-purchase-rural | H10: Energy: | I10: WEPS energy rate excluding losses
D11: Admin charge: | E11: same as Ruraflex | H11: Admin charge: | I11: same as Ruraflex
D12: Other components: | E12: not applicable | H12: Other components: | I12: not applicable
C13: Gen-wheeling Munic urban | D13: Energy (Local): | E13: WEPS energy rate excluding losses (Local) | G13: Gen-purchase Munic urban | H13: Energy: | I13: WEPS energy rate excluding losses(Local)
D14: Admin charge: | E14: same as WEPS (local) | H14: Admin charge: | I14: same as WEPS (Local)
D15: Other components: | E15: not applicable | H15: Other components: | I15: not applicable
C16: Gen-wheeling Munic rural | D16: Energy (Local): | E16: WEPS energy rate excluding losses (Local) | G16: Gen-purchase Munic rural | H16: Energy: | I16: WEPS energy rate excluding losses(Local)
D17: Admin charge: | E17: same as same as Ruraflex (local) | H17: Admin charge: | I17: same as Ruraflex (Local)
D18: Other components: | E18: not applicable | H18: Other components: | I18: not applicable
C21: Offset
C22: Tariff name | D22: Tariff rate | E22: Source
C23: Gen-offset urban | D23: Energy: | E23: WEPS energy rate including losses (per Tx and voltage zone)
D24: Affordability subsidy: | E24: same as WEPS
D25: Admin charge: | E25: same as WEPS
D26: Other components: | E26: not applicable
C27: Gen-offset rural | D27: Energy: | E27: Ruraflex energy rate (per Tx and voltage zone)
D28: Affordability subsidy: | E28: same as WEPS
D29: Admin charge: | E29: same as WEPS
D30: Other components: | E30: not applicable
